Workbook

Sheet Example_1
F1: Supplier Cost Breakdown | W1: CBDnew | X1: 123
A2: =CELL("Filename",A2) -> https://veoneer-my.sharepoint.com/personal/arnaud_soret_veoneer_com/Documents/Documents/PROCESS & TRAINING/A - PROCESS/VSM/[Supplier Cost Breakdown - Example.xlsm]Example_1 | K2: Version 2.01C | S2: =IF(O117>10000,9999,PUC) -> 100
B3: Section 1 | D3: Project Details | J3: Average | K3: Peak | S3: =IF(F7="/pc",1,IF(F7="/10",10,IF(F7="/100",100,IF(F7="/1000",1000)))) -> 100 | U3: ="Frt In "&CHAR(10)&"[%]" -> Frt In [%]
A4: Quotation No. /Rev | D4: AXX NN 2012/007 | I4: Est. Annual Qty | J4: 600000 | K4: 750000 | S4: 100 | U4: ="Frt In "&CHAR(10)&"[/UoM]" -> Frt In [/UoM]
A5: Autoliv Buyer | D5: Enny Baier | I5: Estimated Lifetime | J5: 4.5 | K5: years | U5: ="Frt In "&CHAR(10)&"["&LEFT(D$7,3)&"]" -> Frt In [EUR] | AS5: 1 | AT5: 1
A6: Production Locations | D6: FRM | E6: CFM | F6: SVM | I6: Start of Production | L6: Supplier | M6: 12345 | N6: Perfect PI HCC | S6: Delete when hiding | W6: Yes | X6: FALSE
A7: Currency | D7: EUR: Euro | F7: /100 | I7: PPAP Date | M7: Description | N7: Cover Plate | S7: Locked Currency | U7: EUR: Euro | W7: =IF(X7=TRUE,"Yes","No") -> Yes | X7: TRUE
I8: FOT Date | M8: Part No. | N8: 800123400C | S8: Advanced Mode | U8: FALSE | V8: NA | W8: =IF(V8=6,"Yes","No") -> No
A9: Additional Information | D9: This is an example only to demonstrate the calculation | L9: Drawing / Rev | N9: 8001234A01
L10: Project / Customer | N10: PLPX / Various | S10: Size | V10: =W13+W36+W65 -> 124 | W10: =W13+W36+W65+W122 -> 249
U11: =IF(RIGHT(M$13,2)="%]","P","A") -> P
B12: Section 2.1 | D12: Raw Material | M12: =U12 -> 1.1058 | N12: =T12 -> 0.571529 | O12: =SUBTOTAL(109,O14:O33) -> 20.793329 | P12: =IF($O$104=0,0,O12/$O$104) -> 0.4636622681 | S12: =SUBTOTAL(109,S14:S33) -> 19.116 | T12: =SUBTOTAL(109,T14:T33) -> 0.571529 | U12: =SUBTOTAL(109,U14:U33) -> 1.1058 | V12: =SUBTOTAL(109,V14:V33) -> 20.793329
B13: Description | E13: Specification | G13: UoM | H13: Nett Amount | I13: Gross Amount | J13: Qty (optional) | K13: ="Unit Cost ["&LEFT($D$7,3)&"]" -> Unit Cost [EUR] | L13: Waste Resale | M13: Frt in [%] | N13: Scrap [%] | O13: ="Total"&" ["&LEFT($D$7,3)&$F$7&"]" -> Total [EUR/100] | S13: Material | T13: Scrap | U13: Frt in | V13: Total | W13: 16
A14: 1 | B14: Plastic POM | E14: Delrin 100 P | G14: kg | H14: 0.026 | I14: 0.045 | J14: 0.98 | K14: 3.6 | M14: 0.05 | N14: 0.03 | O14: =IF(J14="",1,J14)*(I14*(1+N14)*(K14+IF(RIGHT(M$13,2)="%]",(K14*M14),M14)-L14)+H14*L14)*PUC -> 17.169894 | P14: =IF($O$104=0,0,O14/$O$104) -> 0.3828647156 | S14: =IF(J14="",1,J14)*(I14*(K14-L14)+(H14*L14))*PUC -> 15.876 | T14: =IF(J14="",1,J14)*(K14+IF(RIGHT(M$13,2)="%]",(K14*M14),M14)-L14)*(I14*N14)*PUC -> 0.500094 | U14: =V14-S14-T14 -> 0.7938 | V14: =IF(J14="",1,J14)*(I14*(1+N14)*(K14+IF(RIGHT(M$13,2)="%]",(K14*M14),M14)-L14)+H14*L14)*PUC -> 17.169894
A15: 2 | B15: Masterbatch | E15: Blue | G15: kg | H15: 0.026 | I15: 0.045 | J15: 0.02 | K15: 11 | M15: 0.05 | N15: 0.03 | O15: 1.070685 | P15: 0.02387478386 | S15: 0.99 | T15: 0.031185 | U15: =V15-S15-T15 -> 0.0495 | V15: 1.070685
A16: 3 | B16: Steel | E16: DC54D | G16: kg | H16: 0.02 | I16: 0.035 | K16: 0.75 | L16: 0.25 | M16: 0.1 | N16: 0.02 | O16: 2.55275 | P16: 0.05692276859 | S16: 2.25 | T16: 0.04025 | U16: 0.2625 | V16: 2.55275
A17: 4 | O17: 0 | P17: 0 | S17: 0 | T17: 0 | U17: 0 | V17: 0
A18: 5 | O18: =IF(J18="",1,J18)*(I18*(1+N18)*(K18+IF(RIGHT(M$13,2)="%]",(K18*M18),M18)-L18)+H18*L18)*PUC -> 0 | P18: 0 | S18: =IF(J18="",1,J18)*(I18*(K18-L18)+(H18*L18))*PUC -> 0 | T18: =IF(J18="",1,J18)*(K18+IF(RIGHT(M$13,2)="%]",(K18*M18),M18)-L18)*(I18*N18)*PUC -> 0 | U18: 0 | V18: =IF(J18="",1,J18)*(I18*(1+N18)*(K18+IF(RIGHT(M$13,2)="%]",(K18*M18),M18)-L18)+H18*L18)*PUC -> 0
A19: 6 | O19: 0 | P19: 0 | S19: 0 | T19: 0 | U19: 0 | V19: 0
A20: 7 | O20: 0 | P20: 0 | S20: 0 | T20: 0 | U20: 0 | V20: 0
A21: 8 | O21: 0 | P21: 0 | S21: 0 | T21: 0 | U21: 0 | V21: 0
A22: 9 | O22: 0 | P22: 0 | S22: 0 | T22: 0 | U22: 0 | V22: 0 | W22: 125
A23: 10 | O23: 0 | P23: 0 | S23: 0 | T23: 0 | U23: 0 | V23: 0
A24: 11 | O24: =IF(J24="",1,J24)*(I24*(1+N24)*(K24+IF(RIGHT(M$13,2)="%]",(K24*M24),M24)-L24)+H24*L24)*PUC -> 0 | P24: 0 | S24: =IF(J24="",1,J24)*(I24*(K24-L24)+(H24*L24))*PUC -> 0 | T24: =IF(J24="",1,J24)*(K24+IF(RIGHT(M$13,2)="%]",(K24*M24),M24)-L24)*(I24*N24)*PUC -> 0 | U24: 0 | V24: =IF(J24="",1,J24)*(I24*(1+N24)*(K24+IF(RIGHT(M$13,2)="%]",(K24*M24),M24)-L24)+H24*L24)*PUC -> 0
A25: 12 | O25: 0 | P25: 0 | S25: 0 | T25: 0 | U25: 0 | V25: 0
A26: 13 | O26: =IF(J26="",1,J26)*(I26*(1+N26)*(K26+IF(RIGHT(M$13,2)="%]",(K26*M26),M26)-L26)+H26*L26)*PUC -> 0 | P26: 0 | S26: =IF(J26="",1,J26)*(I26*(K26-L26)+(H26*L26))*PUC -> 0 | T26: =IF(J26="",1,J26)*(K26+IF(RIGHT(M$13,2)="%]",(K26*M26),M26)-L26)*(I26*N26)*PUC -> 0 | U26: 0 | V26: =IF(J26="",1,J26)*(I26*(1+N26)*(K26+IF(RIGHT(M$13,2)="%]",(K26*M26),M26)-L26)+H26*L26)*PUC -> 0
A27: 14 | O27: 0 | P27: 0 | S27: 0 | T27: 0 | U27: 0 | V27: 0
A28: 15 | O28: 0 | P28: 0 | S28: 0 | T28: 0 | U28: 0 | V28: 0
A29: 16 | O29: 0 | P29: 0 | S29: 0 | T29: 0 | U29: 0 | V29: 0
A30: 17 | O30: 0 | P30: 0 | S30: 0 | T30: 0 | U30: 0 | V30: 0
A31: 18 | O31: 0 | P31: 0 | S31: 0 | T31: 0 | U31: 0 | V31: 0
A32: 19 | O32: 0 | P32: 0 | S32: 0 | T32: 0 | U32: 0 | V32: 0
A33: 20 | O33: 0 | P33: 0 | S33: 0 | T33: 0 | U33: 0 | V33: 0
U34: =IF(RIGHT(M$36,2)="%]","P","A") -> P
B35: Section 2.2 | D35: Purchased Components (& Outsourced Processes) | M35: =U35 -> 0.216 | N35: =T35 -> 0.04916 | O35: =SUBTOTAL(109,O37:O60) -> 4.96516 | P35: =IF($O$104=0,0,O35/$O$104) -> 0.1107161507 | S35: =SUBTOTAL(109,S37:S60) -> 4.7 | T35: =SUBTOTAL(109,T37:T60) -> 0.04916 | U35: =SUBTOTAL(109,U37:U60) -> 0.216 | V35: =SUBTOTAL(109,V37:V60) -> 4.96516 | W35: 4
B36: Description | E36: Part Number (ALV Drawing) | G36: UoM | H36: Sub-Supplier Name | J36: Qty | K36: ="Unit Cost ["&LEFT($D$7,3)&"]" -> Unit Cost [EUR] | M36: Frt in [%] | N36: Scrap [%] | O36: ="Total"&" ["&LEFT($D$7,3)&$F$7&"]" -> Total [EUR/100] | S36: Material | T36: Scrap | U36: Frt in | V36: Total | W36: 39
A37: 1 | B37: Screw M3x8 | G37: pc | H37: Metalworks | J37: 2 | K37: 0.018 | M37: 0.06 | N37: 0.01 | O37: =J37*(K37+IF(RIGHT(M$36,2)="%]",(K37*M37),M37))*(1+N37)*PUC -> 3.85416 | P37: =IF($O$104=0,0,O37/$O$104) -> 0.08594239851 | S37: =J37*K37*PUC -> 3.6 | T37: =J37*K37*(1+M37)*N37*PUC -> 0.03816 | U37: =V37-S37-T37 -> 0.216 | V37: =J37*(K37+IF(RIGHT(M$36,2)="%]",(K37*M37),M37))*(1+N37)*PUC -> 3.85416
A38: 2 | B38: Label | G38: pc | H38: Stickit Labels | J38: 1 | K38: 0.007 | N38: 0.01 | O38: 0.707 | P38: 0.01576511503 | S38: 0.7 | T38: 0.007 | U38: -1.05818132e-16 | V38: 0.707
A39: 3 | B39: Surface Treatment Steel | G39: kg | H39: Perfect Surface | J39: 0.02 | K39: 0.2 | N39: 0.01 | O39: 0.404 | P39: 0.00900863716 | S39: 0.4 | T39: 0.004 | U39: 0 | V39: 0.404
A40: 4 | O40: 0 | P40: 0 | S40: 0 | T40: 0 | U40: 0 | V40: 0
A41: 5 | O41: 0 | P41: 0 | S41: 0 | T41: 0 | U41: 0 | V41: 0
A42: 6 | O42: 0 | P42: 0 | S42: 0 | T42: 0 | U42: 0 | V42: 0
A43: 7 | O43: 0 | P43: 0 | S43: 0 | T43: 0 | U43: 0 | V43: 0
A44: 8 | O44: 0 | P44: 0 | S44: 0 | T44: 0 | U44: 0 | V44: 0
A45: 9 | O45: 0 | P45: 0 | S45: 0 | T45: 0 | U45: 0 | V45: 0
A46: 10 | O46: =J46*(K46+IF(RIGHT(M$36,2)="%]",(K46*M46),M46))*(1+N46)*PUC -> 0 | P46: 0 | S46: =J46*K46*PUC -> 0 | T46: =J46*K46*(1+M46)*N46*PUC -> 0 | U46: 0 | V46: =J46*(K46+IF(RIGHT(M$36,2)="%]",(K46*M46),M46))*(1+N46)*PUC -> 0
A47: 11 | O47: 0 | P47: 0 | S47: 0 | T47: 0 | U47: 0 | V47: 0
A48: 12 | O48: 0 | P48: 0 | S48: 0 | T48: 0 | U48: 0 | V48: 0
A49: 13 | O49: 0 | P49: 0 | S49: 0 | T49: 0 | U49: 0 | V49: 0
A50: 14 | O50: 0 | P50: 0 | S50: 0 | T50: 0 | U50: 0 | V50: 0
A51: 15 | O51: 0 | P51: 0 | S51: 0 | T51: 0 | U51: 0 | V51: 0
A52: 16 | O52: 0 | P52: 0 | S52: 0 | T52: 0 | U52: 0 | V52: 0
A53: 17 | O53: 0 | P53: 0 | S53: 0 | T53: 0 | U53: 0 | V53: 0
A54: 18 | O54: 0 | P54: 0 | S54: 0 | T54: 0 | U54: 0 | V54: 0
A55: 19 | O55: 0 | P55: 0 | S55: 0 | T55: 0 | U55: 0 | V55: 0
A56: 20 | O56: 0 | P56: 0 | S56: 0 | T56: 0 | U56: 0 | V56: 0
A57: 21 | O57: 0 | P57: 0 | S57: 0 | T57: 0 | U57: 0 | V57: 0
A58: 22 | O58: 0 | P58: 0 | S58: 0 | T58: 0 | U58: 0 | V58: 0
A59: 23 | O59: 0 | P59: 0 | S59: 0 | T59: 0 | U59: 0 | V59: 0
A60: 24 | O60: 0 | P60: 0 | S60: 0 | T60: 0 | U60: 0 | V60: 0
B62: Section 2.3 | D62: Material & Purchased Component Overhead | L62: % of Section 2.1, 2.2 | M62: 0.03 | O62: =M62*(O12+O35) -> 0.77275467 | P62: =IF($O$104=0,0,O62/$O$104) -> 0.01723135256
B64: Section 2.4 | D64: Production | G64: MC: | H64: =MC -> 2.52058 | I64: DL: | J64: =DL -> 6.298611 | K64: Setup: | L64: =Setup -> 0.332693 | M64: =ROUND(TM,3) -> 1.1 | N64: =ROUND(W64,3) -> 0.132 | O64: =SUBTOTAL(109,O66:O89) -> 10.3840989 | P64: =IF($O$104=0,0,O64/$O$104) -> 0.2315509386 | S64: =ROUND(SUBTOTAL(109,S66:S89),6) -> 2.52058 | T64: =ROUND(SUBTOTAL(109,T66:T89),6) -> 6.298611 | U64: =ROUND(SUBTOTAL(109,U66:U89),6) -> 0.332693 | V64: =ROUND(SUBTOTAL(109,V66:V89),6) -> 1.1 | W64: =ROUND(SUBTOTAL(109,W66:W89),6) -> 0.132215 | Y64: Std Capacity Calculation (for Contract review) | AJ64: Max Capacity | AN64: Cycle time conversions
B65: Process Description | D65: Machine Type | E65: Cycle time [sec] | F65: Pcs/cycle (cavities) | H65: ="Machine ["&LEFT($D$7,3)&"/hr]" -> Machine [EUR/hr] | I65: ="Operator ["&LEFT($D$7,3)&"/hr]" -> Operator [EUR/hr] | J65: No. of Operators | K65: ="Setup Cost ["&LEFT($D$7,3)&"]" -> Setup Cost [EUR] | L65: Batch Size | M65: Tool Maint | N65: Scrap [%] | O65: ="Total"&" ["&LEFT($D$7,3)&$F$7&"]" -> Total [EUR/100] | S65: Machine | T65: Operator | U65: Setup | V65: Tool Maint. | W65: 69 | Y65: Hrs /shift | Z65: Shifts/ week | AA65: Oper. Eff. | AB65: Setup [hrs] | AC65: Setup Loss | AD65: Weekly Capacity | AE65: Weeks /year | AF65: Annual Capacity | AG65: Calc O.E.E. | AH65: Capacity Margin | AJ65: Hrs /shift | AK65: Shifts/ week | AL65: Weekly Capacity | AN65: min | AO65: SPM | AP65: Pcs /min | AQ65: Pcs /hr | AR65: Pcs/hr (incl Eff.) | AS65: Weeks/ year | AT65: Annual Capacity
A66: 1 | B66: Injection Moulding | D66: 100t | E66: 25 | F66: 4 | H66: =HourlyRate!G34 -> 8.038543301 | I66: 30 | J66: 0.1 | K66: =AB66*(H66+I66) -> 114.1156299 | L66: =J4/10 -> 60000 | M66: 0.008 | N66: 0.03 | O66: =(IF(F66=0,0,(E66/3600*J66*I66+E66/3600*H66)/F66*(1+N66))+IF(L66=0,0,K66/L66)+M66)*PUC -> 2.964098897 | P66: =IF($O$104=0,0,O66/$O$104) -> 0.06609527591 | S66: =IF(F66=0,0,(E66/3600*H66)/F66)*PUC -> 1.395580434 | T66: =IF(F66=0,0,(E66/3600*J66*I66)/F66)*PUC -> 0.5208333333 | U66: =IF(L66=0,0,K66/L66)*PUC -> 0.1901927165 | V66: =M66*PUC -> 0.8 | W66: =N66*(S66+T66) -> 0.05749241302 | Y66: 8 | Z66: 15 | AA66: 0.85 | AB66: 3 | AC66: =IF(L66*F66*AA66=0,0,AB66/(L66*E66/AA66/F66/3600+AB66)) -> 0.0238950492 | AD66: =IF(E66=0,0,Z66*Y66*3600/E66*F66*AA66)*(1-AC66)*(1-N66) -> 55627.67453 | AE66: 48 | AF66: =AD66*AE66 -> 2670128.377 | AG66: =AA66*(1-N66)*(1-AC66) -> 0.8047985319 | AH66: =IF($J$4*AD66=0,0,AF66/$J$4-1) -> 3.450213962 | AL66: =IF(E66=0,0,AK66*AJ66*3600/E66*F66*AA66)*(1-AC66)*(1-N66) -> 0 | AN66: =IF(F66=0,0,+E66/60/F66) -> 0.1041666667 | AO66: =IF(E66=0,0,60/E66) -> 2.4 | AP66: =AO66*F66 -> 9.6 | AQ66: =IF(E66=0,0,3600/E66*F66) -> 576 | AR66: =AQ66*AA66 -> 489.6 | AT66: =AL66*AS66 -> 0
A67: 2 | B67: Stamping | D67: 350t | E67: 1 | F67: 2 | H67: 25 | I67: 32 | J67: 0.5 | K67: =AB67*(H67+I67) -> 85.5 | L67: =J4/10 -> 60000 | M67: 0.003 | N67: 0.02 | O67: =(IF(F67=0,0,(E67/3600*J67*I67+E67/3600*H67)/F67*(1+N67))+IF(L67=0,0,K67/L67)+M67)*PUC -> 1.023333333 | P67: =IF($O$104=0,0,O67/$O$104) -> 0.02281890766 | S67: 0.3472222222 | T67: 0.2222222222 | U67: 0.1425 | V67: 0.3 | W67: =N67*(S67+T67) -> 0.01138888889 | Y67: 7.5 | Z67: 15 | AA67: 0.7 | AB67: 1.5 | AC67: =IF(L67*F67*AA67=0,0,AB67/(L67*E67/AA67/F67/3600+AB67)) -> 0.1119005329 | AD67: =IF(E67=0,0,Z67*Y67*3600/E67*F67*AA67)*(1-AC67)*(1-N67) -> 493481.3499 | AE67: 48 | AF67: =AD67*AE67 -> 23687104.8 | AG67: =AA67*(1-N67)*(1-AC67) -> 0.6092362345 | AH67: =IF($J$4*AD67=0,0,AF67/$J$4-1) -> 38.47850799 | AL67: 0 | AN67: 0.008333333333 | AO67: 60 | AP67: 120 | AQ67: 7200 | AR67: 5040 | AT67: =AL67*AS67 -> 0
A68: 3 | B68: Assembly | E68: 4 | F68: 1 | H68: 7 | I68: 25 | J68: 2 | N68: 0.01 | O68: =(IF(F68=0,0,(E68/3600*J68*I68+E68/3600*H68)/F68*(1+N68))+IF(L68=0,0,K68/L68)+M68)*PUC -> 6.396666667 | P68: =IF($O$104=0,0,O68/$O$104) -> 0.142636755 | S68: 0.7777777778 | T68: 5.555555556 | U68: 0 | V68: 0 | W68: 0.06333333333 | Y68: 7.5 | Z68: 15 | AA68: 0.85 | AC68: =IF(L68*F68*AA68=0,0,AB68/(L68*E68/AA68/F68/3600+AB68)) -> 0 | AD68: =IF(E68=0,0,Z68*Y68*3600/E68*F68*AA68)*(1-AC68)*(1-N68) -> 85201.875 | AE68: 48 | AF68: =AD68*AE68 -> 4089690 | AG68: =AA68*(1-N68)*(1-AC68) -> 0.8415 | AH68: =IF($J$4*AD68=0,0,AF68/$J$4-1) -> 5.81615 | AL68: 0 | AN68: 0.06666666667 | AO68: 15 | AP68: 15 | AQ68: 900 | AR68: 765 | AT68: =AL68*AS68 -> 0
A69: 4 | O69: =(IF(F69=0,0,(E69/3600*J69*I69+E69/3600*H69)/F69*(1+N69))+IF(L69=0,0,K69/L69)+M69)*PUC -> 0 | P69: =IF($O$104=0,0,O69/$O$104) -> 0 | S69: 0 | T69: 0 | U69: 0 | V69: 0 | W69: 0 | AC69: 0 | AD69: 0 | AF69: 0 | AG69: 0 | AH69: 0 | AL69: 0 | AN69: 0 | AO69: 0 | AP69: 0 | AQ69: 0 | AR69: 0
A70: 5 | O70: 0 | P70: 0 | S70: 0 | T70: 0 | U70: 0 | V70: 0 | W70: 0 | AC70: 0 | AD70: 0 | AF70: 0 | AG70: 0 | AH70: 0 | AL70: 0 | AN70: 0 | AO70: 0 | AP70: 0 | AQ70: 0 | AR70: 0
A71: 6 | O71: 0 | P71: 0 | S71: 0 | T71: 0 | U71: 0 | V71: 0 | W71: 0 | AC71: 0 | AD71: 0 | AF71: 0 | AG71: 0 | AH71: 0 | AL71: 0 | AN71: 0 | AO71: 0 | AP71: 0 | AQ71: 0 | AR71: 0
A72: 7 | O72: 0 | P72: 0 | S72: 0 | T72: 0 | U72: 0 | V72: 0 | W72: 0 | AC72: 0 | AD72: 0 | AF72: 0 | AG72: 0 | AH72: 0 | AL72: 0 | AN72: 0 | AO72: 0 | AP72: 0 | AQ72: 0 | AR72: 0
A73: 8 | O73: 0 | P73: 0 | S73: 0 | T73: 0 | U73: 0 | V73: 0 | W73: 0 | AC73: 0 | AD73: 0 | AF73: 0 | AG73: 0 | AH73: 0 | AL73: 0 | AN73: 0 | AO73: 0 | AP73: 0 | AQ73: 0 | AR73: 0
A74: 9 | O74: 0 | P74: 0 | S74: 0 | T74: 0 | U74: 0 | V74: 0 | W74: 0 | AC74: 0 | AD74: 0 | AF74: 0 | AG74: 0 | AH74: 0 | AL74: 0 | AN74: 0 | AO74: 0 | AP74: 0 | AQ74: 0 | AR74: 0
A75: 10 | O75: 0 | P75: 0 | S75: 0 | T75: 0 | U75: 0 | V75: 0 | W75: 0 | AC75: 0 | AD75: 0 | AF75: 0 | AG75: 0 | AH75: 0 | AL75: 0 | AN75: 0 | AO75: 0 | AP75: 0 | AQ75: 0 | AR75: 0
A76: 11 | O76: 0 | P76: 0 | S76: 0 | T76: 0 | U76: 0 | V76: 0 | W76: 0 | AC76: 0 | AD76: 0 | AF76: 0 | AG76: 0 | AH76: 0 | AL76: 0 | AN76: 0 | AO76: 0 | AP76: 0 | AQ76: 0 | AR76: 0
A77: 12 | O77: 0 | P77: 0 | S77: 0 | T77: 0 | U77: 0 | V77: 0 | W77: 0 | AC77: 0 | AD77: 0 | AF77: 0 | AG77: 0 | AH77: 0 | AL77: 0 | AN77: 0 | AO77: 0 | AP77: 0 | AQ77: 0 | AR77: 0 | AT77: =AL77*AS77 -> 0
A78: 13 | O78: 0 | P78: 0 | S78: 0 | T78: 0 | U78: 0 | V78: 0 | W78: 0 | AC78: 0 | AD78: 0 | AF78: 0 | AG78: 0 | AH78: 0 | AL78: 0 | AN78: 0 | AO78: 0 | AP78: 0 | AQ78: 0 | AR78: 0 | AT78: =AL78*AS78 -> 0
A79: 14 | O79: 0 | P79: 0 | S79: 0 | T79: 0 | U79: 0 | V79: 0 | W79: 0 | AC79: 0 | AD79: 0 | AF79: 0 | AG79: 0 | AH79: 0 | AL79: 0 | AN79: 0 | AO79: 0 | AP79: 0 | AQ79: 0 | AR79: 0 | AT79: =AL79*AS79 -> 0
A80: 15 | O80: 0 | P80: 0 | S80: 0 | T80: 0 | U80: 0 | V80: 0 | W80: 0 | AC80: 0 | AD80: 0 | AF80: 0 | AG80: 0 | AH80: 0 | AL80: 0 | AN80: 0 | AO80: 0 | AP80: 0 | AQ80: 0 | AR80: 0
A81: 16 | O81: 0 | P81: 0 | S81: 0 | T81: 0 | U81: 0 | V81: 0 | W81: 0 | AC81: 0 | AD81: 0 | AF81: 0 | AG81: 0 | AH81: 0 | AL81: 0 | AN81: 0 | AO81: 0 | AP81: 0 | AQ81: 0 | AR81: 0
A82: 17 | O82: 0 | P82: 0 | S82: 0 | T82: 0 | U82: 0 | V82: 0 | W82: 0 | AC82: 0 | AD82: 0 | AF82: 0 | AG82: 0 | AH82: 0 | AL82: 0 | AN82: 0 | AO82: 0 | AP82: 0 | AQ82: 0 | AR82: 0
A83: 18 | O83: 0 | P83: 0 | S83: 0 | T83: 0 | U83: 0 | V83: 0 | W83: 0 | AC83: 0 | AD83: 0 | AF83: 0 | AG83: 0 | AH83: 0 | AL83: 0 | AN83: 0 | AO83: 0 | AP83: 0 | AQ83: 0 | AR83: 0
A84: 19 | O84: 0 | P84: 0 | S84: 0 | T84: 0 | U84: 0 | V84: 0 | W84: 0 | AC84: 0 | AD84: 0 | AF84: 0 | AG84: 0 | AH84: 0 | AL84: 0 | AN84: 0 | AO84: 0 | AP84: 0 | AQ84: 0 | AR84: 0 | AT84: =AL84*AS84 -> 0
A85: 20 | O85: 0 | P85: 0 | S85: 0 | T85: 0 | U85: 0 | V85: 0 | W85: 0 | AC85: 0 | AD85: 0 | AF85: 0 | AG85: 0 | AH85: 0 | AL85: 0 | AN85: 0 | AO85: 0 | AP85: 0 | AQ85: 0 | AR85: 0 | AT85: 0
A86: 21 | O86: 0 | P86: 0 | S86: 0 | T86: 0 | U86: 0 | V86: 0 | W86: 0 | AC86: 0 | AD86: 0 | AF86: 0 | AG86: 0 | AH86: 0 | AL86: 0 | AN86: 0 | AO86: 0 | AP86: 0 | AQ86: 0 | AR86: 0 | AT86: 0
A87: 22 | O87: 0 | P87: 0 | S87: 0 | T87: 0 | U87: 0 | V87: 0 | W87: 0 | AC87: 0 | AD87: 0 | AF87: 0 | AG87: 0 | AH87: 0 | AL87: 0 | AN87: 0 | AO87: 0 | AP87: 0 | AQ87: 0 | AR87: 0 | AT87: 0
A88: 23 | O88: 0 | P88: 0 | S88: 0 | T88: 0 | U88: 0 | V88: 0 | W88: 0 | AC88: 0 | AD88: 0 | AF88: 0 | AG88: 0 | AH88: 0 | AL88: 0 | AN88: 0 | AO88: 0 | AP88: 0 | AQ88: 0 | AR88: 0 | AT88: 0
A89: 24 | O89: 0 | P89: 0 | S89: 0 | T89: 0 | U89: 0 | V89: 0 | W89: 0 | AC89: 0 | AD89: 0 | AF89: 0 | AG89: 0 | AH89: 0 | AL89: 0 | AN89: 0 | AO89: 0 | AP89: 0 | AQ89: 0 | AR89: 0 | AT89: 0
B91: Section 2.5 | D91: Production Overhead | I91: Basis | J91: Direct Labour | L91: % of DL | M91: 0.28 | O91: =M91*DL -> 1.76361108 | P91: =IF($O$104=0,0,O91/$O$104) -> 0.03932607008
B92: Section 2.6 | D92: Scrap (Material & Production) | J92: Info only: already included in Material & Production Totals | O92: =SUM(T12,T35,W64) -> 0.752904 | P92: =IF($O$104=0,0,O92/$O$104) -> 0.01678871028
B94: Total Manufactured Cost (Sections 2.1 - 2.6) | O94: =SUM(O12,O35,O62,O64,O91) -> 38.67895365 | P94: =IF($O$104=0,0,O94/$O$104) -> 0.86248678
B96: Section 2.7 | D96: Other Costs / Overheads & Profit | O96: =SUBTOTAL(109,O97:O103) -> 6.166897377 | P96: =IF($O$104=0,0,O96/$O$104) -> 0.13751322
A97: General Overhead / SG&A | J97: Basis | K97: Value Added | M97: 0.19 | O97: =M97*(MC+DL+Setup+POH) -> 2.073944065 | P97: 0.0462460633
A98: Engineering / Design & Development | J98: Basis | K98: Manufactured Cost | M98: 0.03 | O98: =M98*O94 -> 1.160368609 | P98: 0.0258746034
A99: Tool Amortisation / Cavity Repl. | J99: ="Amount ["&LEFT($D$7,3)&"]" -> Amount [EUR] | L99: Quantity | O99: =IF(M99=0,0,K99/M99)*PUC -> 0 | P99: 0
A100: Other Amortisation | E100: Special Validation Tests | J100: ="Amount ["&LEFT($D$7,3)&"]" -> Amount [EUR] | K100: 12500 | L100: Quantity | M100: 2700000 | O100: =IF(M100=0,0,K100/M100)*PUC -> 0.462962963 | P100: 0.01032342909
A101: Profit (on Material & Components) | L101: % of Material & Purchased Components | O101: =M101*(O12+O35-T12-T35) -> 0 | P101: 0
A102: Profit (on Manufacturing) | L102: % of Value Added + Overheads | O102: =M102*(O64+POH+O97+O98) -> 0 | P102: 0
A103: Profit | L103: % of Manufactured Cost + Overheads | M103: 0.06 | O103: =M103*(O94+O97+O98-O92) -> 2.469621739 | P103: 0.05506912419 | Y103: 0
J104: ="Base Price ["&LEFT($D$7,3)&F7&"]" -> Base Price [EUR/100] | O104: =O94+O96 -> 44.84585102 | P104: 1 | Y104: <- Part Price without packaging/logistics
B106: Section 3 | D106: Packaging & Logistics
A107: Packaging | D107: Length [mm] | E107: Width [mm] | F107: Height [mm] | H107: Pcs/box | I107: ="Box Cost ["&LEFT($D$7,3)&"]" -> Box Cost [EUR] | J107: ="Other Box Costs ["&LEFT($D$7,3)&"]" -> Other Box Costs [EUR] | K107: Boxes/ Pallet | L107: ="Pallet Cost ["&LEFT($D$7,3)&"]" -> Pallet Cost [EUR] | M107: Pallet Type | O107: ="Total"&" ["&LEFT($D$7,3)&$F$7&"]" -> Total [EUR/100] | W107: 11 | Y107: No. of Loops | Z107: Parts/ Pallet | AA107: Part Wgt [g] | AB107: Empty Box [g] | AC107: Full Box [kg] | AD107: Pallet [kg] | AE107: Pallets /week
B108: One-way | D108: 400 | E108: 300 | F108: 200 | H108: 100 | I108: 0.55 | J108: 0.05 | K108: =IF(D108*E108*F108=0,1,MAX(ROUNDDOWN(V108/D108,0)*ROUNDDOWN(U108/E108,0),ROUNDDOWN(U108/D108,0)*ROUNDDOWN(V108/E108,0))*ROUNDDOWN(850/F108,0)) -> 32 | L108: 6.5 | O108: =IF(H108=0,0,((I108+J108)/H108+L108/S108)*PUC) -> 0.803125 | P108: =IF($O$104=0,0,O108/$O$104) -> 0.01790856861 | S108: =H108*K108 -> 3200 | T108: =+M108 -> 0 | U108: =IFERROR(VLOOKUP(T108,$T$117:$V$119,2,0),U117) -> 1200 | V108: =IFERROR(VLOOKUP(T108,$T$117:$V$119,3,0),V117) -> 800 | Z108: =H108*K108 -> 3200 | AA108: 44 | AB108: 150 | AC108: =(H108*$AA$108+AB108)/1000 -> 4.55 | AD108: =+AC108*K108+20 -> 165.6 | AE108: =IF(Z108=0,0,J4/Z108/48) -> 3.90625
B109: Returnable | D109: 400 | E109: 300 | F109: 200 | H109: 90 | I109: 9.5 | J109: 0.05 | K109: =IF(D109*E109*F109=0,1,MAX(ROUNDDOWN(V108/D109,0)*ROUNDDOWN(U109/E109,0),ROUNDDOWN(U109/D109,0)*ROUNDDOWN(V109/E109,0))*ROUNDDOWN(850/F109,0)) -> 32 | O109: =IF(H109=0,0,(I109/H109/IF(Y109=0,50,Y109)+J109/H109+L109/S109)*PUC) -> 0.2666666667 | P109: =IF($O$104=0,0,O109/$O$104) -> 0.005946295155 | S109: =H109*K109 -> 2880 | T109: =+M109 -> 0 | U109: =IFERROR(VLOOKUP(T109,$T$117:$V$120,2,0),1200) -> 1200 | V109: =IFERROR(VLOOKUP(T109,$T$117:$V$119,3,0),800) -> 800 | Z109: =+H109*K109 -> 2880 | AB109: 850 | AC109: =(H109*$AA$108+AB109)/1000 -> 4.81 | AD109: =+AC109*K109+20 -> 173.92 | AE109: =IF(Z109=0,0,J4/Z109/48) -> 4.340277778
J110: ="Base Price with"&IF(M110="none","out "," ")&"packaging" -> Base Price with packaging | M110: one-way | O110: =O104+IF(M110="none",0,VLOOKUP(M110,B$108:O$109,14,0)) -> 45.64897602 | S110: =IF(F112="one-way",S108,IF(F112="returnable",S109,0)) -> 3200 | T110: =IF($F112="one-way",H108,IF($F112="returnable",H109,0)) -> 100 | Y110: <- Part Price with specified packaging
A111: Logistics | C111: IncoTerm | D111: Location | F111: Packaging Type | H111: Pallet Stackability | I111: ="Transport ["&LEFT($D$7,3)&"/pallet]" -> Transport [EUR/pallet] | J111: ="Handling ["&LEFT($D$7,3)&"/box]" -> Handling [EUR/box] | K111: ="Taxes ["&LEFT($D$7,3)&"/pc]" -> Taxes [EUR/pc] | L111: ="Duties ["&LEFT($D$7,3)&"/pc]" -> Duties [EUR/pc] | M111: Return freight | O111: ="Total"&" ["&LEFT($D$7,3)&$F$7&"]" -> Total [EUR/100] | U111: Packaging | V111: Freight | W111: Handling | X111: Tax&Duty
A112: 1 | B112: =D6 -> FRM | C112: DAP | D112: FRM Warehouse | F112: one-way | H112: No | I112: 50 | J112: 0.6 | M112: n/a | O112: =IF(C112="FCA",0,I112/VLOOKUP(F112,$B$108:$S$109,18,0)+J112/VLOOKUP(F112,$B$108:$H$109,7,0)+K112+L112)*PUC -> 2.1625 | P112: =IF($O$104=0,0,O112/$O$104) -> 0.04822073727 | U112: =IF(F112="none",0,VLOOKUP(F112,B$108:O$109,14,0)*PUC) -> 80.3125 | V112: =IF(F112="none",0,I112/VLOOKUP(F112,$B$108:$S$109,18,0)*PUC) -> 1.5625 | W112: =IF(F112="none",0,J112/VLOOKUP(F112,$B$108:$H$109,7,0)*PUC) -> 0.6 | X112: =(K112+L112)*PUC -> 0 | Y112: <- Primary option for quotation
A113: 2 | B113: =E6 -> CFM | C113: DDU | D113: Shanghai | F113: one-way | H113: 2-high | I113: 120 | K113: 0.02 | L113: 0.005 | M113: included | O113: =IF(C113="FCA",0,I113/VLOOKUP(F113,$B$108:$S$109,18,0)+J113/VLOOKUP(F113,$B$108:$H$109,7,0)+K113+L113)*PUC -> 6.25 | P113: =IF($O$104=0,0,O113/$O$104) -> 0.1393662927 | U113: =IF(F113="none",0,VLOOKUP(F113,B$108:O$109,14,0)*PUC) -> 80.3125 | V113: =IF(F113="none",0,I113/VLOOKUP(F113,$B$108:$S$109,18,0)*PUC) -> 3.75 | W113: =IF(F113="none",0,J113/VLOOKUP(F113,$B$108:$H$109,7,0)*PUC) -> 0 | X113: =(K113+L113)*PUC -> 2.5
A114: 3 | B114: =F6 -> SVM | C114: FCA | D114: Hamburg | F114: returnable | H114: 3-high | I114: 50 | K114: 0.02 | L114: 0.005 | O114: =IF(C114="FCA",0,I114/VLOOKUP(F114,$B$108:$S$109,18,0)+J114/VLOOKUP(F114,$B$108:$H$109,7,0)+K114+L114)*PUC -> 0 | P114: =IF($O$104=0,0,O114/$O$104) -> 0 | U114: =IF(F114="none",0,VLOOKUP(F114,B$108:O$109,14,0)*PUC) -> 26.66666667 | V114: =IF(F114="none",0,I114/VLOOKUP(F114,$B$108:$S$109,18,0)*PUC) -> 1.736111111 | W114: =IF(F114="none",0,J114/VLOOKUP(F114,$B$108:$H$109,7,0)*PUC) -> 0 | X114: =(K114+L114)*PUC -> 2.5
A116: Supplier Reference | F116: Date | H116: 2016-11-30 | J116: Cost Breakdown Pricing Summary | O116: =LEFT($D$7,3)&F7 -> EUR/100 | T116: Pallet Type | U116: Length | V116: Width | Y116: <- Part Price including packaging/logistics
E117: Prepared by | H117: Neville Newman | J117: =IF(C112="","",C112&" "&D112&", "&IF(F112="none","without",F112)&" packaging") -> DAP FRM Warehouse, one-way packaging | O117: =IF(C112=0,0,SUM(O$104,O112,IF(F112="none",0,VLOOKUP(F112,B$108:O$109,14,0)))) -> 47.81147602 | T117: EUR-EPAL | U117: 1200 | V117: 800 | Y117: <- Primary option for quotation
J118: =IF(C113="","",C113&" "&D113&", "&IF(F113="none","without",F113)&" packaging") -> DDU Shanghai, one-way packaging | O118: =IF(C113=0,0,SUM(O$104,O113,IF(F113="none",0,VLOOKUP(F113,B$108:O$109,14,0)))) -> 51.89897602 | T118: North America | U118: 1219 | V118: 1143
J119: =IF(C114="","",C114&" "&D114&", "&IF(F114="none","without",F114)&" packaging") -> FCA Hamburg, returnable packaging | O119: =IF(C114=0,0,SUM(O$104,O114,IF(F114="none",0,VLOOKUP(F114,B$108:O$109,14,0)))) -> 45.11251769 | T119: Container | U119: 1170 | V119: 770
B121: Section 4 | D121: Investment / Tooling | M121: =LEFT($D$7,3) -> EUR | O121: =SUBTOTAL(109,S123:S130) -> 60000
B122: Description | F122: Qty | G122: Cav | H122: Lead Time [weeks] | I122: FOT [weeks] | J122: Warranty [parts] | K122: Tool Cap. [/week] | L122: Machine Cap. [/week] | M122: Max Capacity [p.A.] | O122: ="Tool Cost ["&LEFT($D$7,3)&"]" -> Tool Cost [EUR] | W122: 125
A123: 1 | B123: Injection tool | F123: 1 | G123: 4 | H123: 26 | I123: 18 | J123: 8000000 | O123: 50000 | S123: =F123*O123 -> 50000 | Z123: <- max. Leadtime | AC123: =MAX(H123:H130) -> 26
A124: 2 | B124: Assembly jigs | F124: 2 | O124: 5000 | S124: 10000
A125: 3 | S125: 0
A126: 4 | S126: 0
A127: 5 | S127: 0
A128: 6 | S128: 0
A129: 7 | S129: 0
A130: 8 | S130: 0
B132: Section 5 | D132: Productivity & Commercial terms
B133: Payment Terms
B134: Tool Payment Terms
B135: Spare Parts pricing at serial price after EoP | I135: years | L135: =A112&") "&B112&CHAR(10)&C112 -> 1) FRM DAP | M135: =A113&") "&B113&CHAR(10)&C113 -> 2) CFM DDU | O135: =A114&") "&B114&CHAR(10)&C114 -> 3) SVM FCA
B136: Overall committed capacity | E136: [/week]
E137: [/year] | J137: Base Price | K137: w/Packaging | L137: w/Logistics | M137: w/Logistics | O137: w/Logistics
J138: ="["&LEFT($D$7,3)&$F$7&"]" -> [EUR/100] | K138: ="["&LEFT($D$7,3)&$F$7&"]" -> [EUR/100] | L138: ="["&LEFT($D$7,3)&$F$7&"]" -> [EUR/100] | M138: ="["&LEFT($D$7,3)&$F$7&"]" -> [EUR/100] | O138: ="["&LEFT($D$7,3)&$F$7&"]" -> [EUR/100]
B139: Pricing acc. to breakdown | G139: Eff. Date | I139: Prod. Red | J139: =O104 -> 44.84585102 | K139: =O110 -> 45.64897602 | L139: =O117 -> 47.81147602 | M139: =O118 -> 51.89897602 | O139: =O119 -> 45.11251769
B140: Negotiated offer pricing | E140: SoP | G140: =J6 -> 00:00:00 | J140: =O104 -> 44.84585102 | K140: =O110 -> 45.64897602 | L140: =O117 -> 47.81147602 | M140: =O118 -> 51.89897602 | O140: =O119 -> 45.11251769 | S140: =MIN($J$5,1) -> 1 | T140: =+J140 -> 44.84585102 | U140: =+K140 -> 45.64897602 | V140: 47.81147602 | W140: 51.89897602 | X140: 0
E141: Year 2 | G141: =DATE(YEAR(G140)+1,10,1) -> 1901-10-01 | I141: 0.04 | J141: =J140*(1-$I141) -> 43.05201698 | K141: 43.82301698 | L141: 45.89901698 | M141: 49.82301698 | O141: =O140*(1-$I141) -> 43.30801698 | S141: =MIN(MAX($J$5-1,0),1) -> 1 | T141: =+J141 -> 43.05201698 | U141: 43.82301698 | V141: 45.89901698 | W141: 49.82301698 | X141: 0
E142: Year 3 | G142: =DATE(YEAR(G141)+1,MONTH(G141),DAY(G141)) -> 1902-10-01 | I142: 0.04 | J142: 41.3299363 | K142: 42.0700963 | L142: 44.0630563 | M142: 47.8300963 | O142: =O141*(1-$I142) -> 41.5756963 | S142: =MIN(MAX($J$5-2,0),1) -> 1 | T142: 41.3299363 | U142: 42.0700963 | V142: 44.0630563 | W142: 47.8300963 | X142: 0
E143: Year 4 | G143: =DATE(YEAR(G142)+1,MONTH(G142),DAY(G142)) -> 1903-10-01 | I143: 0.04 | J143: 39.67673885 | K143: 40.38729245 | L143: 42.30053405 | M143: 45.91689245 | O143: =O142*(1-$I143) -> 39.91266845 | S143: =MIN(MAX($J$5-3,0),1) -> 1 | T143: 39.67673885 | U143: 40.38729245 | V143: 42.30053405 | W143: 45.91689245 | X143: 0
E144: Year 5 | G144: =DATE(YEAR(G143)+1,MONTH(G143),DAY(G143)) -> 1904-10-01 | J144: 39.67673885 | K144: 40.38729245 | L144: 42.30053405 | M144: 45.91689245 | O144: =O143*(1-$I144) -> 39.91266845 | S144: =MIN(MAX($J$5-4,0),1) -> 0.5 | T144: 39.67673885 | U144: 40.38729245 | V144: 42.30053405 | W144: 45.91689245 | X144: 0
H145: SoP +5 | S145: =MIN(MAX($J$5-5,0),1) -> 0 | T145: =+T144 -> 39.67673885 | U145: =+U144 -> 40.38729245 | V145: 42.30053405 | W145: 45.91689245 | X145: 0
S146: =MIN(MAX($J$5-6,0),1) -> 0 | T146: =+T145 -> 39.67673885 | U146: 40.38729245 | V146: 42.30053405 | W146: 45.91689245 | X146: 0
B147: Tooling acc. to breakdown (Section 4) | I147: =LEFT($D$7,3) -> EUR | J147: =O121 -> 60000 | S147: =MIN(MAX($J$5-7,0),1) -> 0 | T147: =+T146 -> 39.67673885 | U147: =+U145 -> 40.38729245 | V147: 42.30053405 | W147: 45.91689245 | X147: 0
B148: Negotiated tooling amount | I148: =LEFT($D$7,3) -> EUR | J148: 57000 | X148: 0
B149: Additional (one time payment) | I149: =LEFT($D$7,3) -> EUR | J149: 3000 | Y149: <- Enter as positive number
B151: ="Total Cost ["&LEFT($D$7,3)&"]" -> Total Cost [EUR] | H151: ="Lifetime: "&MIN(J5,8)&" yrs" -> Lifetime: 4.5 yrs | I151: =LEFT($D$7,3) -> EUR | J151: =IF(J140=0,0,$J$4*SUMPRODUCT($S140:$S147,T140:T147)/PUC+$J$148-$J$149) -> 1186457.476 | K151: =IF(K140=0,0,$J$4*SUMPRODUCT($S140:$S147,U140:U147)/PUC+$J$148-$J$149) -> 1206738.168 | L151: =IF(L140=0,0,$J$4*SUMPRODUCT($S140:$S147,V140:V147)/PUC+$J$148-$J$149) -> 1261346.102 | M151: =IF(M140=0,0,$J$4*SUMPRODUCT($S140:$S147,W140:W147)/PUC+$J$148-$J$149) -> 1364564.568 | N151: =IF(N140=0,0,$J$4*SUMPRODUCT($S140:$S147,X140:X147)/PUC+$J$148-$J$149) -> 0 | O151: =IF(O140=0,0,$J$4*SUMPRODUCT($S140:$S147,W140:W147)/PUC+$J$148-$J$149) -> 1364564.568 | Y151: <- Max lifetime limited to 8 years
B152: Additional comments/benefits if sourced | G152: Additional reduction of 1% on all products more than 8 years in production.
F156: ="Pricing Overview: "&N7&" ("&N8&")" -> Pricing Overview: Cover Plate (800123400C) | L156: =LEFT($D$7,3) -> EUR
F157: Direct Material | L157: =SUM(L158:L160) -> 0.2591055467 | M157: =L157/$L$171 -> 0.57776927
F158: Material | L158: =(S12+U12)/PUC -> 0.202218 | M158: 0.4509179666
F159: Purchased Parts | L159: =(S35+U35)/PUC -> 0.04916 | M159: 0.1096199509
F160: Material OH | L160: =O62/PUC -> 0.0077275467 | M160: 0.01723135252
F161: Production Cost | L161: =SUM(L162:L166) -> 0.1201549508 | M161: 0.2679288001
F162: Machine Cost | L162: =S64/PUC -> 0.0252058 | M162: 0.05620542228
F163: Direct Labour | L163: =T64/PUC -> 0.06298611 | M163: 0.14045025
F164: Production OH | L164: =O91/PUC -> 0.0176361108 | M164: 0.03932606999
F165: Setup Costs | L165: =U64/PUC -> 0.00332693 | M165: 0.007418590386
F166: Tooling Costs | L166: =V64/PUC -> 0.011 | M166: 0.02452846746
F167: Scrap Costs | L167: =(O92)/PUC -> 0.00752904 | M167: 0.01678871024
F168: Overheads (SG&A, Eng) | L168: =(O97+O98)/PUC -> 0.03234312675 | M168: 0.07212066654 | Y168: ="<- "&TEXT(SUM(L160,L162,L164:L166,L168:L170)/$L$171,"0%")&" Contribution" -> <- 28% Contribution
F169: Special Costs | L169: =(O99+O100)/PUC -> 0.00462962963 | M169: 0.01032342906 | Y169: ="<- "&TEXT(SUM(L168:L170)/$L$171,"0%")&" Gross Margin" -> <- 14% Gross Margin
F170: Profit | L170: =(O101+O102+O103)/PUC -> 0.02469621739 | M170: 0.05506912406
F171: Base Price (without packaging/logistics) | L171: =SUM(L157,L161,L167,L168,L169,L170) -> 0.4484585113 | M171: 1
F172: ="Packaging ("&$F$112&")" -> Packaging (one-way) | L172: =IF(F112="none",0,VLOOKUP(F112,B$108:O$109,14,0)/PUC) -> 0.00803125
F173: ="Logistics ("&$C$112&" "&$D$112&")" -> Logistics (DAP FRM Warehouse) | L173: =O112/PUC -> 0.021625
F174: ="Final Price ("&J117&")" -> Final Price (DAP FRM Warehouse, one-way packaging) | L174: =SUM(L171:L173) -> 0.4781147613
S176: EUR: Euro
S177: USD: US Dollar
S178: ARS: Agentinian Peso
H179: ="Cost Breakdown - Base Price ["&LEFT(D7,3)&"]" -> Cost Breakdown - Base Price [EUR] | S179: AUD: Australian Dollar
H180: =LEFT(D7,3) -> EUR | S180: BRL: Brazilian Real
H181: Breakdown | I181: SoP | J181: Year 2 | K181: Year 3 | L181: Year 4 | M181: Year 5 | S181: CAD: Canadian Dollar
D182: Material | F182: DM | H182: =(S12+S35+O62)/PUC -> 0.2458875467 | S182: CHF: Swiss Franc
D183: Machine | F183: Prod | H183: =(S64+U64+O91+V64)/PUC -> 0.0571688408 | S183: CNY: Chinese Yuan
D184: Labour | F184: DL | H184: =T64/PUC -> 0.06298611 | S184: CZK: Czech Koruny
D185: Other Direct | F185: Other Direct | H185: =SUM(U12,U35,O92)/PUC -> 0.02074704 | S185: DKK: Danish Krone
D186: Overhead | F186: SG&A | H186: =SUM(O97:O98)/PUC -> 0.03234312675 | S186: GBP: Pound Sterling
D187: Special Costs | F187: Sp | H187: =SUM(O99,O100)/PUC -> 0.00462962963 | S187: HKD: Hong Kong Dollar
D188: Profit | F188: Profit | H188: =(O101+O102+O103)/PUC -> 0.02469621739 | S188: HUF: Hungarian Forint
H189: =SUM(H182:H188) -> 0.4484585113 | I189: =J140/PUC -> 0.4484585102 | J189: =IF(S141=0,#N/A,J141/PUC) -> 0.4305201698 | K189: =IF(S142=0,#N/A,J142/PUC) -> 0.413299363 | L189: =IF(S143=0,#N/A,J143/PUC) -> 0.3967673885 | M189: =IF(S144=0,#N/A,J144/PUC) -> 0.3967673885 | S189: IDR: Indonesian Ruphias
S190: INR: Indian Rupee
S191: JPY: Japanese Yen
S192: KRW: Korean Won
S193: MXN: Mexican Peso
S194: MYR: Malaysian Ringit
S195: NOK: Norwegian Krone
S196: NZD: New Zealand Dollar
S197: PHP: Philippine Peso
S198: PLN: Polish Zloty
S199: RON: Romanian New Lei
S200: RUB: Russian Rubel
S201: SEK: Swedish Kronor
S202: SGD: Singapore Dollar
S203: THB: Thai Baht
S204: TND: Tunisian Dinar
S205: TRY: Turkish New Lira
S206: TWD: Taiwanese New Dollar
S207: ZAR: South African Rand

Sheet Example_2
F1: Supplier Cost Breakdown | W1: CBDnew | X1: 123
A2: =CELL("Filename",A2) -> https://veoneer-my.sharepoint.com/personal/arnaud_soret_veoneer_com/Documents/Documents/PROCESS & TRAINING/A - PROCESS/VSM/[Supplier Cost Breakdown - Example.xlsm]Example_2 | K2: Version 2.01C | S2: =IF(O117>10000,9999,PUC) -> 100
B3: Section 1 | D3: Project Details | J3: Average | K3: Peak | S3: =IF(F7="/pc",1,IF(F7="/10",10,IF(F7="/100",100,IF(F7="/1000",1000)))) -> 100 | U3: ="Frt In "&CHAR(10)&"[%]" -> Frt In [%]
A4: Quotation No. /Rev | D4: AXX NN 2012/007 | I4: Est. Annual Qty | J4: 600000 | K4: 750000 | S4: 100 | U4: ="Frt In "&CHAR(10)&"[/UoM]" -> Frt In [/UoM]
A5: Autoliv Buyer | D5: Enny Baier | I5: Estimated Lifetime | J5: 4.5 | K5: years | U5: ="Frt In "&CHAR(10)&"["&LEFT(D$7,3)&"]" -> Frt In [EUR] | AS5: 1 | AT5: 1
A6: Production Locations | D6: FRM | E6: CFM | F6: SVM | I6: Start of Production | L6: Supplier | M6: 12345 | N6: Perfect PI HCC | S6: Delete when hiding | W6: Yes | X6: FALSE
A7: Currency | D7: EUR: Euro | F7: /100 | I7: PPAP Date | M7: Description | N7: Cover Plate | S7: Locked Currency | U7: EUR: Euro | W7: =IF(X7=TRUE,"Yes","No") -> Yes | X7: TRUE
I8: FOT Date | M8: Part No. | N8: 800123400C | S8: Advanced Mode | U8: FALSE | V8: NA | W8: =IF(V8=6,"Yes","No") -> No
A9: Additional Information | D9: This is an example only to demonstrate the calculation | L9: Drawing / Rev | N9: 8001234A01
L10: Project / Customer | N10: PLPX / Various | S10: Size | V10: =W13+W36+W65 -> 124 | W10: =W13+W36+W65+W122 -> 249
U11: =IF(RIGHT(M$13,2)="%]","P","A") -> P
B12: Section 2.1 | D12: Raw Material | M12: =U12 -> 1.1058 | N12: =T12 -> 0.571529 | O12: =SUBTOTAL(109,O14:O33) -> 20.793329 | P12: =IF($O$104=0,0,O12/$O$104) -> 0.4636622681 | S12: =SUBTOTAL(109,S14:S33) -> 19.116 | T12: =SUBTOTAL(109,T14:T33) -> 0.571529 | U12: =SUBTOTAL(109,U14:U33) -> 1.1058 | V12: =SUBTOTAL(109,V14:V33) -> 20.793329
B13: Description | E13: Specification | G13: UoM | H13: Nett Amount | I13: Gross Amount | J13: Qty (optional) | K13: ="Unit Cost ["&LEFT($D$7,3)&"]" -> Unit Cost [EUR] | L13: Waste Resale | M13: Frt in [%] | N13: Scrap [%] | O13: ="Total"&" ["&LEFT($D$7,3)&$F$7&"]" -> Total [EUR/100] | S13: Material | T13: Scrap | U13: Frt in | V13: Total | W13: 16
A14: 1 | B14: Plastic POM | E14: Delrin 100 P | G14: kg | H14: 0.026 | I14: 0.045 | J14: 0.98 | K14: 3.6 | M14: 0.05 | N14: 0.03 | O14: =IF(J14="",1,J14)*(I14*(1+N14)*(K14+IF(RIGHT(M$13,2)="%]",(K14*M14),M14)-L14)+H14*L14)*PUC -> 17.169894 | P14: =IF($O$104=0,0,O14/$O$104) -> 0.3828647156 | S14: =IF(J14="",1,J14)*(I14*(K14-L14)+(H14*L14))*PUC -> 15.876 | T14: =IF(J14="",1,J14)*(K14+IF(RIGHT(M$13,2)="%]",(K14*M14),M14)-L14)*(I14*N14)*PUC -> 0.500094 | U14: =V14-S14-T14 -> 0.7938 | V14: =IF(J14="",1,J14)*(I14*(1+N14)*(K14+IF(RIGHT(M$13,2)="%]",(K14*M14),M14)-L14)+H14*L14)*PUC -> 17.169894
A15: 2 | B15: Masterbatch | E15: Blue | G15: kg | H15: 0.026 | I15: 0.045 | J15: 0.02 | K15: 11 | M15: 0.05 | N15: 0.03 | O15: 1.070685 | P15: 0.02387478386 | S15: 0.99 | T15: 0.031185 | U15: =V15-S15-T15 -> 0.0495 | V15: 1.070685
A16: 3 | B16: Steel | E16: DC54D | G16: kg | H16: 0.02 | I16: 0.035 | K16: 0.75 | L16: 0.25 | M16: 0.1 | N16: 0.02 | O16: 2.55275 | P16: 0.05692276859 | S16: 2.25 | T16: 0.04025 | U16: 0.2625 | V16: 2.55275
A17: 4 | O17: 0 | P17: 0 | S17: 0 | T17: 0 | U17: 0 | V17: 0
A18: 5 | O18: =IF(J18="",1,J18)*(I18*(1+N18)*(K18+IF(RIGHT(M$13,2)="%]",(K18*M18),M18)-L18)+H18*L18)*PUC -> 0 | P18: 0 | S18: =IF(J18="",1,J18)*(I18*(K18-L18)+(H18*L18))*PUC -> 0 | T18: =IF(J18="",1,J18)*(K18+IF(RIGHT(M$13,2)="%]",(K18*M18),M18)-L18)*(I18*N18)*PUC -> 0 | U18: 0 | V18: =IF(J18="",1,J18)*(I18*(1+N18)*(K18+IF(RIGHT(M$13,2)="%]",(K18*M18),M18)-L18)+H18*L18)*PUC -> 0
A19: 6 | O19: 0 | P19: 0 | S19: 0 | T19: 0 | U19: 0 | V19: 0
A20: 7 | O20: 0 | P20: 0 | S20: 0 | T20: 0 | U20: 0 | V20: 0
A21: 8 | O21: 0 | P21: 0 | S21: 0 | T21: 0 | U21: 0 | V21: 0
A22: 9 | O22: 0 | P22: 0 | S22: 0 | T22: 0 | U22: 0 | V22: 0 | W22: 125
A23: 10 | O23: 0 | P23: 0 | S23: 0 | T23: 0 | U23: 0 | V23: 0
A24: 11 | O24: =IF(J24="",1,J24)*(I24*(1+N24)*(K24+IF(RIGHT(M$13,2)="%]",(K24*M24),M24)-L24)+H24*L24)*PUC -> 0 | P24: 0 | S24: =IF(J24="",1,J24)*(I24*(K24-L24)+(H24*L24))*PUC -> 0 | T24: =IF(J24="",1,J24)*(K24+IF(RIGHT(M$13,2)="%]",(K24*M24),M24)-L24)*(I24*N24)*PUC -> 0 | U24: 0 | V24: =IF(J24="",1,J24)*(I24*(1+N24)*(K24+IF(RIGHT(M$13,2)="%]",(K24*M24),M24)-L24)+H24*L24)*PUC -> 0
A25: 12 | O25: 0 | P25: 0 | S25: 0 | T25: 0 | U25: 0 | V25: 0
A26: 13 | O26: =IF(J26="",1,J26)*(I26*(1+N26)*(K26+IF(RIGHT(M$13,2)="%]",(K26*M26),M26)-L26)+H26*L26)*PUC -> 0 | P26: 0 | S26: =IF(J26="",1,J26)*(I26*(K26-L26)+(H26*L26))*PUC -> 0 | T26: =IF(J26="",1,J26)*(K26+IF(RIGHT(M$13,2)="%]",(K26*M26),M26)-L26)*(I26*N26)*PUC -> 0 | U26: 0 | V26: =IF(J26="",1,J26)*(I26*(1+N26)*(K26+IF(RIGHT(M$13,2)="%]",(K26*M26),M26)-L26)+H26*L26)*PUC -> 0
A27: 14 | O27: 0 | P27: 0 | S27: 0 | T27: 0 | U27: 0 | V27: 0
A28: 15 | O28: 0 | P28: 0 | S28: 0 | T28: 0 | U28: 0 | V28: 0
A29: 16 | O29: 0 | P29: 0 | S29: 0 | T29: 0 | U29: 0 | V29: 0
A30: 17 | O30: 0 | P30: 0 | S30: 0 | T30: 0 | U30: 0 | V30: 0
A31: 18 | O31: 0 | P31: 0 | S31: 0 | T31: 0 | U31: 0 | V31: 0
A32: 19 | O32: 0 | P32: 0 | S32: 0 | T32: 0 | U32: 0 | V32: 0
A33: 20 | O33: 0 | P33: 0 | S33: 0 | T33: 0 | U33: 0 | V33: 0
U34: =IF(RIGHT(M$36,2)="%]","P","A") -> P
B35: Section 2.2 | D35: Purchased Components (& Outsourced Processes) | M35: =U35 -> 0.216 | N35: =T35 -> 0.04916 | O35: =SUBTOTAL(109,O37:O60) -> 4.96516 | P35: =IF($O$104=0,0,O35/$O$104) -> 0.1107161507 | S35: =SUBTOTAL(109,S37:S60) -> 4.7 | T35: =SUBTOTAL(109,T37:T60) -> 0.04916 | U35: =SUBTOTAL(109,U37:U60) -> 0.216 | V35: =SUBTOTAL(109,V37:V60) -> 4.96516 | W35: 4
B36: Description | E36: Part Number (ALV Drawing) | G36: UoM | H36: Sub-Supplier Name | J36: Qty | K36: ="Unit Cost ["&LEFT($D$7,3)&"]" -> Unit Cost [EUR] | M36: Frt in [%] | N36: Scrap [%] | O36: ="Total"&" ["&LEFT($D$7,3)&$F$7&"]" -> Total [EUR/100] | S36: Material | T36: Scrap | U36: Frt in | V36: Total | W36: 39
A37: 1 | B37: Screw M3x8 | G37: pc | H37: Metalworks | J37: 2 | K37: 0.018 | M37: 0.06 | N37: 0.01 | O37: =J37*(K37+IF(RIGHT(M$36,2)="%]",(K37*M37),M37))*(1+N37)*PUC -> 3.85416 | P37: =IF($O$104=0,0,O37/$O$104) -> 0.08594239851 | S37: =J37*K37*PUC -> 3.6 | T37: =J37*K37*(1+M37)*N37*PUC -> 0.03816 | U37: =V37-S37-T37 -> 0.216 | V37: =J37*(K37+IF(RIGHT(M$36,2)="%]",(K37*M37),M37))*(1+N37)*PUC -> 3.85416
A38: 2 | B38: Label | G38: pc | H38: Stickit Labels | J38: 1 | K38: 0.007 | N38: 0.01 | O38: 0.707 | P38: 0.01576511503 | S38: 0.7 | T38: 0.007 | U38: -1.05818132e-16 | V38: 0.707
A39: 3 | B39: Surface Treatment Steel | G39: kg | H39: Perfect Surface | J39: 0.02 | K39: 0.2 | N39: 0.01 | O39: 0.404 | P39: 0.00900863716 | S39: 0.4 | T39: 0.004 | U39: 0 | V39: 0.404
A40: 4 | O40: 0 | P40: 0 | S40: 0 | T40: 0 | U40: 0 | V40: 0
A41: 5 | O41: 0 | P41: 0 | S41: 0 | T41: 0 | U41: 0 | V41: 0
A42: 6 | O42: 0 | P42: 0 | S42: 0 | T42: 0 | U42: 0 | V42: 0
A43: 7 | O43: 0 | P43: 0 | S43: 0 | T43: 0 | U43: 0 | V43: 0
A44: 8 | O44: 0 | P44: 0 | S44: 0 | T44: 0 | U44: 0 | V44: 0
A45: 9 | O45: 0 | P45: 0 | S45: 0 | T45: 0 | U45: 0 | V45: 0
A46: 10 | O46: =J46*(K46+IF(RIGHT(M$36,2)="%]",(K46*M46),M46))*(1+N46)*PUC -> 0 | P46: 0 | S46: =J46*K46*PUC -> 0 | T46: =J46*K46*(1+M46)*N46*PUC -> 0 | U46: 0 | V46: =J46*(K46+IF(RIGHT(M$36,2)="%]",(K46*M46),M46))*(1+N46)*PUC -> 0
A47: 11 | O47: 0 | P47: 0 | S47: 0 | T47: 0 | U47: 0 | V47: 0
A48: 12 | O48: 0 | P48: 0 | S48: 0 | T48: 0 | U48: 0 | V48: 0
A49: 13 | O49: 0 | P49: 0 | S49: 0 | T49: 0 | U49: 0 | V49: 0
A50: 14 | O50: 0 | P50: 0 | S50: 0 | T50: 0 | U50: 0 | V50: 0
A51: 15 | O51: 0 | P51: 0 | S51: 0 | T51: 0 | U51: 0 | V51: 0
A52: 16 | O52: 0 | P52: 0 | S52: 0 | T52: 0 | U52: 0 | V52: 0
A53: 17 | O53: 0 | P53: 0 | S53: 0 | T53: 0 | U53: 0 | V53: 0
A54: 18 | O54: 0 | P54: 0 | S54: 0 | T54: 0 | U54: 0 | V54: 0
A55: 19 | O55: 0 | P55: 0 | S55: 0 | T55: 0 | U55: 0 | V55: 0
A56: 20 | O56: 0 | P56: 0 | S56: 0 | T56: 0 | U56: 0 | V56: 0
A57: 21 | O57: 0 | P57: 0 | S57: 0 | T57: 0 | U57: 0 | V57: 0
A58: 22 | O58: 0 | P58: 0 | S58: 0 | T58: 0 | U58: 0 | V58: 0
A59: 23 | O59: 0 | P59: 0 | S59: 0 | T59: 0 | U59: 0 | V59: 0
A60: 24 | O60: 0 | P60: 0 | S60: 0 | T60: 0 | U60: 0 | V60: 0
B62: Section 2.3 | D62: Material & Purchased Component Overhead | L62: % of Section 2.1, 2.2 | M62: 0.03 | O62: =M62*(O12+O35) -> 0.77275467 | P62: =IF($O$104=0,0,O62/$O$104) -> 0.01723135256
B64: Section 2.4 | D64: Production | G64: MC: | H64: =MC -> 2.52058 | I64: DL: | J64: =DL -> 6.298611 | K64: Setup: | L64: =Setup -> 0.332693 | M64: =ROUND(TM,3) -> 1.1 | N64: =ROUND(W64,3) -> 0.132 | O64: =SUBTOTAL(109,O66:O89) -> 10.3840989 | P64: =IF($O$104=0,0,O64/$O$104) -> 0.2315509386 | S64: =ROUND(SUBTOTAL(109,S66:S89),6) -> 2.52058 | T64: =ROUND(SUBTOTAL(109,T66:T89),6) -> 6.298611 | U64: =ROUND(SUBTOTAL(109,U66:U89),6) -> 0.332693 | V64: =ROUND(SUBTOTAL(109,V66:V89),6) -> 1.1 | W64: =ROUND(SUBTOTAL(109,W66:W89),6) -> 0.132215 | Y64: Std Capacity Calculation (for Contract review) | AJ64: Max Capacity | AN64: Cycle time conversions
B65: Process Description | D65: Machine Type | E65: Cycle time [sec] | F65: Pcs/cycle (cavities) | H65: ="Machine ["&LEFT($D$7,3)&"/hr]" -> Machine [EUR/hr] | I65: ="Operator ["&LEFT($D$7,3)&"/hr]" -> Operator [EUR/hr] | J65: No. of Operators | K65: ="Setup Cost ["&LEFT($D$7,3)&"]" -> Setup Cost [EUR] | L65: Batch Size | M65: Tool Maint | N65: Scrap [%] | O65: ="Total"&" ["&LEFT($D$7,3)&$F$7&"]" -> Total [EUR/100] | S65: Machine | T65: Operator | U65: Setup | V65: Tool Maint. | W65: 69 | Y65: Hrs /shift | Z65: Shifts/ week | AA65: Oper. Eff. | AB65: Setup [hrs] | AC65: Setup Loss | AD65: Weekly Capacity | AE65: Weeks /year | AF65: Annual Capacity | AG65: Calc O.E.E. | AH65: Capacity Margin | AJ65: Hrs /shift | AK65: Shifts/ week | AL65: Weekly Capacity | AN65: min | AO65: SPM | AP65: Pcs /min | AQ65: Pcs /hr | AR65: Pcs/hr (incl Eff.) | AS65: Weeks/ year | AT65: Annual Capacity
A66: 1 | B66: Injection Moulding | D66: 100t | E66: 25 | F66: 4 | H66: =HourlyRate!G34 -> 8.038543301 | I66: 30 | J66: 0.1 | K66: =AB66*(H66+I66) -> 114.1156299 | L66: =J4/10 -> 60000 | M66: 0.008 | N66: 0.03 | O66: =(IF(F66=0,0,(E66/3600*J66*I66+E66/3600*H66)/F66*(1+N66))+IF(L66=0,0,K66/L66)+M66)*PUC -> 2.964098897 | P66: =IF($O$104=0,0,O66/$O$104) -> 0.06609527591 | S66: =IF(F66=0,0,(E66/3600*H66)/F66)*PUC -> 1.395580434 | T66: =IF(F66=0,0,(E66/3600*J66*I66)/F66)*PUC -> 0.5208333333 | U66: =IF(L66=0,0,K66/L66)*PUC -> 0.1901927165 | V66: =M66*PUC -> 0.8 | W66: =N66*(S66+T66) -> 0.05749241302 | Y66: 8 | Z66: 15 | AA66: 0.85 | AB66: 3 | AC66: =IF(L66*F66*AA66=0,0,AB66/(L66*E66/AA66/F66/3600+AB66)) -> 0.0238950492 | AD66: =IF(E66=0,0,Z66*Y66*3600/E66*F66*AA66)*(1-AC66)*(1-N66) -> 55627.67453 | AE66: 48 | AF66: =AD66*AE66 -> 2670128.377 | AG66: =AA66*(1-N66)*(1-AC66) -> 0.8047985319 | AH66: =IF($J$4*AD66=0,0,AF66/$J$4-1) -> 3.450213962 | AL66: =IF(E66=0,0,AK66*AJ66*3600/E66*F66*AA66)*(1-AC66)*(1-N66) -> 0 | AN66: =IF(F66=0,0,+E66/60/F66) -> 0.1041666667 | AO66: =IF(E66=0,0,60/E66) -> 2.4 | AP66: =AO66*F66 -> 9.6 | AQ66: =IF(E66=0,0,3600/E66*F66) -> 576 | AR66: =AQ66*AA66 -> 489.6 | AT66: =AL66*AS66 -> 0
A67: 2 | B67: Stamping | D67: 350t | E67: 1 | F67: 2 | H67: 25 | I67: 32 | J67: 0.5 | K67: =AB67*(H67+I67) -> 85.5 | L67: =J4/10 -> 60000 | M67: 0.003 | N67: 0.02 | O67: =(IF(F67=0,0,(E67/3600*J67*I67+E67/3600*H67)/F67*(1+N67))+IF(L67=0,0,K67/L67)+M67)*PUC -> 1.023333333 | P67: =IF($O$104=0,0,O67/$O$104) -> 0.02281890766 | S67: 0.3472222222 | T67: 0.2222222222 | U67: 0.1425 | V67: 0.3 | W67: =N67*(S67+T67) -> 0.01138888889 | Y67: 7.5 | Z67: 15 | AA67: 0.7 | AB67: 1.5 | AC67: =IF(L67*F67*AA67=0,0,AB67/(L67*E67/AA67/F67/3600+AB67)) -> 0.1119005329 | AD67: =IF(E67=0,0,Z67*Y67*3600/E67*F67*AA67)*(1-AC67)*(1-N67) -> 493481.3499 | AE67: 48 | AF67: =AD67*AE67 -> 23687104.8 | AG67: =AA67*(1-N67)*(1-AC67) -> 0.6092362345 | AH67: =IF($J$4*AD67=0,0,AF67/$J$4-1) -> 38.47850799 | AL67: 0 | AN67: 0.008333333333 | AO67: 60 | AP67: 120 | AQ67: 7200 | AR67: 5040 | AT67: =AL67*AS67 -> 0
A68: 3 | B68: Assembly | E68: 4 | F68: 1 | H68: 7 | I68: 25 | J68: 2 | N68: 0.01 | O68: =(IF(F68=0,0,(E68/3600*J68*I68+E68/3600*H68)/F68*(1+N68))+IF(L68=0,0,K68/L68)+M68)*PUC -> 6.396666667 | P68: =IF($O$104=0,0,O68/$O$104) -> 0.142636755 | S68: 0.7777777778 | T68: 5.555555556 | U68: 0 | V68: 0 | W68: 0.06333333333 | Y68: 7.5 | Z68: 15 | AA68: 0.85 | AC68: =IF(L68*F68*AA68=0,0,AB68/(L68*E68/AA68/F68/3600+AB68)) -> 0 | AD68: =IF(E68=0,0,Z68*Y68*3600/E68*F68*AA68)*(1-AC68)*(1-N68) -> 85201.875 | AE68: 48 | AF68: =AD68*AE68 -> 4089690 | AG68: =AA68*(1-N68)*(1-AC68) -> 0.8415 | AH68: =IF($J$4*AD68=0,0,AF68/$J$4-1) -> 5.81615 | AL68: 0 | AN68: 0.06666666667 | AO68: 15 | AP68: 15 | AQ68: 900 | AR68: 765 | AT68: =AL68*AS68 -> 0
A69: 4 | O69: =(IF(F69=0,0,(E69/3600*J69*I69+E69/3600*H69)/F69*(1+N69))+IF(L69=0,0,K69/L69)+M69)*PUC -> 0 | P69: =IF($O$104=0,0,O69/$O$104) -> 0 | S69: 0 | T69: 0 | U69: 0 | V69: 0 | W69: 0 | AC69: 0 | AD69: 0 | AF69: 0 | AG69: 0 | AH69: 0 | AL69: 0 | AN69: 0 | AO69: 0 | AP69: 0 | AQ69: 0 | AR69: 0
A70: 5 | O70: 0 | P70: 0 | S70: 0 | T70: 0 | U70: 0 | V70: 0 | W70: 0 | AC70: 0 | AD70: 0 | AF70: 0 | AG70: 0 | AH70: 0 | AL70: 0 | AN70: 0 | AO70: 0 | AP70: 0 | AQ70: 0 | AR70: 0
A71: 6 | O71: 0 | P71: 0 | S71: 0 | T71: 0 | U71: 0 | V71: 0 | W71: 0 | AC71: 0 | AD71: 0 | AF71: 0 | AG71: 0 | AH71: 0 | AL71: 0 | AN71: 0 | AO71: 0 | AP71: 0 | AQ71: 0 | AR71: 0
A72: 7 | O72: 0 | P72: 0 | S72: 0 | T72: 0 | U72: 0 | V72: 0 | W72: 0 | AC72: 0 | AD72: 0 | AF72: 0 | AG72: 0 | AH72: 0 | AL72: 0 | AN72: 0 | AO72: 0 | AP72: 0 | AQ72: 0 | AR72: 0
A73: 8 | O73: 0 | P73: 0 | S73: 0 | T73: 0 | U73: 0 | V73: 0 | W73: 0 | AC73: 0 | AD73: 0 | AF73: 0 | AG73: 0 | AH73: 0 | AL73: 0 | AN73: 0 | AO73: 0 | AP73: 0 | AQ73: 0 | AR73: 0
A74: 9 | O74: 0 | P74: 0 | S74: 0 | T74: 0 | U74: 0 | V74: 0 | W74: 0 | AC74: 0 | AD74: 0 | AF74: 0 | AG74: 0 | AH74: 0 | AL74: 0 | AN74: 0 | AO74: 0 | AP74: 0 | AQ74: 0 | AR74: 0
A75: 10 | O75: 0 | P75: 0 | S75: 0 | T75: 0 | U75: 0 | V75: 0 | W75: 0 | AC75: 0 | AD75: 0 | AF75: 0 | AG75: 0 | AH75: 0 | AL75: 0 | AN75: 0 | AO75: 0 | AP75: 0 | AQ75: 0 | AR75: 0
A76: 11 | O76: 0 | P76: 0 | S76: 0 | T76: 0 | U76: 0 | V76: 0 | W76: 0 | AC76: 0 | AD76: 0 | AF76: 0 | AG76: 0 | AH76: 0 | AL76: 0 | AN76: 0 | AO76: 0 | AP76: 0 | AQ76: 0 | AR76: 0
A77: 12 | O77: 0 | P77: 0 | S77: 0 | T77: 0 | U77: 0 | V77: 0 | W77: 0 | AC77: 0 | AD77: 0 | AF77: 0 | AG77: 0 | AH77: 0 | AL77: 0 | AN77: 0 | AO77: 0 | AP77: 0 | AQ77: 0 | AR77: 0 | AT77: =AL77*AS77 -> 0
A78: 13 | O78: 0 | P78: 0 | S78: 0 | T78: 0 | U78: 0 | V78: 0 | W78: 0 | AC78: 0 | AD78: 0 | AF78: 0 | AG78: 0 | AH78: 0 | AL78: 0 | AN78: 0 | AO78: 0 | AP78: 0 | AQ78: 0 | AR78: 0 | AT78: =AL78*AS78 -> 0
A79: 14 | O79: 0 | P79: 0 | S79: 0 | T79: 0 | U79: 0 | V79: 0 | W79: 0 | AC79: 0 | AD79: 0 | AF79: 0 | AG79: 0 | AH79: 0 | AL79: 0 | AN79: 0 | AO79: 0 | AP79: 0 | AQ79: 0 | AR79: 0 | AT79: =AL79*AS79 -> 0
A80: 15 | O80: 0 | P80: 0 | S80: 0 | T80: 0 | U80: 0 | V80: 0 | W80: 0 | AC80: 0 | AD80: 0 | AF80: 0 | AG80: 0 | AH80: 0 | AL80: 0 | AN80: 0 | AO80: 0 | AP80: 0 | AQ80: 0 | AR80: 0
A81: 16 | O81: 0 | P81: 0 | S81: 0 | T81: 0 | U81: 0 | V81: 0 | W81: 0 | AC81: 0 | AD81: 0 | AF81: 0 | AG81: 0 | AH81: 0 | AL81: 0 | AN81: 0 | AO81: 0 | AP81: 0 | AQ81: 0 | AR81: 0
A82: 17 | O82: 0 | P82: 0 | S82: 0 | T82: 0 | U82: 0 | V82: 0 | W82: 0 | AC82: 0 | AD82: 0 | AF82: 0 | AG82: 0 | AH82: 0 | AL82: 0 | AN82: 0 | AO82: 0 | AP82: 0 | AQ82: 0 | AR82: 0
A83: 18 | O83: 0 | P83: 0 | S83: 0 | T83: 0 | U83: 0 | V83: 0 | W83: 0 | AC83: 0 | AD83: 0 | AF83: 0 | AG83: 0 | AH83: 0 | AL83: 0 | AN83: 0 | AO83: 0 | AP83: 0 | AQ83: 0 | AR83: 0
A84: 19 | O84: 0 | P84: 0 | S84: 0 | T84: 0 | U84: 0 | V84: 0 | W84: 0 | AC84: 0 | AD84: 0 | AF84: 0 | AG84: 0 | AH84: 0 | AL84: 0 | AN84: 0 | AO84: 0 | AP84: 0 | AQ84: 0 | AR84: 0 | AT84: =AL84*AS84 -> 0
A85: 20 | O85: 0 | P85: 0 | S85: 0 | T85: 0 | U85: 0 | V85: 0 | W85: 0 | AC85: 0 | AD85: 0 | AF85: 0 | AG85: 0 | AH85: 0 | AL85: 0 | AN85: 0 | AO85: 0 | AP85: 0 | AQ85: 0 | AR85: 0 | AT85: 0
A86: 21 | O86: 0 | P86: 0 | S86: 0 | T86: 0 | U86: 0 | V86: 0 | W86: 0 | AC86: 0 | AD86: 0 | AF86: 0 | AG86: 0 | AH86: 0 | AL86: 0 | AN86: 0 | AO86: 0 | AP86: 0 | AQ86: 0 | AR86: 0 | AT86: 0
A87: 22 | O87: 0 | P87: 0 | S87: 0 | T87: 0 | U87: 0 | V87: 0 | W87: 0 | AC87: 0 | AD87: 0 | AF87: 0 | AG87: 0 | AH87: 0 | AL87: 0 | AN87: 0 | AO87: 0 | AP87: 0 | AQ87: 0 | AR87: 0 | AT87: 0
A88: 23 | O88: 0 | P88: 0 | S88: 0 | T88: 0 | U88: 0 | V88: 0 | W88: 0 | AC88: 0 | AD88: 0 | AF88: 0 | AG88: 0 | AH88: 0 | AL88: 0 | AN88: 0 | AO88: 0 | AP88: 0 | AQ88: 0 | AR88: 0 | AT88: 0
A89: 24 | O89: 0 | P89: 0 | S89: 0 | T89: 0 | U89: 0 | V89: 0 | W89: 0 | AC89: 0 | AD89: 0 | AF89: 0 | AG89: 0 | AH89: 0 | AL89: 0 | AN89: 0 | AO89: 0 | AP89: 0 | AQ89: 0 | AR89: 0 | AT89: 0
B91: Section 2.5 | D91: Production Overhead | I91: Basis | J91: Direct Labour | L91: % of DL | M91: 0.28 | O91: =M91*DL -> 1.76361108 | P91: =IF($O$104=0,0,O91/$O$104) -> 0.03932607008
B92: Section 2.6 | D92: Scrap (Material & Production) | J92: Info only: already included in Material & Production Totals | O92: =SUM(T12,T35,W64) -> 0.752904 | P92: =IF($O$104=0,0,O92/$O$104) -> 0.01678871028
B94: Total Manufactured Cost (Sections 2.1 - 2.6) | O94: =SUM(O12,O35,O62,O64,O91) -> 38.67895365 | P94: =IF($O$104=0,0,O94/$O$104) -> 0.86248678
B96: Section 2.7 | D96: Other Costs / Overheads & Profit | O96: =SUBTOTAL(109,O97:O103) -> 6.166897377 | P96: =IF($O$104=0,0,O96/$O$104) -> 0.13751322
A97: General Overhead / SG&A | J97: Basis | K97: Value Added | M97: 0.19 | O97: =M97*(MC+DL+Setup+POH) -> 2.073944065 | P97: 0.0462460633
A98: Engineering / Design & Development | J98: Basis | K98: Manufactured Cost | M98: 0.03 | O98: =M98*O94 -> 1.160368609 | P98: 0.0258746034
A99: Tool Amortisation / Cavity Repl. | J99: ="Amount ["&LEFT($D$7,3)&"]" -> Amount [EUR] | L99: Quantity | O99: =IF(M99=0,0,K99/M99)*PUC -> 0 | P99: 0
A100: Other Amortisation | E100: Special Validation Tests | J100: ="Amount ["&LEFT($D$7,3)&"]" -> Amount [EUR] | K100: 12500 | L100: Quantity | M100: 2700000 | O100: =IF(M100=0,0,K100/M100)*PUC -> 0.462962963 | P100: 0.01032342909
A101: Profit (on Material & Components) | L101: % of Material & Purchased Components | O101: =M101*(O12+O35-T12-T35) -> 0 | P101: 0
A102: Profit (on Manufacturing) | L102: % of Value Added + Overheads | O102: =M102*(O64+POH+O97+O98) -> 0 | P102: 0
A103: Profit | L103: % of Manufactured Cost + Overheads | M103: 0.06 | O103: =M103*(O94+O97+O98-O92) -> 2.469621739 | P103: 0.05506912419 | Y103: 0
J104: ="Base Price ["&LEFT($D$7,3)&F7&"]" -> Base Price [EUR/100] | O104: =O94+O96 -> 44.84585102 | P104: 1 | Y104: <- Part Price without packaging/logistics
B106: Section 3 | D106: Packaging & Logistics
A107: Packaging | D107: Length [mm] | E107: Width [mm] | F107: Height [mm] | H107: Pcs/box | I107: ="Box Cost ["&LEFT($D$7,3)&"]" -> Box Cost [EUR] | J107: ="Other Box Costs ["&LEFT($D$7,3)&"]" -> Other Box Costs [EUR] | K107: Boxes/ Pallet | L107: ="Pallet Cost ["&LEFT($D$7,3)&"]" -> Pallet Cost [EUR] | M107: Pallet Type | O107: ="Total"&" ["&LEFT($D$7,3)&$F$7&"]" -> Total [EUR/100] | W107: 11 | Y107: No. of Loops | Z107: Parts/ Pallet | AA107: Part Wgt [g] | AB107: Empty Box [g] | AC107: Full Box [kg] | AD107: Pallet [kg] | AE107: Pallets /week
B108: One-way | D108: 400 | E108: 300 | F108: 200 | H108: 100 | I108: 0.55 | J108: 0.05 | K108: =IF(D108*E108*F108=0,1,MAX(ROUNDDOWN(V108/D108,0)*ROUNDDOWN(U108/E108,0),ROUNDDOWN(U108/D108,0)*ROUNDDOWN(V108/E108,0))*ROUNDDOWN(850/F108,0)) -> 32 | L108: 6.5 | O108: =IF(H108=0,0,((I108+J108)/H108+L108/S108)*PUC) -> 0.803125 | P108: =IF($O$104=0,0,O108/$O$104) -> 0.01790856861 | S108: =H108*K108 -> 3200 | T108: =+M108 -> 0 | U108: =IFERROR(VLOOKUP(T108,$T$117:$V$119,2,0),U117) -> 1200 | V108: =IFERROR(VLOOKUP(T108,$T$117:$V$119,3,0),V117) -> 800 | Z108: =H108*K108 -> 3200 | AA108: 44 | AB108: 150 | AC108: =(H108*$AA$108+AB108)/1000 -> 4.55 | AD108: =+AC108*K108+20 -> 165.6 | AE108: =IF(Z108=0,0,J4/Z108/48) -> 3.90625
B109: Returnable | D109: 400 | E109: 300 | F109: 200 | H109: 90 | I109: 9.5 | J109: 0.05 | K109: =IF(D109*E109*F109=0,1,MAX(ROUNDDOWN(V108/D109,0)*ROUNDDOWN(U109/E109,0),ROUNDDOWN(U109/D109,0)*ROUNDDOWN(V109/E109,0))*ROUNDDOWN(850/F109,0)) -> 32 | O109: =IF(H109=0,0,(I109/H109/IF(Y109=0,50,Y109)+J109/H109+L109/S109)*PUC) -> 0.2666666667 | P109: =IF($O$104=0,0,O109/$O$104) -> 0.005946295155 | S109: =H109*K109 -> 2880 | T109: =+M109 -> 0 | U109: =IFERROR(VLOOKUP(T109,$T$117:$V$120,2,0),1200) -> 1200 | V109: =IFERROR(VLOOKUP(T109,$T$117:$V$119,3,0),800) -> 800 | Z109: =+H109*K109 -> 2880 | AB109: 850 | AC109: =(H109*$AA$108+AB109)/1000 -> 4.81 | AD109: =+AC109*K109+20 -> 173.92 | AE109: =IF(Z109=0,0,J4/Z109/48) -> 4.340277778
J110: ="Base Price with"&IF(M110="none","out "," ")&"packaging" -> Base Price with packaging | M110: one-way | O110: =O104+IF(M110="none",0,VLOOKUP(M110,B$108:O$109,14,0)) -> 45.64897602 | S110: =IF(F112="one-way",S108,IF(F112="returnable",S109,0)) -> 3200 | T110: =IF($F112="one-way",H108,IF($F112="returnable",H109,0)) -> 100 | Y110: <- Part Price with specified packaging
A111: Logistics | C111: IncoTerm | D111: Location | F111: Packaging Type | H111: Pallet Stackability | I111: ="Transport ["&LEFT($D$7,3)&"/pallet]" -> Transport [EUR/pallet] | J111: ="Handling ["&LEFT($D$7,3)&"/box]" -> Handling [EUR/box] | K111: ="Taxes ["&LEFT($D$7,3)&"/pc]" -> Taxes [EUR/pc] | L111: ="Duties ["&LEFT($D$7,3)&"/pc]" -> Duties [EUR/pc] | M111: Return freight | O111: ="Total"&" ["&LEFT($D$7,3)&$F$7&"]" -> Total [EUR/100] | U111: Packaging | V111: Freight | W111: Handling | X111: Tax&Duty
A112: 1 | B112: =D6 -> FRM | C112: DAP | D112: FRM Warehouse | F112: one-way | H112: No | I112: 50 | J112: 0.6 | M112: n/a | O112: =IF(C112="FCA",0,I112/VLOOKUP(F112,$B$108:$S$109,18,0)+J112/VLOOKUP(F112,$B$108:$H$109,7,0)+K112+L112)*PUC -> 2.1625 | P112: =IF($O$104=0,0,O112/$O$104) -> 0.04822073727 | U112: =IF(F112="none",0,VLOOKUP(F112,B$108:O$109,14,0)*PUC) -> 80.3125 | V112: =IF(F112="none",0,I112/VLOOKUP(F112,$B$108:$S$109,18,0)*PUC) -> 1.5625 | W112: =IF(F112="none",0,J112/VLOOKUP(F112,$B$108:$H$109,7,0)*PUC) -> 0.6 | X112: =(K112+L112)*PUC -> 0 | Y112: <- Primary option for quotation
A113: 2 | B113: =E6 -> CFM | C113: DDU | D113: Shanghai | F113: one-way | H113: 2-high | I113: 120 | K113: 0.02 | L113: 0.005 | M113: included | O113: =IF(C113="FCA",0,I113/VLOOKUP(F113,$B$108:$S$109,18,0)+J113/VLOOKUP(F113,$B$108:$H$109,7,0)+K113+L113)*PUC -> 6.25 | P113: =IF($O$104=0,0,O113/$O$104) -> 0.1393662927 | U113: =IF(F113="none",0,VLOOKUP(F113,B$108:O$109,14,0)*PUC) -> 80.3125 | V113: =IF(F113="none",0,I113/VLOOKUP(F113,$B$108:$S$109,18,0)*PUC) -> 3.75 | W113: =IF(F113="none",0,J113/VLOOKUP(F113,$B$108:$H$109,7,0)*PUC) -> 0 | X113: =(K113+L113)*PUC -> 2.5
A114: 3 | B114: =F6 -> SVM | C114: FCA | D114: Hamburg | F114: returnable | H114: 3-high | I114: 50 | K114: 0.02 | L114: 0.005 | O114: =IF(C114="FCA",0,I114/VLOOKUP(F114,$B$108:$S$109,18,0)+J114/VLOOKUP(F114,$B$108:$H$109,7,0)+K114+L114)*PUC -> 0 | P114: =IF($O$104=0,0,O114/$O$104) -> 0 | U114: =IF(F114="none",0,VLOOKUP(F114,B$108:O$109,14,0)*PUC) -> 26.66666667 | V114: =IF(F114="none",0,I114/VLOOKUP(F114,$B$108:$S$109,18,0)*PUC) -> 1.736111111 | W114: =IF(F114="none",0,J114/VLOOKUP(F114,$B$108:$H$109,7,0)*PUC) -> 0 | X114: =(K114+L114)*PUC -> 2.5
A116: Supplier Reference | F116: Date | H116: 2016-11-30 | J116: Cost Breakdown Pricing Summary | O116: =LEFT($D$7,3)&F7 -> EUR/100 | T116: Pallet Type | U116: Length | V116: Width | Y116: <- Part Price including packaging/logistics
E117: Prepared by | H117: Neville Newman | J117: =IF(C112="","",C112&" "&D112&", "&IF(F112="none","without",F112)&" packaging") -> DAP FRM Warehouse, one-way packaging | O117: =IF(C112=0,0,SUM(O$104,O112,IF(F112="none",0,VLOOKUP(F112,B$108:O$109,14,0)))) -> 47.81147602 | T117: EUR-EPAL | U117: 1200 | V117: 800 | Y117: <- Primary option for quotation
J118: =IF(C113="","",C113&" "&D113&", "&IF(F113="none","without",F113)&" packaging") -> DDU Shanghai, one-way packaging | O118: =IF(C113=0,0,SUM(O$104,O113,IF(F113="none",0,VLOOKUP(F113,B$108:O$109,14,0)))) -> 51.89897602 | T118: North America | U118: 1219 | V118: 1143
J119: =IF(C114="","",C114&" "&D114&", "&IF(F114="none","without",F114)&" packaging") -> FCA Hamburg, returnable packaging | O119: =IF(C114=0,0,SUM(O$104,O114,IF(F114="none",0,VLOOKUP(F114,B$108:O$109,14,0)))) -> 45.11251769 | T119: Container | U119: 1170 | V119: 770
B121: Section 4 | D121: Investment / Tooling | M121: =LEFT($D$7,3) -> EUR | O121: =SUBTOTAL(109,S123:S130) -> 60000
B122: Description | F122: Qty | G122: Cav | H122: Lead Time [weeks] | I122: FOT [weeks] | J122: Warranty [parts] | K122: Tool Cap. [/week] | L122: Machine Cap. [/week] | M122: Max Capacity [p.A.] | O122: ="Tool Cost ["&LEFT($D$7,3)&"]" -> Tool Cost [EUR] | W122: 125
A123: 1 | B123: Injection tool | F123: 1 | G123: 4 | H123: 26 | I123: 18 | J123: 8000000 | O123: 50000 | S123: =F123*O123 -> 50000 | Z123: <- max. Leadtime | AC123: =MAX(H123:H130) -> 26
A124: 2 | B124: Assembly jigs | F124: 2 | O124: 5000 | S124: 10000
A125: 3 | S125: 0
A126: 4 | S126: 0
A127: 5 | S127: 0
A128: 6 | S128: 0
A129: 7 | S129: 0
A130: 8 | S130: 0
B132: Section 5 | D132: Productivity & Commercial terms
B133: Payment Terms
B134: Tool Payment Terms
B135: Spare Parts pricing at serial price after EoP | I135: years | L135: =A112&") "&B112&CHAR(10)&C112 -> 1) FRM DAP | M135: =A113&") "&B113&CHAR(10)&C113 -> 2) CFM DDU | O135: =A114&") "&B114&CHAR(10)&C114 -> 3) SVM FCA
B136: Overall committed capacity | E136: [/week]
E137: [/year] | J137: Base Price | K137: w/Packaging | L137: w/Logistics | M137: w/Logistics | O137: w/Logistics
J138: ="["&LEFT($D$7,3)&$F$7&"]" -> [EUR/100] | K138: ="["&LEFT($D$7,3)&$F$7&"]" -> [EUR/100] | L138: ="["&LEFT($D$7,3)&$F$7&"]" -> [EUR/100] | M138: ="["&LEFT($D$7,3)&$F$7&"]" -> [EUR/100] | O138: ="["&LEFT($D$7,3)&$F$7&"]" -> [EUR/100]
B139: Pricing acc. to breakdown | G139: Eff. Date | I139: Prod. Red | J139: =O104 -> 44.84585102 | K139: =O110 -> 45.64897602 | L139: =O117 -> 47.81147602 | M139: =O118 -> 51.89897602 | O139: =O119 -> 45.11251769
B140: Negotiated offer pricing | E140: SoP | G140: =J6 -> 00:00:00 | J140: =O104 -> 44.84585102 | K140: =O110 -> 45.64897602 | L140: =O117 -> 47.81147602 | M140: =O118 -> 51.89897602 | O140: =O119 -> 45.11251769 | S140: =MIN($J$5,1) -> 1 | T140: =+J140 -> 44.84585102 | U140: =+K140 -> 45.64897602 | V140: 47.81147602 | W140: 51.89897602 | X140: 0
E141: Year 2 | G141: =DATE(YEAR(G140)+1,10,1) -> 1901-10-01 | I141: 0.04 | J141: =J140*(1-$I141) -> 43.05201698 | K141: 43.82301698 | L141: 45.89901698 | M141: 49.82301698 | O141: =O140*(1-$I141) -> 43.30801698 | S141: =MIN(MAX($J$5-1,0),1) -> 1 | T141: =+J141 -> 43.05201698 | U141: 43.82301698 | V141: 45.89901698 | W141: 49.82301698 | X141: 0
E142: Year 3 | G142: =DATE(YEAR(G141)+1,MONTH(G141),DAY(G141)) -> 1902-10-01 | I142: 0.04 | J142: 41.3299363 | K142: 42.0700963 | L142: 44.0630563 | M142: 47.8300963 | O142: =O141*(1-$I142) -> 41.5756963 | S142: =MIN(MAX($J$5-2,0),1) -> 1 | T142: 41.3299363 | U142: 42.0700963 | V142: 44.0630563 | W142: 47.8300963 | X142: 0
E143: Year 4 | G143: =DATE(YEAR(G142)+1,MONTH(G142),DAY(G142)) -> 1903-10-01 | I143: 0.04 | J143: 39.67673885 | K143: 40.38729245 | L143: 42.30053405 | M143: 45.91689245 | O143: =O142*(1-$I143) -> 39.91266845 | S143: =MIN(MAX($J$5-3,0),1) -> 1 | T143: 39.67673885 | U143: 40.38729245 | V143: 42.30053405 | W143: 45.91689245 | X143: 0
E144: Year 5 | G144: =DATE(YEAR(G143)+1,MONTH(G143),DAY(G143)) -> 1904-10-01 | J144: 39.67673885 | K144: 40.38729245 | L144: 42.30053405 | M144: 45.91689245 | O144: =O143*(1-$I144) -> 39.91266845 | S144: =MIN(MAX($J$5-4,0),1) -> 0.5 | T144: 39.67673885 | U144: 40.38729245 | V144: 42.30053405 | W144: 45.91689245 | X144: 0
H145: SoP +5 | S145: =MIN(MAX($J$5-5,0),1) -> 0 | T145: =+T144 -> 39.67673885 | U145: =+U144 -> 40.38729245 | V145: 42.30053405 | W145: 45.91689245 | X145: 0
S146: =MIN(MAX($J$5-6,0),1) -> 0 | T146: =+T145 -> 39.67673885 | U146: 40.38729245 | V146: 42.30053405 | W146: 45.91689245 | X146: 0
B147: Tooling acc. to breakdown (Section 4) | I147: =LEFT($D$7,3) -> EUR | J147: =O121 -> 60000 | S147: =MIN(MAX($J$5-7,0),1) -> 0 | T147: =+T146 -> 39.67673885 | U147: =+U145 -> 40.38729245 | V147: 42.30053405 | W147: 45.91689245 | X147: 0
B148: Negotiated tooling amount | I148: =LEFT($D$7,3) -> EUR | J148: 57000 | X148: 0
B149: Additional (one time payment) | I149: =LEFT($D$7,3) -> EUR | J149: 3000 | Y149: <- Enter as positive number
B151: ="Total Cost ["&LEFT($D$7,3)&"]" -> Total Cost [EUR] | H151: ="Lifetime: "&MIN(J5,8)&" yrs" -> Lifetime: 4.5 yrs | I151: =LEFT($D$7,3) -> EUR | J151: =IF(J140=0,0,$J$4*SUMPRODUCT($S140:$S147,T140:T147)/PUC+$J$148-$J$149) -> 1186457.476 | K151: =IF(K140=0,0,$J$4*SUMPRODUCT($S140:$S147,U140:U147)/PUC+$J$148-$J$149) -> 1206738.168 | L151: =IF(L140=0,0,$J$4*SUMPRODUCT($S140:$S147,V140:V147)/PUC+$J$148-$J$149) -> 1261346.102 | M151: =IF(M140=0,0,$J$4*SUMPRODUCT($S140:$S147,W140:W147)/PUC+$J$148-$J$149) -> 1364564.568 | N151: =IF(N140=0,0,$J$4*SUMPRODUCT($S140:$S147,X140:X147)/PUC+$J$148-$J$149) -> 0 | O151: =IF(O140=0,0,$J$4*SUMPRODUCT($S140:$S147,W140:W147)/PUC+$J$148-$J$149) -> 1364564.568 | Y151: <- Max lifetime limited to 8 years
B152: Additional comments/benefits if sourced | G152: Additional reduction of 1% on all products more than 8 years in production.
F156: ="Pricing Overview: "&N7&" ("&N8&")" -> Pricing Overview: Cover Plate (800123400C) | L156: =LEFT($D$7,3) -> EUR
F157: Direct Material | L157: =SUM(L158:L160) -> 0.2591055467 | M157: =L157/$L$171 -> 0.57776927
F158: Material | L158: =(S12+U12)/PUC -> 0.202218 | M158: 0.4509179666
F159: Purchased Parts | L159: =(S35+U35)/PUC -> 0.04916 | M159: 0.1096199509
F160: Material OH | L160: =O62/PUC -> 0.0077275467 | M160: 0.01723135252
F161: Production Cost | L161: =SUM(L162:L166) -> 0.1201549508 | M161: 0.2679288001
F162: Machine Cost | L162: =S64/PUC -> 0.0252058 | M162: 0.05620542228
F163: Direct Labour | L163: =T64/PUC -> 0.06298611 | M163: 0.14045025
F164: Production OH | L164: =O91/PUC -> 0.0176361108 | M164: 0.03932606999
F165: Setup Costs | L165: =U64/PUC -> 0.00332693 | M165: 0.007418590386
F166: Tooling Costs | L166: =V64/PUC -> 0.011 | M166: 0.02452846746
F167: Scrap Costs | L167: =(O92)/PUC -> 0.00752904 | M167: 0.01678871024
F168: Overheads (SG&A, Eng) | L168: =(O97+O98)/PUC -> 0.03234312675 | M168: 0.07212066654 | Y168: ="<- "&TEXT(SUM(L160,L162,L164:L166,L168:L170)/$L$171,"0%")&" Contribution" -> <- 28% Contribution
F169: Special Costs | L169: =(O99+O100)/PUC -> 0.00462962963 | M169: 0.01032342906 | Y169: ="<- "&TEXT(SUM(L168:L170)/$L$171,"0%")&" Gross Margin" -> <- 14% Gross Margin
F170: Profit | L170: =(O101+O102+O103)/PUC -> 0.02469621739 | M170: 0.05506912406
F171: Base Price (without packaging/logistics) | L171: =SUM(L157,L161,L167,L168,L169,L170) -> 0.4484585113 | M171: 1
F172: ="Packaging ("&$F$112&")" -> Packaging (one-way) | L172: =IF(F112="none",0,VLOOKUP(F112,B$108:O$109,14,0)/PUC) -> 0.00803125
F173: ="Logistics ("&$C$112&" "&$D$112&")" -> Logistics (DAP FRM Warehouse) | L173: =O112/PUC -> 0.021625
F174: ="Final Price ("&J117&")" -> Final Price (DAP FRM Warehouse, one-way packaging) | L174: =SUM(L171:L173) -> 0.4781147613
S176: EUR: Euro
S177: USD: US Dollar
S178: ARS: Agentinian Peso
H179: ="Cost Breakdown - Base Price ["&LEFT(D7,3)&"]" -> Cost Breakdown - Base Price [EUR] | S179: AUD: Australian Dollar
H180: =LEFT(D7,3) -> EUR | S180: BRL: Brazilian Real
H181: Breakdown | I181: SoP | J181: Year 2 | K181: Year 3 | L181: Year 4 | M181: Year 5 | S181: CAD: Canadian Dollar
D182: Material | F182: DM | H182: =(S12+S35+O62)/PUC -> 0.2458875467 | S182: CHF: Swiss Franc
D183: Machine | F183: Prod | H183: =(S64+U64+O91+V64)/PUC -> 0.0571688408 | S183: CNY: Chinese Yuan
D184: Labour | F184: DL | H184: =T64/PUC -> 0.06298611 | S184: CZK: Czech Koruny
D185: Other Direct | F185: Other Direct | H185: =SUM(U12,U35,O92)/PUC -> 0.02074704 | S185: DKK: Danish Krone
D186: Overhead | F186: SG&A | H186: =SUM(O97:O98)/PUC -> 0.03234312675 | S186: GBP: Pound Sterling
D187: Special Costs | F187: Sp | H187: =SUM(O99,O100)/PUC -> 0.00462962963 | S187: HKD: Hong Kong Dollar
D188: Profit | F188: Profit | H188: =(O101+O102+O103)/PUC -> 0.02469621739 | S188: HUF: Hungarian Forint
H189: =SUM(H182:H188) -> 0.4484585113 | I189: =J140/PUC -> 0.4484585102 | J189: =IF(S141=0,#N/A,J141/PUC) -> 0.4305201698 | K189: =IF(S142=0,#N/A,J142/PUC) -> 0.413299363 | L189: =IF(S143=0,#N/A,J143/PUC) -> 0.3967673885 | M189: =IF(S144=0,#N/A,J144/PUC) -> 0.3967673885 | S189: IDR: Indonesian Ruphias
S190: INR: Indian Rupee
S191: JPY: Japanese Yen
S192: KRW: Korean Won
S193: MXN: Mexican Peso
S194: MYR: Malaysian Ringit
S195: NOK: Norwegian Krone
S196: NZD: New Zealand Dollar
S197: PHP: Philippine Peso
S198: PLN: Polish Zloty
S199: RON: Romanian New Lei
S200: RUB: Russian Rubel
S201: SEK: Swedish Kronor
S202: SGD: Singapore Dollar
S203: THB: Thai Baht
S204: TND: Tunisian Dinar
S205: TRY: Turkish New Lira
S206: TWD: Taiwanese New Dollar
S207: ZAR: South African Rand

Sheet Example_3
F1: Supplier Cost Breakdown | W1: CBDnew | X1: 123
A2: =CELL("Filename",A2) -> https://veoneer-my.sharepoint.com/personal/arnaud_soret_veoneer_com/Documents/Documents/PROCESS & TRAINING/A - PROCESS/VSM/[Supplier Cost Breakdown - Example.xlsm]Example_3 | K2: Version 2.01C | S2: =IF(O117>10000,9999,PUC) -> 100
B3: Section 1 | D3: Project Details | J3: Average | K3: Peak | S3: =IF(F7="/pc",1,IF(F7="/10",10,IF(F7="/100",100,IF(F7="/1000",1000)))) -> 100 | U3: ="Frt In "&CHAR(10)&"[%]" -> Frt In [%]
A4: Quotation No. /Rev | D4: AXX NN 2012/007 | I4: Est. Annual Qty | J4: 600000 | K4: 750000 | S4: 100 | U4: ="Frt In "&CHAR(10)&"[/UoM]" -> Frt In [/UoM]
A5: Autoliv Buyer | D5: Enny Baier | I5: Estimated Lifetime | J5: 4.5 | K5: years | U5: ="Frt In "&CHAR(10)&"["&LEFT(D$7,3)&"]" -> Frt In [EUR] | AS5: 1 | AT5: 1
A6: Production Locations | D6: FRM | E6: CFM | F6: SVM | I6: Start of Production | L6: Supplier | M6: 12345 | N6: Perfect PI HCC | S6: Delete when hiding | W6: Yes | X6: FALSE
A7: Currency | D7: EUR: Euro | F7: /100 | I7: PPAP Date | M7: Description | N7: Cover Plate | S7: Locked Currency | U7: EUR: Euro | W7: =IF(X7=TRUE,"Yes","No") -> Yes | X7: TRUE
I8: FOT Date | M8: Part No. | N8: 800123400C | S8: Advanced Mode | U8: FALSE | V8: NA | W8: =IF(V8=6,"Yes","No") -> No
A9: Additional Information | D9: This is an example only to demonstrate the calculation | L9: Drawing / Rev | N9: 8001234A01
L10: Project / Customer | N10: PLPX / Various | S10: Size | V10: =W13+W36+W65 -> 124 | W10: =W13+W36+W65+W122 -> 249
U11: =IF(RIGHT(M$13,2)="%]","P","A") -> P
B12: Section 2.1 | D12: Raw Material | M12: =U12 -> 1.1058 | N12: =T12 -> 0.571529 | O12: =SUBTOTAL(109,O14:O33) -> 20.793329 | P12: =IF($O$104=0,0,O12/$O$104) -> 0.4636622681 | S12: =SUBTOTAL(109,S14:S33) -> 19.116 | T12: =SUBTOTAL(109,T14:T33) -> 0.571529 | U12: =SUBTOTAL(109,U14:U33) -> 1.1058 | V12: =SUBTOTAL(109,V14:V33) -> 20.793329
B13: Description | E13: Specification | G13: UoM | H13: Nett Amount | I13: Gross Amount | J13: Qty (optional) | K13: ="Unit Cost ["&LEFT($D$7,3)&"]" -> Unit Cost [EUR] | L13: Waste Resale | M13: Frt in [%] | N13: Scrap [%] | O13: ="Total"&" ["&LEFT($D$7,3)&$F$7&"]" -> Total [EUR/100] | S13: Material | T13: Scrap | U13: Frt in | V13: Total | W13: 16
A14: 1 | B14: Plastic POM | E14: Delrin 100 P | G14: kg | H14: 0.026 | I14: 0.045 | J14: 0.98 | K14: 3.6 | M14: 0.05 | N14: 0.03 | O14: =IF(J14="",1,J14)*(I14*(1+N14)*(K14+IF(RIGHT(M$13,2)="%]",(K14*M14),M14)-L14)+H14*L14)*PUC -> 17.169894 | P14: =IF($O$104=0,0,O14/$O$104) -> 0.3828647156 | S14: =IF(J14="",1,J14)*(I14*(K14-L14)+(H14*L14))*PUC -> 15.876 | T14: =IF(J14="",1,J14)*(K14+IF(RIGHT(M$13,2)="%]",(K14*M14),M14)-L14)*(I14*N14)*PUC -> 0.500094 | U14: =V14-S14-T14 -> 0.7938 | V14: =IF(J14="",1,J14)*(I14*(1+N14)*(K14+IF(RIGHT(M$13,2)="%]",(K14*M14),M14)-L14)+H14*L14)*PUC -> 17.169894
A15: 2 | B15: Masterbatch | E15: Blue | G15: kg | H15: 0.026 | I15: 0.045 | J15: 0.02 | K15: 11 | M15: 0.05 | N15: 0.03 | O15: 1.070685 | P15: 0.02387478386 | S15: 0.99 | T15: 0.031185 | U15: =V15-S15-T15 -> 0.0495 | V15: 1.070685
A16: 3 | B16: Steel | E16: DC54D | G16: kg | H16: 0.02 | I16: 0.035 | K16: 0.75 | L16: 0.25 | M16: 0.1 | N16: 0.02 | O16: 2.55275 | P16: 0.05692276859 | S16: 2.25 | T16: 0.04025 | U16: 0.2625 | V16: 2.55275
A17: 4 | O17: 0 | P17: 0 | S17: 0 | T17: 0 | U17: 0 | V17: 0
A18: 5 | O18: =IF(J18="",1,J18)*(I18*(1+N18)*(K18+IF(RIGHT(M$13,2)="%]",(K18*M18),M18)-L18)+H18*L18)*PUC -> 0 | P18: 0 | S18: =IF(J18="",1,J18)*(I18*(K18-L18)+(H18*L18))*PUC -> 0 | T18: =IF(J18="",1,J18)*(K18+IF(RIGHT(M$13,2)="%]",(K18*M18),M18)-L18)*(I18*N18)*PUC -> 0 | U18: 0 | V18: =IF(J18="",1,J18)*(I18*(1+N18)*(K18+IF(RIGHT(M$13,2)="%]",(K18*M18),M18)-L18)+H18*L18)*PUC -> 0
A19: 6 | O19: 0 | P19: 0 | S19: 0 | T19: 0 | U19: 0 | V19: 0
A20: 7 | O20: 0 | P20: 0 | S20: 0 | T20: 0 | U20: 0 | V20: 0
A21: 8 | O21: 0 | P21: 0 | S21: 0 | T21: 0 | U21: 0 | V21: 0
A22: 9 | O22: 0 | P22: 0 | S22: 0 | T22: 0 | U22: 0 | V22: 0 | W22: 125
A23: 10 | O23: 0 | P23: 0 | S23: 0 | T23: 0 | U23: 0 | V23: 0
A24: 11 | O24: =IF(J24="",1,J24)*(I24*(1+N24)*(K24+IF(RIGHT(M$13,2)="%]",(K24*M24),M24)-L24)+H24*L24)*PUC -> 0 | P24: 0 | S24: =IF(J24="",1,J24)*(I24*(K24-L24)+(H24*L24))*PUC -> 0 | T24: =IF(J24="",1,J24)*(K24+IF(RIGHT(M$13,2)="%]",(K24*M24),M24)-L24)*(I24*N24)*PUC -> 0 | U24: 0 | V24: =IF(J24="",1,J24)*(I24*(1+N24)*(K24+IF(RIGHT(M$13,2)="%]",(K24*M24),M24)-L24)+H24*L24)*PUC -> 0
A25: 12 | O25: 0 | P25: 0 | S25: 0 | T25: 0 | U25: 0 | V25: 0
A26: 13 | O26: =IF(J26="",1,J26)*(I26*(1+N26)*(K26+IF(RIGHT(M$13,2)="%]",(K26*M26),M26)-L26)+H26*L26)*PUC -> 0 | P26: 0 | S26: =IF(J26="",1,J26)*(I26*(K26-L26)+(H26*L26))*PUC -> 0 | T26: =IF(J26="",1,J26)*(K26+IF(RIGHT(M$13,2)="%]",(K26*M26),M26)-L26)*(I26*N26)*PUC -> 0 | U26: 0 | V26: =IF(J26="",1,J26)*(I26*(1+N26)*(K26+IF(RIGHT(M$13,2)="%]",(K26*M26),M26)-L26)+H26*L26)*PUC -> 0
A27: 14 | O27: 0 | P27: 0 | S27: 0 | T27: 0 | U27: 0 | V27: 0
A28: 15 | O28: 0 | P28: 0 | S28: 0 | T28: 0 | U28: 0 | V28: 0
A29: 16 | O29: 0 | P29: 0 | S29: 0 | T29: 0 | U29: 0 | V29: 0
A30: 17 | O30: 0 | P30: 0 | S30: 0 | T30: 0 | U30: 0 | V30: 0
A31: 18 | O31: 0 | P31: 0 | S31: 0 | T31: 0 | U31: 0 | V31: 0
A32: 19 | O32: 0 | P32: 0 | S32: 0 | T32: 0 | U32: 0 | V32: 0
A33: 20 | O33: 0 | P33: 0 | S33: 0 | T33: 0 | U33: 0 | V33: 0
U34: =IF(RIGHT(M$36,2)="%]","P","A") -> P
B35: Section 2.2 | D35: Purchased Components (& Outsourced Processes) | M35: =U35 -> 0.216 | N35: =T35 -> 0.04916 | O35: =SUBTOTAL(109,O37:O60) -> 4.96516 | P35: =IF($O$104=0,0,O35/$O$104) -> 0.1107161507 | S35: =SUBTOTAL(109,S37:S60) -> 4.7 | T35: =SUBTOTAL(109,T37:T60) -> 0.04916 | U35: =SUBTOTAL(109,U37:U60) -> 0.216 | V35: =SUBTOTAL(109,V37:V60) -> 4.96516 | W35: 4
B36: Description | E36: Part Number (ALV Drawing) | G36: UoM | H36: Sub-Supplier Name | J36: Qty | K36: ="Unit Cost ["&LEFT($D$7,3)&"]" -> Unit Cost [EUR] | M36: Frt in [%] | N36: Scrap [%] | O36: ="Total"&" ["&LEFT($D$7,3)&$F$7&"]" -> Total [EUR/100] | S36: Material | T36: Scrap | U36: Frt in | V36: Total | W36: 39
A37: 1 | B37: Screw M3x8 | G37: pc | H37: Metalworks | J37: 2 | K37: 0.018 | M37: 0.06 | N37: 0.01 | O37: =J37*(K37+IF(RIGHT(M$36,2)="%]",(K37*M37),M37))*(1+N37)*PUC -> 3.85416 | P37: =IF($O$104=0,0,O37/$O$104) -> 0.08594239851 | S37: =J37*K37*PUC -> 3.6 | T37: =J37*K37*(1+M37)*N37*PUC -> 0.03816 | U37: =V37-S37-T37 -> 0.216 | V37: =J37*(K37+IF(RIGHT(M$36,2)="%]",(K37*M37),M37))*(1+N37)*PUC -> 3.85416
A38: 2 | B38: Label | G38: pc | H38: Stickit Labels | J38: 1 | K38: 0.007 | N38: 0.01 | O38: 0.707 | P38: 0.01576511503 | S38: 0.7 | T38: 0.007 | U38: -1.05818132e-16 | V38: 0.707
A39: 3 | B39: Surface Treatment Steel | G39: kg | H39: Perfect Surface | J39: 0.02 | K39: 0.2 | N39: 0.01 | O39: 0.404 | P39: 0.00900863716 | S39: 0.4 | T39: 0.004 | U39: 0 | V39: 0.404
A40: 4 | O40: 0 | P40: 0 | S40: 0 | T40: 0 | U40: 0 | V40: 0
A41: 5 | O41: 0 | P41: 0 | S41: 0 | T41: 0 | U41: 0 | V41: 0
A42: 6 | O42: 0 | P42: 0 | S42: 0 | T42: 0 | U42: 0 | V42: 0
A43: 7 | O43: 0 | P43: 0 | S43: 0 | T43: 0 | U43: 0 | V43: 0
A44: 8 | O44: 0 | P44: 0 | S44: 0 | T44: 0 | U44: 0 | V44: 0
A45: 9 | O45: 0 | P45: 0 | S45: 0 | T45: 0 | U45: 0 | V45: 0
A46: 10 | O46: =J46*(K46+IF(RIGHT(M$36,2)="%]",(K46*M46),M46))*(1+N46)*PUC -> 0 | P46: 0 | S46: =J46*K46*PUC -> 0 | T46: =J46*K46*(1+M46)*N46*PUC -> 0 | U46: 0 | V46: =J46*(K46+IF(RIGHT(M$36,2)="%]",(K46*M46),M46))*(1+N46)*PUC -> 0
A47: 11 | O47: 0 | P47: 0 | S47: 0 | T47: 0 | U47: 0 | V47: 0
A48: 12 | O48: 0 | P48: 0 | S48: 0 | T48: 0 | U48: 0 | V48: 0
A49: 13 | O49: 0 | P49: 0 | S49: 0 | T49: 0 | U49: 0 | V49: 0
A50: 14 | O50: 0 | P50: 0 | S50: 0 | T50: 0 | U50: 0 | V50: 0
A51: 15 | O51: 0 | P51: 0 | S51: 0 | T51: 0 | U51: 0 | V51: 0
A52: 16 | O52: 0 | P52: 0 | S52: 0 | T52: 0 | U52: 0 | V52: 0
A53: 17 | O53: 0 | P53: 0 | S53: 0 | T53: 0 | U53: 0 | V53: 0
A54: 18 | O54: 0 | P54: 0 | S54: 0 | T54: 0 | U54: 0 | V54: 0
A55: 19 | O55: 0 | P55: 0 | S55: 0 | T55: 0 | U55: 0 | V55: 0
A56: 20 | O56: 0 | P56: 0 | S56: 0 | T56: 0 | U56: 0 | V56: 0
A57: 21 | O57: 0 | P57: 0 | S57: 0 | T57: 0 | U57: 0 | V57: 0
A58: 22 | O58: 0 | P58: 0 | S58: 0 | T58: 0 | U58: 0 | V58: 0
A59: 23 | O59: 0 | P59: 0 | S59: 0 | T59: 0 | U59: 0 | V59: 0
A60: 24 | O60: 0 | P60: 0 | S60: 0 | T60: 0 | U60: 0 | V60: 0
B62: Section 2.3 | D62: Material & Purchased Component Overhead | L62: % of Section 2.1, 2.2 | M62: 0.03 | O62: =M62*(O12+O35) -> 0.77275467 | P62: =IF($O$104=0,0,O62/$O$104) -> 0.01723135256
B64: Section 2.4 | D64: Production | G64: MC: | H64: =MC -> 2.52058 | I64: DL: | J64: =DL -> 6.298611 | K64: Setup: | L64: =Setup -> 0.332693 | M64: =ROUND(TM,3) -> 1.1 | N64: =ROUND(W64,3) -> 0.132 | O64: =SUBTOTAL(109,O66:O89) -> 10.3840989 | P64: =IF($O$104=0,0,O64/$O$104) -> 0.2315509386 | S64: =ROUND(SUBTOTAL(109,S66:S89),6) -> 2.52058 | T64: =ROUND(SUBTOTAL(109,T66:T89),6) -> 6.298611 | U64: =ROUND(SUBTOTAL(109,U66:U89),6) -> 0.332693 | V64: =ROUND(SUBTOTAL(109,V66:V89),6) -> 1.1 | W64: =ROUND(SUBTOTAL(109,W66:W89),6) -> 0.132215 | Y64: Std Capacity Calculation (for Contract review) | AJ64: Max Capacity | AN64: Cycle time conversions
B65: Process Description | D65: Machine Type | E65: Cycle time [sec] | F65: Pcs/cycle (cavities) | H65: ="Machine ["&LEFT($D$7,3)&"/hr]" -> Machine [EUR/hr] | I65: ="Operator ["&LEFT($D$7,3)&"/hr]" -> Operator [EUR/hr] | J65: No. of Operators | K65: ="Setup Cost ["&LEFT($D$7,3)&"]" -> Setup Cost [EUR] | L65: Batch Size | M65: Tool Maint | N65: Scrap [%] | O65: ="Total"&" ["&LEFT($D$7,3)&$F$7&"]" -> Total [EUR/100] | S65: Machine | T65: Operator | U65: Setup | V65: Tool Maint. | W65: 69 | Y65: Hrs /shift | Z65: Shifts/ week | AA65: Oper. Eff. | AB65: Setup [hrs] | AC65: Setup Loss | AD65: Weekly Capacity | AE65: Weeks /year | AF65: Annual Capacity | AG65: Calc O.E.E. | AH65: Capacity Margin | AJ65: Hrs /shift | AK65: Shifts/ week | AL65: Weekly Capacity | AN65: min | AO65: SPM | AP65: Pcs /min | AQ65: Pcs /hr | AR65: Pcs/hr (incl Eff.) | AS65: Weeks/ year | AT65: Annual Capacity
A66: 1 | B66: Injection Moulding | D66: 100t | E66: 25 | F66: 4 | H66: =HourlyRate!G34 -> 8.038543301 | I66: 30 | J66: 0.1 | K66: =AB66*(H66+I66) -> 114.1156299 | L66: =J4/10 -> 60000 | M66: 0.008 | N66: 0.03 | O66: =(IF(F66=0,0,(E66/3600*J66*I66+E66/3600*H66)/F66*(1+N66))+IF(L66=0,0,K66/L66)+M66)*PUC -> 2.964098897 | P66: =IF($O$104=0,0,O66/$O$104) -> 0.06609527591 | S66: =IF(F66=0,0,(E66/3600*H66)/F66)*PUC -> 1.395580434 | T66: =IF(F66=0,0,(E66/3600*J66*I66)/F66)*PUC -> 0.5208333333 | U66: =IF(L66=0,0,K66/L66)*PUC -> 0.1901927165 | V66: =M66*PUC -> 0.8 | W66: =N66*(S66+T66) -> 0.05749241302 | Y66: 8 | Z66: 15 | AA66: 0.85 | AB66: 3 | AC66: =IF(L66*F66*AA66=0,0,AB66/(L66*E66/AA66/F66/3600+AB66)) -> 0.0238950492 | AD66: =IF(E66=0,0,Z66*Y66*3600/E66*F66*AA66)*(1-AC66)*(1-N66) -> 55627.67453 | AE66: 48 | AF66: =AD66*AE66 -> 2670128.377 | AG66: =AA66*(1-N66)*(1-AC66) -> 0.8047985319 | AH66: =IF($J$4*AD66=0,0,AF66/$J$4-1) -> 3.450213962 | AL66: =IF(E66=0,0,AK66*AJ66*3600/E66*F66*AA66)*(1-AC66)*(1-N66) -> 0 | AN66: =IF(F66=0,0,+E66/60/F66) -> 0.1041666667 | AO66: =IF(E66=0,0,60/E66) -> 2.4 | AP66: =AO66*F66 -> 9.6 | AQ66: =IF(E66=0,0,3600/E66*F66) -> 576 | AR66: =AQ66*AA66 -> 489.6 | AT66: =AL66*AS66 -> 0
A67: 2 | B67: Stamping | D67: 350t | E67: 1 | F67: 2 | H67: 25 | I67: 32 | J67: 0.5 | K67: =AB67*(H67+I67) -> 85.5 | L67: =J4/10 -> 60000 | M67: 0.003 | N67: 0.02 | O67: =(IF(F67=0,0,(E67/3600*J67*I67+E67/3600*H67)/F67*(1+N67))+IF(L67=0,0,K67/L67)+M67)*PUC -> 1.023333333 | P67: =IF($O$104=0,0,O67/$O$104) -> 0.02281890766 | S67: 0.3472222222 | T67: 0.2222222222 | U67: 0.1425 | V67: 0.3 | W67: =N67*(S67+T67) -> 0.01138888889 | Y67: 7.5 | Z67: 15 | AA67: 0.7 | AB67: 1.5 | AC67: =IF(L67*F67*AA67=0,0,AB67/(L67*E67/AA67/F67/3600+AB67)) -> 0.1119005329 | AD67: =IF(E67=0,0,Z67*Y67*3600/E67*F67*AA67)*(1-AC67)*(1-N67) -> 493481.3499 | AE67: 48 | AF67: =AD67*AE67 -> 23687104.8 | AG67: =AA67*(1-N67)*(1-AC67) -> 0.6092362345 | AH67: =IF($J$4*AD67=0,0,AF67/$J$4-1) -> 38.47850799 | AL67: 0 | AN67: 0.008333333333 | AO67: 60 | AP67: 120 | AQ67: 7200 | AR67: 5040 | AT67: =AL67*AS67 -> 0
A68: 3 | B68: Assembly | E68: 4 | F68: 1 | H68: 7 | I68: 25 | J68: 2 | N68: 0.01 | O68: =(IF(F68=0,0,(E68/3600*J68*I68+E68/3600*H68)/F68*(1+N68))+IF(L68=0,0,K68/L68)+M68)*PUC -> 6.396666667 | P68: =IF($O$104=0,0,O68/$O$104) -> 0.142636755 | S68: 0.7777777778 | T68: 5.555555556 | U68: 0 | V68: 0 | W68: 0.06333333333 | Y68: 7.5 | Z68: 15 | AA68: 0.85 | AC68: =IF(L68*F68*AA68=0,0,AB68/(L68*E68/AA68/F68/3600+AB68)) -> 0 | AD68: =IF(E68=0,0,Z68*Y68*3600/E68*F68*AA68)*(1-AC68)*(1-N68) -> 85201.875 | AE68: 48 | AF68: =AD68*AE68 -> 4089690 | AG68: =AA68*(1-N68)*(1-AC68) -> 0.8415 | AH68: =IF($J$4*AD68=0,0,AF68/$J$4-1) -> 5.81615 | AL68: 0 | AN68: 0.06666666667 | AO68: 15 | AP68: 15 | AQ68: 900 | AR68: 765 | AT68: =AL68*AS68 -> 0
A69: 4 | O69: =(IF(F69=0,0,(E69/3600*J69*I69+E69/3600*H69)/F69*(1+N69))+IF(L69=0,0,K69/L69)+M69)*PUC -> 0 | P69: =IF($O$104=0,0,O69/$O$104) -> 0 | S69: 0 | T69: 0 | U69: 0 | V69: 0 | W69: 0 | AC69: 0 | AD69: 0 | AF69: 0 | AG69: 0 | AH69: 0 | AL69: 0 | AN69: 0 | AO69: 0 | AP69: 0 | AQ69: 0 | AR69: 0
A70: 5 | O70: 0 | P70: 0 | S70: 0 | T70: 0 | U70: 0 | V70: 0 | W70: 0 | AC70: 0 | AD70: 0 | AF70: 0 | AG70: 0 | AH70: 0 | AL70: 0 | AN70: 0 | AO70: 0 | AP70: 0 | AQ70: 0 | AR70: 0
A71: 6 | O71: 0 | P71: 0 | S71: 0 | T71: 0 | U71: 0 | V71: 0 | W71: 0 | AC71: 0 | AD71: 0 | AF71: 0 | AG71: 0 | AH71: 0 | AL71: 0 | AN71: 0 | AO71: 0 | AP71: 0 | AQ71: 0 | AR71: 0
A72: 7 | O72: 0 | P72: 0 | S72: 0 | T72: 0 | U72: 0 | V72: 0 | W72: 0 | AC72: 0 | AD72: 0 | AF72: 0 | AG72: 0 | AH72: 0 | AL72: 0 | AN72: 0 | AO72: 0 | AP72: 0 | AQ72: 0 | AR72: 0
A73: 8 | O73: 0 | P73: 0 | S73: 0 | T73: 0 | U73: 0 | V73: 0 | W73: 0 | AC73: 0 | AD73: 0 | AF73: 0 | AG73: 0 | AH73: 0 | AL73: 0 | AN73: 0 | AO73: 0 | AP73: 0 | AQ73: 0 | AR73: 0
A74: 9 | O74: 0 | P74: 0 | S74: 0 | T74: 0 | U74: 0 | V74: 0 | W74: 0 | AC74: 0 | AD74: 0 | AF74: 0 | AG74: 0 | AH74: 0 | AL74: 0 | AN74: 0 | AO74: 0 | AP74: 0 | AQ74: 0 | AR74: 0
A75: 10 | O75: 0 | P75: 0 | S75: 0 | T75: 0 | U75: 0 | V75: 0 | W75: 0 | AC75: 0 | AD75: 0 | AF75: 0 | AG75: 0 | AH75: 0 | AL75: 0 | AN75: 0 | AO75: 0 | AP75: 0 | AQ75: 0 | AR75: 0
A76: 11 | O76: 0 | P76: 0 | S76: 0 | T76: 0 | U76: 0 | V76: 0 | W76: 0 | AC76: 0 | AD76: 0 | AF76: 0 | AG76: 0 | AH76: 0 | AL76: 0 | AN76: 0 | AO76: 0 | AP76: 0 | AQ76: 0 | AR76: 0
A77: 12 | O77: 0 | P77: 0 | S77: 0 | T77: 0 | U77: 0 | V77: 0 | W77: 0 | AC77: 0 | AD77: 0 | AF77: 0 | AG77: 0 | AH77: 0 | AL77: 0 | AN77: 0 | AO77: 0 | AP77: 0 | AQ77: 0 | AR77: 0 | AT77: =AL77*AS77 -> 0
A78: 13 | O78: 0 | P78: 0 | S78: 0 | T78: 0 | U78: 0 | V78: 0 | W78: 0 | AC78: 0 | AD78: 0 | AF78: 0 | AG78: 0 | AH78: 0 | AL78: 0 | AN78: 0 | AO78: 0 | AP78: 0 | AQ78: 0 | AR78: 0 | AT78: =AL78*AS78 -> 0
A79: 14 | O79: 0 | P79: 0 | S79: 0 | T79: 0 | U79: 0 | V79: 0 | W79: 0 | AC79: 0 | AD79: 0 | AF79: 0 | AG79: 0 | AH79: 0 | AL79: 0 | AN79: 0 | AO79: 0 | AP79: 0 | AQ79: 0 | AR79: 0 | AT79: =AL79*AS79 -> 0
A80: 15 | O80: 0 | P80: 0 | S80: 0 | T80: 0 | U80: 0 | V80: 0 | W80: 0 | AC80: 0 | AD80: 0 | AF80: 0 | AG80: 0 | AH80: 0 | AL80: 0 | AN80: 0 | AO80: 0 | AP80: 0 | AQ80: 0 | AR80: 0
A81: 16 | O81: 0 | P81: 0 | S81: 0 | T81: 0 | U81: 0 | V81: 0 | W81: 0 | AC81: 0 | AD81: 0 | AF81: 0 | AG81: 0 | AH81: 0 | AL81: 0 | AN81: 0 | AO81: 0 | AP81: 0 | AQ81: 0 | AR81: 0
A82: 17 | O82: 0 | P82: 0 | S82: 0 | T82: 0 | U82: 0 | V82: 0 | W82: 0 | AC82: 0 | AD82: 0 | AF82: 0 | AG82: 0 | AH82: 0 | AL82: 0 | AN82: 0 | AO82: 0 | AP82: 0 | AQ82: 0 | AR82: 0
A83: 18 | O83: 0 | P83: 0 | S83: 0 | T83: 0 | U83: 0 | V83: 0 | W83: 0 | AC83: 0 | AD83: 0 | AF83: 0 | AG83: 0 | AH83: 0 | AL83: 0 | AN83: 0 | AO83: 0 | AP83: 0 | AQ83: 0 | AR83: 0
A84: 19 | O84: 0 | P84: 0 | S84: 0 | T84: 0 | U84: 0 | V84: 0 | W84: 0 | AC84: 0 | AD84: 0 | AF84: 0 | AG84: 0 | AH84: 0 | AL84: 0 | AN84: 0 | AO84: 0 | AP84: 0 | AQ84: 0 | AR84: 0 | AT84: =AL84*AS84 -> 0
A85: 20 | O85: 0 | P85: 0 | S85: 0 | T85: 0 | U85: 0 | V85: 0 | W85: 0 | AC85: 0 | AD85: 0 | AF85: 0 | AG85: 0 | AH85: 0 | AL85: 0 | AN85: 0 | AO85: 0 | AP85: 0 | AQ85: 0 | AR85: 0 | AT85: 0
A86: 21 | O86: 0 | P86: 0 | S86: 0 | T86: 0 | U86: 0 | V86: 0 | W86: 0 | AC86: 0 | AD86: 0 | AF86: 0 | AG86: 0 | AH86: 0 | AL86: 0 | AN86: 0 | AO86: 0 | AP86: 0 | AQ86: 0 | AR86: 0 | AT86: 0
A87: 22 | O87: 0 | P87: 0 | S87: 0 | T87: 0 | U87: 0 | V87: 0 | W87: 0 | AC87: 0 | AD87: 0 | AF87: 0 | AG87: 0 | AH87: 0 | AL87: 0 | AN87: 0 | AO87: 0 | AP87: 0 | AQ87: 0 | AR87: 0 | AT87: 0
A88: 23 | O88: 0 | P88: 0 | S88: 0 | T88: 0 | U88: 0 | V88: 0 | W88: 0 | AC88: 0 | AD88: 0 | AF88: 0 | AG88: 0 | AH88: 0 | AL88: 0 | AN88: 0 | AO88: 0 | AP88: 0 | AQ88: 0 | AR88: 0 | AT88: 0
A89: 24 | O89: 0 | P89: 0 | S89: 0 | T89: 0 | U89: 0 | V89: 0 | W89: 0 | AC89: 0 | AD89: 0 | AF89: 0 | AG89: 0 | AH89: 0 | AL89: 0 | AN89: 0 | AO89: 0 | AP89: 0 | AQ89: 0 | AR89: 0 | AT89: 0
B91: Section 2.5 | D91: Production Overhead | I91: Basis | J91: Direct Labour | L91: % of DL | M91: 0.28 | O91: =M91*DL -> 1.76361108 | P91: =IF($O$104=0,0,O91/$O$104) -> 0.03932607008
B92: Section 2.6 | D92: Scrap (Material & Production) | J92: Info only: already included in Material & Production Totals | O92: =SUM(T12,T35,W64) -> 0.752904 | P92: =IF($O$104=0,0,O92/$O$104) -> 0.01678871028
B94: Total Manufactured Cost (Sections 2.1 - 2.6) | O94: =SUM(O12,O35,O62,O64,O91) -> 38.67895365 | P94: =IF($O$104=0,0,O94/$O$104) -> 0.86248678
B96: Section 2.7 | D96: Other Costs / Overheads & Profit | O96: =SUBTOTAL(109,O97:O103) -> 6.166897377 | P96: =IF($O$104=0,0,O96/$O$104) -> 0.13751322
A97: General Overhead / SG&A | J97: Basis | K97: Value Added | M97: 0.19 | O97: =M97*(MC+DL+Setup+POH) -> 2.073944065 | P97: 0.0462460633
A98: Engineering / Design & Development | J98: Basis | K98: Manufactured Cost | M98: 0.03 | O98: =M98*O94 -> 1.160368609 | P98: 0.0258746034
A99: Tool Amortisation / Cavity Repl. | J99: ="Amount ["&LEFT($D$7,3)&"]" -> Amount [EUR] | L99: Quantity | O99: =IF(M99=0,0,K99/M99)*PUC -> 0 | P99: 0
A100: Other Amortisation | E100: Special Validation Tests | J100: ="Amount ["&LEFT($D$7,3)&"]" -> Amount [EUR] | K100: 12500 | L100: Quantity | M100: 2700000 | O100: =IF(M100=0,0,K100/M100)*PUC -> 0.462962963 | P100: 0.01032342909
A101: Profit (on Material & Components) | L101: % of Material & Purchased Components | O101: =M101*(O12+O35-T12-T35) -> 0 | P101: 0
A102: Profit (on Manufacturing) | L102: % of Value Added + Overheads | O102: =M102*(O64+POH+O97+O98) -> 0 | P102: 0
A103: Profit | L103: % of Manufactured Cost + Overheads | M103: 0.06 | O103: =M103*(O94+O97+O98-O92) -> 2.469621739 | P103: 0.05506912419 | Y103: 0
J104: ="Base Price ["&LEFT($D$7,3)&F7&"]" -> Base Price [EUR/100] | O104: =O94+O96 -> 44.84585102 | P104: 1 | Y104: <- Part Price without packaging/logistics
B106: Section 3 | D106: Packaging & Logistics
A107: Packaging | D107: Length [mm] | E107: Width [mm] | F107: Height [mm] | H107: Pcs/box | I107: ="Box Cost ["&LEFT($D$7,3)&"]" -> Box Cost [EUR] | J107: ="Other Box Costs ["&LEFT($D$7,3)&"]" -> Other Box Costs [EUR] | K107: Boxes/ Pallet | L107: ="Pallet Cost ["&LEFT($D$7,3)&"]" -> Pallet Cost [EUR] | M107: Pallet Type | O107: ="Total"&" ["&LEFT($D$7,3)&$F$7&"]" -> Total [EUR/100] | W107: 11 | Y107: No. of Loops | Z107: Parts/ Pallet | AA107: Part Wgt [g] | AB107: Empty Box [g] | AC107: Full Box [kg] | AD107: Pallet [kg] | AE107: Pallets /week
B108: One-way | D108: 400 | E108: 300 | F108: 200 | H108: 100 | I108: 0.55 | J108: 0.05 | K108: =IF(D108*E108*F108=0,1,MAX(ROUNDDOWN(V108/D108,0)*ROUNDDOWN(U108/E108,0),ROUNDDOWN(U108/D108,0)*ROUNDDOWN(V108/E108,0))*ROUNDDOWN(850/F108,0)) -> 32 | L108: 6.5 | O108: =IF(H108=0,0,((I108+J108)/H108+L108/S108)*PUC) -> 0.803125 | P108: =IF($O$104=0,0,O108/$O$104) -> 0.01790856861 | S108: =H108*K108 -> 3200 | T108: =+M108 -> 0 | U108: =IFERROR(VLOOKUP(T108,$T$117:$V$119,2,0),U117) -> 1200 | V108: =IFERROR(VLOOKUP(T108,$T$117:$V$119,3,0),V117) -> 800 | Z108: =H108*K108 -> 3200 | AA108: 44 | AB108: 150 | AC108: =(H108*$AA$108+AB108)/1000 -> 4.55 | AD108: =+AC108*K108+20 -> 165.6 | AE108: =IF(Z108=0,0,J4/Z108/48) -> 3.90625
B109: Returnable | D109: 400 | E109: 300 | F109: 200 | H109: 90 | I109: 9.5 | J109: 0.05 | K109: =IF(D109*E109*F109=0,1,MAX(ROUNDDOWN(V108/D109,0)*ROUNDDOWN(U109/E109,0),ROUNDDOWN(U109/D109,0)*ROUNDDOWN(V109/E109,0))*ROUNDDOWN(850/F109,0)) -> 32 | O109: =IF(H109=0,0,(I109/H109/IF(Y109=0,50,Y109)+J109/H109+L109/S109)*PUC) -> 0.2666666667 | P109: =IF($O$104=0,0,O109/$O$104) -> 0.005946295155 | S109: =H109*K109 -> 2880 | T109: =+M109 -> 0 | U109: =IFERROR(VLOOKUP(T109,$T$117:$V$120,2,0),1200) -> 1200 | V109: =IFERROR(VLOOKUP(T109,$T$117:$V$119,3,0),800) -> 800 | Z109: =+H109*K109 -> 2880 | AB109: 850 | AC109: =(H109*$AA$108+AB109)/1000 -> 4.81 | AD109: =+AC109*K109+20 -> 173.92 | AE109: =IF(Z109=0,0,J4/Z109/48) -> 4.340277778
J110: ="Base Price with"&IF(M110="none","out "," ")&"packaging" -> Base Price with packaging | M110: one-way | O110: =O104+IF(M110="none",0,VLOOKUP(M110,B$108:O$109,14,0)) -> 45.64897602 | S110: =IF(F112="one-way",S108,IF(F112="returnable",S109,0)) -> 3200 | T110: =IF($F112="one-way",H108,IF($F112="returnable",H109,0)) -> 100 | Y110: <- Part Price with specified packaging
A111: Logistics | C111: IncoTerm | D111: Location | F111: Packaging Type | H111: Pallet Stackability | I111: ="Transport ["&LEFT($D$7,3)&"/pallet]" -> Transport [EUR/pallet] | J111: ="Handling ["&LEFT($D$7,3)&"/box]" -> Handling [EUR/box] | K111: ="Taxes ["&LEFT($D$7,3)&"/pc]" -> Taxes [EUR/pc] | L111: ="Duties ["&LEFT($D$7,3)&"/pc]" -> Duties [EUR/pc] | M111: Return freight | O111: ="Total"&" ["&LEFT($D$7,3)&$F$7&"]" -> Total [EUR/100] | U111: Packaging | V111: Freight | W111: Handling | X111: Tax&Duty
A112: 1 | B112: =D6 -> FRM | C112: DAP | D112: FRM Warehouse | F112: one-way | H112: No | I112: 50 | J112: 0.6 | M112: n/a | O112: =IF(C112="FCA",0,I112/VLOOKUP(F112,$B$108:$S$109,18,0)+J112/VLOOKUP(F112,$B$108:$H$109,7,0)+K112+L112)*PUC -> 2.1625 | P112: =IF($O$104=0,0,O112/$O$104) -> 0.04822073727 | U112: =IF(F112="none",0,VLOOKUP(F112,B$108:O$109,14,0)*PUC) -> 80.3125 | V112: =IF(F112="none",0,I112/VLOOKUP(F112,$B$108:$S$109,18,0)*PUC) -> 1.5625 | W112: =IF(F112="none",0,J112/VLOOKUP(F112,$B$108:$H$109,7,0)*PUC) -> 0.6 | X112: =(K112+L112)*PUC -> 0 | Y112: <- Primary option for quotation
A113: 2 | B113: =E6 -> CFM | C113: DDU | D113: Shanghai | F113: one-way | H113: 2-high | I113: 120 | K113: 0.02 | L113: 0.005 | M113: included | O113: =IF(C113="FCA",0,I113/VLOOKUP(F113,$B$108:$S$109,18,0)+J113/VLOOKUP(F113,$B$108:$H$109,7,0)+K113+L113)*PUC -> 6.25 | P113: =IF($O$104=0,0,O113/$O$104) -> 0.1393662927 | U113: =IF(F113="none",0,VLOOKUP(F113,B$108:O$109,14,0)*PUC) -> 80.3125 | V113: =IF(F113="none",0,I113/VLOOKUP(F113,$B$108:$S$109,18,0)*PUC) -> 3.75 | W113: =IF(F113="none",0,J113/VLOOKUP(F113,$B$108:$H$109,7,0)*PUC) -> 0 | X113: =(K113+L113)*PUC -> 2.5
A114: 3 | B114: =F6 -> SVM | C114: FCA | D114: Hamburg | F114: returnable | H114: 3-high | I114: 50 | K114: 0.02 | L114: 0.005 | O114: =IF(C114="FCA",0,I114/VLOOKUP(F114,$B$108:$S$109,18,0)+J114/VLOOKUP(F114,$B$108:$H$109,7,0)+K114+L114)*PUC -> 0 | P114: =IF($O$104=0,0,O114/$O$104) -> 0 | U114: =IF(F114="none",0,VLOOKUP(F114,B$108:O$109,14,0)*PUC) -> 26.66666667 | V114: =IF(F114="none",0,I114/VLOOKUP(F114,$B$108:$S$109,18,0)*PUC) -> 1.736111111 | W114: =IF(F114="none",0,J114/VLOOKUP(F114,$B$108:$H$109,7,0)*PUC) -> 0 | X114: =(K114+L114)*PUC -> 2.5
A116: Supplier Reference | F116: Date | H116: 2016-11-30 | J116: Cost Breakdown Pricing Summary | O116: =LEFT($D$7,3)&F7 -> EUR/100 | T116: Pallet Type | U116: Length | V116: Width | Y116: <- Part Price including packaging/logistics
E117: Prepared by | H117: Neville Newman | J117: =IF(C112="","",C112&" "&D112&", "&IF(F112="none","without",F112)&" packaging") -> DAP FRM Warehouse, one-way packaging | O117: =IF(C112=0,0,SUM(O$104,O112,IF(F112="none",0,VLOOKUP(F112,B$108:O$109,14,0)))) -> 47.81147602 | T117: EUR-EPAL | U117: 1200 | V117: 800 | Y117: <- Primary option for quotation
J118: =IF(C113="","",C113&" "&D113&", "&IF(F113="none","without",F113)&" packaging") -> DDU Shanghai, one-way packaging | O118: =IF(C113=0,0,SUM(O$104,O113,IF(F113="none",0,VLOOKUP(F113,B$108:O$109,14,0)))) -> 51.89897602 | T118: North America | U118: 1219 | V118: 1143
J119: =IF(C114="","",C114&" "&D114&", "&IF(F114="none","without",F114)&" packaging") -> FCA Hamburg, returnable packaging | O119: =IF(C114=0,0,SUM(O$104,O114,IF(F114="none",0,VLOOKUP(F114,B$108:O$109,14,0)))) -> 45.11251769 | T119: Container | U119: 1170 | V119: 770
B121: Section 4 | D121: Investment / Tooling | M121: =LEFT($D$7,3) -> EUR | O121: =SUBTOTAL(109,S123:S130) -> 60000
B122: Description | F122: Qty | G122: Cav | H122: Lead Time [weeks] | I122: FOT [weeks] | J122: Warranty [parts] | K122: Tool Cap. [/week] | L122: Machine Cap. [/week] | M122: Max Capacity [p.A.] | O122: ="Tool Cost ["&LEFT($D$7,3)&"]" -> Tool Cost [EUR] | W122: 125
A123: 1 | B123: Injection tool | F123: 1 | G123: 4 | H123: 26 | I123: 18 | J123: 8000000 | O123: 50000 | S123: =F123*O123 -> 50000 | Z123: <- max. Leadtime | AC123: =MAX(H123:H130) -> 26
A124: 2 | B124: Assembly jigs | F124: 2 | O124: 5000 | S124: 10000
A125: 3 | S125: 0
A126: 4 | S126: 0
A127: 5 | S127: 0
A128: 6 | S128: 0
A129: 7 | S129: 0
A130: 8 | S130: 0
B132: Section 5 | D132: Productivity & Commercial terms
B133: Payment Terms
B134: Tool Payment Terms
B135: Spare Parts pricing at serial price after EoP | I135: years | L135: =A112&") "&B112&CHAR(10)&C112 -> 1) FRM DAP | M135: =A113&") "&B113&CHAR(10)&C113 -> 2) CFM DDU | O135: =A114&") "&B114&CHAR(10)&C114 -> 3) SVM FCA
B136: Overall committed capacity | E136: [/week]
E137: [/year] | J137: Base Price | K137: w/Packaging | L137: w/Logistics | M137: w/Logistics | O137: w/Logistics
J138: ="["&LEFT($D$7,3)&$F$7&"]" -> [EUR/100] | K138: ="["&LEFT($D$7,3)&$F$7&"]" -> [EUR/100] | L138: ="["&LEFT($D$7,3)&$F$7&"]" -> [EUR/100] | M138: ="["&LEFT($D$7,3)&$F$7&"]" -> [EUR/100] | O138: ="["&LEFT($D$7,3)&$F$7&"]" -> [EUR/100]
B139: Pricing acc. to breakdown | G139: Eff. Date | I139: Prod. Red | J139: =O104 -> 44.84585102 | K139: =O110 -> 45.64897602 | L139: =O117 -> 47.81147602 | M139: =O118 -> 51.89897602 | O139: =O119 -> 45.11251769
B140: Negotiated offer pricing | E140: SoP | G140: =J6 -> 00:00:00 | J140: =O104 -> 44.84585102 | K140: =O110 -> 45.64897602 | L140: =O117 -> 47.81147602 | M140: =O118 -> 51.89897602 | O140: =O119 -> 45.11251769 | S140: =MIN($J$5,1) -> 1 | T140: =+J140 -> 44.84585102 | U140: =+K140 -> 45.64897602 | V140: 47.81147602 | W140: 51.89897602 | X140: 0
E141: Year 2 | G141: =DATE(YEAR(G140)+1,10,1) -> 1901-10-01 | I141: 0.04 | J141: =J140*(1-$I141) -> 43.05201698 | K141: 43.82301698 | L141: 45.89901698 | M141: 49.82301698 | O141: =O140*(1-$I141) -> 43.30801698 | S141: =MIN(MAX($J$5-1,0),1) -> 1 | T141: =+J141 -> 43.05201698 | U141: 43.82301698 | V141: 45.89901698 | W141: 49.82301698 | X141: 0
E142: Year 3 | G142: =DATE(YEAR(G141)+1,MONTH(G141),DAY(G141)) -> 1902-10-01 | I142: 0.04 | J142: 41.3299363 | K142: 42.0700963 | L142: 44.0630563 | M142: 47.8300963 | O142: =O141*(1-$I142) -> 41.5756963 | S142: =MIN(MAX($J$5-2,0),1) -> 1 | T142: 41.3299363 | U142: 42.0700963 | V142: 44.0630563 | W142: 47.8300963 | X142: 0
E143: Year 4 | G143: =DATE(YEAR(G142)+1,MONTH(G142),DAY(G142)) -> 1903-10-01 | I143: 0.04 | J143: 39.67673885 | K143: 40.38729245 | L143: 42.30053405 | M143: 45.91689245 | O143: =O142*(1-$I143) -> 39.91266845 | S143: =MIN(MAX($J$5-3,0),1) -> 1 | T143: 39.67673885 | U143: 40.38729245 | V143: 42.30053405 | W143: 45.91689245 | X143: 0
E144: Year 5 | G144: =DATE(YEAR(G143)+1,MONTH(G143),DAY(G143)) -> 1904-10-01 | J144: 39.67673885 | K144: 40.38729245 | L144: 42.30053405 | M144: 45.91689245 | O144: =O143*(1-$I144) -> 39.91266845 | S144: =MIN(MAX($J$5-4,0),1) -> 0.5 | T144: 39.67673885 | U144: 40.38729245 | V144: 42.30053405 | W144: 45.91689245 | X144: 0
H145: SoP +5 | S145: =MIN(MAX($J$5-5,0),1) -> 0 | T145: =+T144 -> 39.67673885 | U145: =+U144 -> 40.38729245 | V145: 42.30053405 | W145: 45.91689245 | X145: 0
S146: =MIN(MAX($J$5-6,0),1) -> 0 | T146: =+T145 -> 39.67673885 | U146: 40.38729245 | V146: 42.30053405 | W146: 45.91689245 | X146: 0
B147: Tooling acc. to breakdown (Section 4) | I147: =LEFT($D$7,3) -> EUR | J147: =O121 -> 60000 | S147: =MIN(MAX($J$5-7,0),1) -> 0 | T147: =+T146 -> 39.67673885 | U147: =+U145 -> 40.38729245 | V147: 42.30053405 | W147: 45.91689245 | X147: 0
B148: Negotiated tooling amount | I148: =LEFT($D$7,3) -> EUR | J148: 57000 | X148: 0
B149: Additional (one time payment) | I149: =LEFT($D$7,3) -> EUR | J149: 3000 | Y149: <- Enter as positive number
B151: ="Total Cost ["&LEFT($D$7,3)&"]" -> Total Cost [EUR] | H151: ="Lifetime: "&MIN(J5,8)&" yrs" -> Lifetime: 4.5 yrs | I151: =LEFT($D$7,3) -> EUR | J151: =IF(J140=0,0,$J$4*SUMPRODUCT($S140:$S147,T140:T147)/PUC+$J$148-$J$149) -> 1186457.476 | K151: =IF(K140=0,0,$J$4*SUMPRODUCT($S140:$S147,U140:U147)/PUC+$J$148-$J$149) -> 1206738.168 | L151: =IF(L140=0,0,$J$4*SUMPRODUCT($S140:$S147,V140:V147)/PUC+$J$148-$J$149) -> 1261346.102 | M151: =IF(M140=0,0,$J$4*SUMPRODUCT($S140:$S147,W140:W147)/PUC+$J$148-$J$149) -> 1364564.568 | N151: =IF(N140=0,0,$J$4*SUMPRODUCT($S140:$S147,X140:X147)/PUC+$J$148-$J$149) -> 0 | O151: =IF(O140=0,0,$J$4*SUMPRODUCT($S140:$S147,W140:W147)/PUC+$J$148-$J$149) -> 1364564.568 | Y151: <- Max lifetime limited to 8 years
B152: Additional comments/benefits if sourced | G152: Additional reduction of 1% on all products more than 8 years in production.
F156: ="Pricing Overview: "&N7&" ("&N8&")" -> Pricing Overview: Cover Plate (800123400C) | L156: =LEFT($D$7,3) -> EUR
F157: Direct Material | L157: =SUM(L158:L160) -> 0.2591055467 | M157: =L157/$L$171 -> 0.57776927
F158: Material | L158: =(S12+U12)/PUC -> 0.202218 | M158: 0.4509179666
F159: Purchased Parts | L159: =(S35+U35)/PUC -> 0.04916 | M159: 0.1096199509
F160: Material OH | L160: =O62/PUC -> 0.0077275467 | M160: 0.01723135252
F161: Production Cost | L161: =SUM(L162:L166) -> 0.1201549508 | M161: 0.2679288001
F162: Machine Cost | L162: =S64/PUC -> 0.0252058 | M162: 0.05620542228
F163: Direct Labour | L163: =T64/PUC -> 0.06298611 | M163: 0.14045025
F164: Production OH | L164: =O91/PUC -> 0.0176361108 | M164: 0.03932606999
F165: Setup Costs | L165: =U64/PUC -> 0.00332693 | M165: 0.007418590386
F166: Tooling Costs | L166: =V64/PUC -> 0.011 | M166: 0.02452846746
F167: Scrap Costs | L167: =(O92)/PUC -> 0.00752904 | M167: 0.01678871024
F168: Overheads (SG&A, Eng) | L168: =(O97+O98)/PUC -> 0.03234312675 | M168: 0.07212066654 | Y168: ="<- "&TEXT(SUM(L160,L162,L164:L166,L168:L170)/$L$171,"0%")&" Contribution" -> <- 28% Contribution
F169: Special Costs | L169: =(O99+O100)/PUC -> 0.00462962963 | M169: 0.01032342906 | Y169: ="<- "&TEXT(SUM(L168:L170)/$L$171,"0%")&" Gross Margin" -> <- 14% Gross Margin
F170: Profit | L170: =(O101+O102+O103)/PUC -> 0.02469621739 | M170: 0.05506912406
F171: Base Price (without packaging/logistics) | L171: =SUM(L157,L161,L167,L168,L169,L170) -> 0.4484585113 | M171: 1
F172: ="Packaging ("&$F$112&")" -> Packaging (one-way) | L172: =IF(F112="none",0,VLOOKUP(F112,B$108:O$109,14,0)/PUC) -> 0.00803125
F173: ="Logistics ("&$C$112&" "&$D$112&")" -> Logistics (DAP FRM Warehouse) | L173: =O112/PUC -> 0.021625
F174: ="Final Price ("&J117&")" -> Final Price (DAP FRM Warehouse, one-way packaging) | L174: =SUM(L171:L173) -> 0.4781147613
S176: EUR: Euro
S177: USD: US Dollar
S178: ARS: Agentinian Peso
H179: ="Cost Breakdown - Base Price ["&LEFT(D7,3)&"]" -> Cost Breakdown - Base Price [EUR] | S179: AUD: Australian Dollar
H180: =LEFT(D7,3) -> EUR | S180: BRL: Brazilian Real
H181: Breakdown | I181: SoP | J181: Year 2 | K181: Year 3 | L181: Year 4 | M181: Year 5 | S181: CAD: Canadian Dollar
D182: Material | F182: DM | H182: =(S12+S35+O62)/PUC -> 0.2458875467 | S182: CHF: Swiss Franc
D183: Machine | F183: Prod | H183: =(S64+U64+O91+V64)/PUC -> 0.0571688408 | S183: CNY: Chinese Yuan
D184: Labour | F184: DL | H184: =T64/PUC -> 0.06298611 | S184: CZK: Czech Koruny
D185: Other Direct | F185: Other Direct | H185: =SUM(U12,U35,O92)/PUC -> 0.02074704 | S185: DKK: Danish Krone
D186: Overhead | F186: SG&A | H186: =SUM(O97:O98)/PUC -> 0.03234312675 | S186: GBP: Pound Sterling
D187: Special Costs | F187: Sp | H187: =SUM(O99,O100)/PUC -> 0.00462962963 | S187: HKD: Hong Kong Dollar
D188: Profit | F188: Profit | H188: =(O101+O102+O103)/PUC -> 0.02469621739 | S188: HUF: Hungarian Forint
H189: =SUM(H182:H188) -> 0.4484585113 | I189: =J140/PUC -> 0.4484585102 | J189: =IF(S141=0,#N/A,J141/PUC) -> 0.4305201698 | K189: =IF(S142=0,#N/A,J142/PUC) -> 0.413299363 | L189: =IF(S143=0,#N/A,J143/PUC) -> 0.3967673885 | M189: =IF(S144=0,#N/A,J144/PUC) -> 0.3967673885 | S189: IDR: Indonesian Ruphias
S190: INR: Indian Rupee
S191: JPY: Japanese Yen
S192: KRW: Korean Won
S193: MXN: Mexican Peso
S194: MYR: Malaysian Ringit
S195: NOK: Norwegian Krone
S196: NZD: New Zealand Dollar
S197: PHP: Philippine Peso
S198: PLN: Polish Zloty
S199: RON: Romanian New Lei
S200: RUB: Russian Rubel
S201: SEK: Swedish Kronor
S202: SGD: Singapore Dollar
S203: THB: Thai Baht
S204: TND: Tunisian Dinar
S205: TRY: Turkish New Lira
S206: TWD: Taiwanese New Dollar
S207: ZAR: South African Rand

Sheet Summary
A1: Summary Sheet | B1: /100 | C1: =IF(B1="/pc",1,IF(B1="/10",10,IF(B1="/100",100,IF(B1="/1000",1000)))) -> 100 | E1: Example_1 | G1: Example_2 | I1: Example_3
A2: =CELL("Filename",A2) -> https://veoneer-my.sharepoint.com/personal/arnaud_soret_veoneer_com/Documents/Documents/PROCESS & TRAINING/A - PROCESS/VSM/[Supplier Cost Breakdown - Example.xlsm]Summary | E2: 1
A3: Part Number | E3: =IF(E$1=0,"",INDIRECT("'"&E$1&"'!N8")) -> 800123400C | G3: =IF(G$1=0,"",INDIRECT("'"&G$1&"'!N8")) -> 800123400C | I3: =IF(I$1=0,"",INDIRECT("'"&I$1&"'!N8")) -> 800123400C | K3: =IF(K$1=0,"",INDIRECT("'"&K$1&"'!N8")) ->  | M3: =IF(M$1=0,"",INDIRECT("'"&M$1&"'!N8")) ->  | O3: =IF(O$1=0,"",INDIRECT("'"&O$1&"'!N8")) ->  | Q3: =IF(Q$1=0,"",INDIRECT("'"&Q$1&"'!N8")) ->  | S3: =IF(S$1=0,"",INDIRECT("'"&S$1&"'!N8")) -> 
A4: Part Description | E4: =IF(E$1=0,"",INDIRECT("'"&E$1&"'!N7")) -> Cover Plate | G4: =IF(G$1=0,"",INDIRECT("'"&G$1&"'!N7")) -> Cover Plate | I4: =IF(I$1=0,"",INDIRECT("'"&I$1&"'!N7")) -> Cover Plate | K4: =IF(K$1=0,"",INDIRECT("'"&K$1&"'!N7")) ->  | M4: =IF(M$1=0,"",INDIRECT("'"&M$1&"'!N7")) ->  | O4: =IF(O$1=0,"",INDIRECT("'"&O$1&"'!N7")) ->  | Q4: =IF(Q$1=0,"",INDIRECT("'"&Q$1&"'!N7")) ->  | S4: =IF(S$1=0,"",INDIRECT("'"&S$1&"'!N7")) -> 
A5: Annual Quantity (avg) | B5: =SUMPRODUCT(E$5:T$5,$E$2:$T$2) -> 600000 | E5: =IF(E$1=0,0,INDIRECT("'"&E$1&"'!J4")) -> 600000 | G5: =IF(G$1=0,0,INDIRECT("'"&G$1&"'!J4")) -> 600000 | I5: =IF(I$1=0,0,INDIRECT("'"&I$1&"'!J4")) -> 600000 | K5: =IF(K$1=0,0,INDIRECT("'"&K$1&"'!J4")) -> 0 | M5: =IF(M$1=0,0,INDIRECT("'"&M$1&"'!J4")) -> 0 | O5: =IF(O$1=0,0,INDIRECT("'"&O$1&"'!J4")) -> 0 | Q5: =IF(Q$1=0,0,INDIRECT("'"&Q$1&"'!J4")) -> 0 | S5: =IF(S$1=0,0,INDIRECT("'"&S$1&"'!J4")) -> 0
A6: Annual Quantity (peak) | E6: =IF(E$1=0,"",INDIRECT("'"&E$1&"'!K4")) -> 750000 | G6: =IF(G$1=0,"",INDIRECT("'"&G$1&"'!K4")) -> 750000 | I6: =IF(I$1=0,"",INDIRECT("'"&I$1&"'!K4")) -> 750000 | K6: =IF(K$1=0,"",INDIRECT("'"&K$1&"'!K4")) ->  | M6: =IF(M$1=0,"",INDIRECT("'"&M$1&"'!K4")) ->  | O6: =IF(O$1=0,"",INDIRECT("'"&O$1&"'!K4")) ->  | Q6: =IF(Q$1=0,"",INDIRECT("'"&Q$1&"'!K4")) ->  | S6: =IF(S$1=0,"",INDIRECT("'"&S$1&"'!K4")) -> 
A7: Estimated Lifetime (Years) | E7: =IF(E$1=0,"",INDIRECT("'"&E$1&"'!J5")) -> 4.5 | G7: =IF(G$1=0,"",INDIRECT("'"&G$1&"'!J5")) -> 4.5 | I7: =IF(I$1=0,"",INDIRECT("'"&I$1&"'!J5")) -> 4.5 | K7: =IF(K$1=0,"",INDIRECT("'"&K$1&"'!J5")) ->  | M7: =IF(M$1=0,"",INDIRECT("'"&M$1&"'!J5")) ->  | O7: =IF(O$1=0,"",INDIRECT("'"&O$1&"'!J5")) ->  | Q7: =IF(Q$1=0,"",INDIRECT("'"&Q$1&"'!J5")) ->  | S7: =IF(S$1=0,"",INDIRECT("'"&S$1&"'!J5")) -> 
A9: COST BREAKDOWN | B9: TOTAL p.A. | E9: =IF(E$1=0,"",LEFT(INDIRECT("'"&E$1&"'!D7"),3)) -> EUR | F9: =IF(E$1=0,"",$B$1) -> /100 | G9: =IF(G$1=0,"",LEFT(INDIRECT("'"&G$1&"'!D7"),3)) -> EUR | H9: =IF(G$1=0,"",$B$1) -> /100 | I9: =IF(I$1=0,"",LEFT(INDIRECT("'"&I$1&"'!D7"),3)) -> EUR | J9: =IF(I$1=0,"",$B$1) -> /100 | K9: =IF(K$1=0,"",LEFT(INDIRECT("'"&K$1&"'!D7"),3)) ->  | L9: =IF(K$1=0,"",$B$1) ->  | M9: =IF(M$1=0,"",LEFT(INDIRECT("'"&M$1&"'!D7"),3)) ->  | N9: =IF(M$1=0,"",$B$1) ->  | O9: =IF(O$1=0,"",LEFT(INDIRECT("'"&O$1&"'!D7"),3)) ->  | P9: =IF(O$1=0,"",$B$1) ->  | Q9: =IF(Q$1=0,"",LEFT(INDIRECT("'"&Q$1&"'!D7"),3)) ->  | R9: =IF(Q$1=0,"",$B$1) ->  | S9: =IF(S$1=0,"",LEFT(INDIRECT("'"&S$1&"'!D7"),3)) ->  | T9: =IF(S$1=0,"",$B$1) -> 
A10: Unit Conversion Factor | E10: =IF(E$1=0,0,1/INDIRECT("'"&E$1&"'!S3")) -> 0.01 | G10: =IF(G$1=0,0,1/INDIRECT("'"&G$1&"'!S3")) -> 0.01 | I10: =IF(I$1=0,0,1/INDIRECT("'"&I$1&"'!S3")) -> 0.01 | K10: =IF(K$1=0,0,1/INDIRECT("'"&K$1&"'!S3")) -> 0 | M10: =IF(M$1=0,0,1/INDIRECT("'"&M$1&"'!S3")) -> 0 | O10: =IF(O$1=0,0,1/INDIRECT("'"&O$1&"'!S3")) -> 0 | Q10: =IF(Q$1=0,0,1/INDIRECT("'"&Q$1&"'!S3")) -> 0 | S10: =IF(S$1=0,0,1/INDIRECT("'"&S$1&"'!S3")) -> 0
A11: Alternate Currency | G11: USD
A12: Currency Conversion Rate | F12: =IF(E$11=0,"","/"&E9) ->  | G12: 1.07 | H12: =IF(G$11=0,"","/"&G9) -> /EUR | J12: =IF(I$11=0,"","/"&I9) ->  | L12: =IF(K$11=0,"","/"&K9) ->  | N12: =IF(M$11=0,"","/"&M9) ->  | P12: =IF(O$11=0,"","/"&O9) ->  | R12: =IF(Q$11=0,"","/"&Q9) ->  | T12: =IF(S$11=0,"","/"&S9) -> 
A14: Material | B14: =SUMPRODUCT(E14:T14,E$5:T$5,$E$2:$T$2)/C1 -> 155463.328 | C14: =IF($B$31=0,0,+B14/$B$31) -> 0.57776927 | E14: =SUM(E15:E17) -> 25.91055467 | F14: =IF(E$31=0,0,E14/E$31) -> 0.57776927 | G14: =SUM(G15:G17) -> 27.7242935 | H14: =IF(G$31=0,0,G14/G$31) -> 0.57776927 | I14: =SUM(I15:I17) -> 25.91055467 | J14: =IF(I$31=0,0,I14/I$31) -> 0.57776927 | K14: =SUM(K15:K17) -> 0 | L14: =IF(K$31=0,0,K14/K$31) -> 0 | M14: =SUM(M15:M17) -> 0 | N14: =IF(M$31=0,0,M14/M$31) -> 0 | O14: =SUM(O15:O17) -> 0 | P14: =IF(O$31=0,0,O14/O$31) -> 0 | Q14: =SUM(Q15:Q17) -> 0 | R14: =IF(Q$31=0,0,Q14/Q$31) -> 0 | S14: =SUM(S15:S17) -> 0 | T14: =IF(S$31=0,0,S14/S$31) -> 0
A15: Raw Material | B15: =SUMPRODUCT(E15:T15,E$5:T$5,$E$2:$T$2)/C1 -> 121330.8 | C15: 0.4509179666 | E15: =IF(E$1=0,0,(INDIRECT("'"&E$1&"'!S12")+INDIRECT("'"&E$1&"'!U12"))*E10*$C$1*IF(E$12=0,1,E$12)) -> 20.2218 | F15: 0.4509179666 | G15: =IF(G$1=0,0,(INDIRECT("'"&G$1&"'!S12")+INDIRECT("'"&G$1&"'!U12"))*G10*$C$1*IF(G$12=0,1,G$12)) -> 21.637326 | H15: 0.4509179666 | I15: =IF(I$1=0,0,(INDIRECT("'"&I$1&"'!S12")+INDIRECT("'"&I$1&"'!U12"))*I10*$C$1*IF(I$12=0,1,I$12)) -> 20.2218 | J15: 0.4509179666 | K15: =IF(K$1=0,0,(INDIRECT("'"&K$1&"'!S12")+INDIRECT("'"&K$1&"'!U12"))*K10*$C$1*IF(K$12=0,1,K$12)) -> 0 | L15: 0 | M15: =IF(M$1=0,0,(INDIRECT("'"&M$1&"'!S12")+INDIRECT("'"&M$1&"'!U12"))*M10*$C$1*IF(M$12=0,1,M$12)) -> 0 | N15: 0 | O15: =IF(O$1=0,0,(INDIRECT("'"&O$1&"'!S12")+INDIRECT("'"&O$1&"'!U12"))*O10*$C$1*IF(O$12=0,1,O$12)) -> 0 | P15: 0 | Q15: =IF(Q$1=0,0,(INDIRECT("'"&Q$1&"'!S12")+INDIRECT("'"&Q$1&"'!U12"))*Q10*$C$1*IF(Q$12=0,1,Q$12)) -> 0 | R15: 0 | S15: =IF(S$1=0,0,(INDIRECT("'"&S$1&"'!S12")+INDIRECT("'"&S$1&"'!U12"))*S10*$C$1*IF(S$12=0,1,S$12)) -> 0 | T15: 0
A16: Purchased Components | B16: =SUMPRODUCT(E16:T16,E$5:T$5,$E$2:$T$2)/C1 -> 29496 | C16: 0.1096199509 | E16: =IF(E$1=0,0,(INDIRECT("'"&E$1&"'!S35")+INDIRECT("'"&E$1&"'!U35"))*E10*$C$1*IF(E$12=0,1,E$12)) -> 4.916 | F16: 0.1096199509 | G16: =IF(G$1=0,0,(INDIRECT("'"&G$1&"'!S35")+INDIRECT("'"&G$1&"'!U35"))*G10*$C$1*IF(G$12=0,1,G$12)) -> 5.26012 | H16: 0.1096199509 | I16: =IF(I$1=0,0,(INDIRECT("'"&I$1&"'!S35")+INDIRECT("'"&I$1&"'!U35"))*I10*$C$1*IF(I$12=0,1,I$12)) -> 4.916 | J16: 0.1096199509 | K16: =IF(K$1=0,0,(INDIRECT("'"&K$1&"'!S35")+INDIRECT("'"&K$1&"'!U35"))*K10*$C$1*IF(K$12=0,1,K$12)) -> 0 | L16: 0 | M16: =IF(M$1=0,0,(INDIRECT("'"&M$1&"'!S35")+INDIRECT("'"&M$1&"'!U35"))*M10*$C$1*IF(M$12=0,1,M$12)) -> 0 | N16: 0 | O16: =IF(O$1=0,0,(INDIRECT("'"&O$1&"'!S35")+INDIRECT("'"&O$1&"'!U35"))*O10*$C$1*IF(O$12=0,1,O$12)) -> 0 | P16: 0 | Q16: =IF(Q$1=0,0,(INDIRECT("'"&Q$1&"'!S35")+INDIRECT("'"&Q$1&"'!U35"))*Q10*$C$1*IF(Q$12=0,1,Q$12)) -> 0 | R16: 0 | S16: =IF(S$1=0,0,(INDIRECT("'"&S$1&"'!S35")+INDIRECT("'"&S$1&"'!U35"))*S10*$C$1*IF(S$12=0,1,S$12)) -> 0 | T16: 0
A17: Material Overhead | B17: =SUMPRODUCT(E17:T17,E$5:T$5,$E$2:$T$2)/C1 -> 4636.52802 | C17: 0.01723135252 | E17: =IF(E$1=0,0,INDIRECT("'"&E$1&"'!O62")*E10*$C$1*IF(E$12=0,1,E$12)) -> 0.77275467 | F17: 0.01723135252 | G17: =IF(G$1=0,0,INDIRECT("'"&G$1&"'!O62")*G10*$C$1*IF(G$12=0,1,G$12)) -> 0.8268474969 | H17: 0.01723135252 | I17: =IF(I$1=0,0,INDIRECT("'"&I$1&"'!O62")*I10*$C$1*IF(I$12=0,1,I$12)) -> 0.77275467 | J17: 0.01723135252 | K17: =IF(K$1=0,0,INDIRECT("'"&K$1&"'!O62")*K10*$C$1*IF(K$12=0,1,K$12)) -> 0 | L17: 0 | M17: =IF(M$1=0,0,INDIRECT("'"&M$1&"'!O62")*M10*$C$1*IF(M$12=0,1,M$12)) -> 0 | N17: 0 | O17: =IF(O$1=0,0,INDIRECT("'"&O$1&"'!O62")*O10*$C$1*IF(O$12=0,1,O$12)) -> 0 | P17: 0 | Q17: =IF(Q$1=0,0,INDIRECT("'"&Q$1&"'!O62")*Q10*$C$1*IF(Q$12=0,1,Q$12)) -> 0 | R17: 0 | S17: =IF(S$1=0,0,INDIRECT("'"&S$1&"'!O62")*S10*$C$1*IF(S$12=0,1,S$12)) -> 0 | T17: 0
A18: Production | B18: =SUMPRODUCT(E18:T18,E$5:T$5,$E$2:$T$2)/C1 -> 72092.97048 | C18: 0.2679288001 | E18: =SUM(E19:E23) -> 12.01549508 | F18: 0.2679288001 | G18: =SUM(G19:G23) -> 12.85657974 | H18: 0.2679288001 | I18: =SUM(I19:I23) -> 12.01549508 | J18: 0.2679288001 | K18: =SUM(K19:K23) -> 0 | L18: 0 | M18: =SUM(M19:M23) -> 0 | N18: 0 | O18: =SUM(O19:O23) -> 0 | P18: 0 | Q18: =SUM(Q19:Q23) -> 0 | R18: 0 | S18: =SUM(S19:S23) -> 0 | T18: 0
A19: Machine Cost | B19: =SUMPRODUCT(E19:T19,E$5:T$5,$E$2:$T$2)/C1 -> 15123.48 | C19: 0.05620542228 | E19: =IF(E$1=0,0,INDIRECT("'"&E$1&"'!S64")*E10*$C$1*IF(E$12=0,1,E$12)) -> 2.52058 | F19: 0.05620542228 | G19: =IF(G$1=0,0,INDIRECT("'"&G$1&"'!S64")*G10*$C$1*IF(G$12=0,1,G$12)) -> 2.6970206 | H19: 0.05620542228 | I19: =IF(I$1=0,0,INDIRECT("'"&I$1&"'!S64")*I10*$C$1*IF(I$12=0,1,I$12)) -> 2.52058 | J19: 0.05620542228 | K19: =IF(K$1=0,0,INDIRECT("'"&K$1&"'!S64")*K10*$C$1*IF(K$12=0,1,K$12)) -> 0 | L19: 0 | M19: =IF(M$1=0,0,INDIRECT("'"&M$1&"'!S64")*M10*$C$1*IF(M$12=0,1,M$12)) -> 0 | N19: 0 | O19: =IF(O$1=0,0,INDIRECT("'"&O$1&"'!S64")*O10*$C$1*IF(O$12=0,1,O$12)) -> 0 | P19: 0 | Q19: =IF(Q$1=0,0,INDIRECT("'"&Q$1&"'!S64")*Q10*$C$1*IF(Q$12=0,1,Q$12)) -> 0 | R19: 0 | S19: =IF(S$1=0,0,INDIRECT("'"&S$1&"'!S64")*S10*$C$1*IF(S$12=0,1,S$12)) -> 0 | T19: 0
A20: Direct Labour | B20: =SUMPRODUCT(E20:T20,E$5:T$5,$E$2:$T$2)/C1 -> 37791.666 | C20: 0.14045025 | E20: =IF(E$1=0,0,INDIRECT("'"&E$1&"'!T64")*E10*$C$1*IF(E$12=0,1,E$12)) -> 6.298611 | F20: 0.14045025 | G20: =IF(G$1=0,0,INDIRECT("'"&G$1&"'!T64")*G10*$C$1*IF(G$12=0,1,G$12)) -> 6.73951377 | H20: 0.14045025 | I20: =IF(I$1=0,0,INDIRECT("'"&I$1&"'!T64")*I10*$C$1*IF(I$12=0,1,I$12)) -> 6.298611 | J20: 0.14045025 | K20: =IF(K$1=0,0,INDIRECT("'"&K$1&"'!T64")*K10*$C$1*IF(K$12=0,1,K$12)) -> 0 | L20: 0 | M20: =IF(M$1=0,0,INDIRECT("'"&M$1&"'!T64")*M10*$C$1*IF(M$12=0,1,M$12)) -> 0 | N20: 0 | O20: =IF(O$1=0,0,INDIRECT("'"&O$1&"'!T64")*O10*$C$1*IF(O$12=0,1,O$12)) -> 0 | P20: 0 | Q20: =IF(Q$1=0,0,INDIRECT("'"&Q$1&"'!T64")*Q10*$C$1*IF(Q$12=0,1,Q$12)) -> 0 | R20: 0 | S20: =IF(S$1=0,0,INDIRECT("'"&S$1&"'!T64")*S10*$C$1*IF(S$12=0,1,S$12)) -> 0 | T20: 0
A21: POH | B21: =SUMPRODUCT(E21:T21,E$5:T$5,$E$2:$T$2)/C1 -> 10581.66648 | C21: 0.03932606999 | E21: =IF(E$1=0,0,INDIRECT("'"&E$1&"'!O91")*E10*$C$1*IF(E$12=0,1,E$12)) -> 1.76361108 | F21: 0.03932606999 | G21: =IF(G$1=0,0,INDIRECT("'"&G$1&"'!O91")*G10*$C$1*IF(G$12=0,1,G$12)) -> 1.887063856 | H21: 0.03932606999 | I21: =IF(I$1=0,0,INDIRECT("'"&I$1&"'!O91")*I10*$C$1*IF(I$12=0,1,I$12)) -> 1.76361108 | J21: 0.03932606999 | K21: =IF(K$1=0,0,INDIRECT("'"&K$1&"'!O91")*K10*$C$1*IF(K$12=0,1,K$12)) -> 0 | L21: 0 | M21: =IF(M$1=0,0,INDIRECT("'"&M$1&"'!O91")*M10*$C$1*IF(M$12=0,1,M$12)) -> 0 | N21: 0 | O21: =IF(O$1=0,0,INDIRECT("'"&O$1&"'!O91")*O10*$C$1*IF(O$12=0,1,O$12)) -> 0 | P21: 0 | Q21: =IF(Q$1=0,0,INDIRECT("'"&Q$1&"'!O91")*Q10*$C$1*IF(Q$12=0,1,Q$12)) -> 0 | R21: 0 | S21: =IF(S$1=0,0,INDIRECT("'"&S$1&"'!O91")*S10*$C$1*IF(S$12=0,1,S$12)) -> 0 | T21: 0
A22: Setup | B22: =SUMPRODUCT(E22:T22,E$5:T$5,$E$2:$T$2)/C1 -> 1996.158 | C22: 0.007418590386 | E22: =IF(E$1=0,0,INDIRECT("'"&E$1&"'!U64")*E10*$C$1*IF(E$12=0,1,E$12)) -> 0.332693 | F22: 0.007418590386 | G22: =IF(G$1=0,0,INDIRECT("'"&G$1&"'!U64")*G10*$C$1*IF(G$12=0,1,G$12)) -> 0.35598151 | H22: 0.007418590386 | I22: =IF(I$1=0,0,INDIRECT("'"&I$1&"'!U64")*I10*$C$1*IF(I$12=0,1,I$12)) -> 0.332693 | J22: 0.007418590386 | K22: =IF(K$1=0,0,INDIRECT("'"&K$1&"'!U64")*K10*$C$1*IF(K$12=0,1,K$12)) -> 0 | L22: 0 | M22: =IF(M$1=0,0,INDIRECT("'"&M$1&"'!U64")*M10*$C$1*IF(M$12=0,1,M$12)) -> 0 | N22: 0 | O22: =IF(O$1=0,0,INDIRECT("'"&O$1&"'!U64")*O10*$C$1*IF(O$12=0,1,O$12)) -> 0 | P22: 0 | Q22: =IF(Q$1=0,0,INDIRECT("'"&Q$1&"'!U64")*Q10*$C$1*IF(Q$12=0,1,Q$12)) -> 0 | R22: 0 | S22: =IF(S$1=0,0,INDIRECT("'"&S$1&"'!U64")*S10*$C$1*IF(S$12=0,1,S$12)) -> 0 | T22: 0
A23: Tool Maintenance | B23: =SUMPRODUCT(E23:T23,E$5:T$5,$E$2:$T$2)/C1 -> 6600 | C23: 0.02452846746 | E23: =IF(E$1=0,0,INDIRECT("'"&E$1&"'!V64")*E10*$C$1*IF(E$12=0,1,E$12)) -> 1.1 | F23: 0.02452846746 | G23: =IF(G$1=0,0,INDIRECT("'"&G$1&"'!V64")*G10*$C$1*IF(G$12=0,1,G$12)) -> 1.177 | H23: 0.02452846746 | I23: =IF(I$1=0,0,INDIRECT("'"&I$1&"'!V64")*I10*$C$1*IF(I$12=0,1,I$12)) -> 1.1 | J23: 0.02452846746 | K23: =IF(K$1=0,0,INDIRECT("'"&K$1&"'!V64")*K10*$C$1*IF(K$12=0,1,K$12)) -> 0 | L23: 0 | M23: =IF(M$1=0,0,INDIRECT("'"&M$1&"'!V64")*M10*$C$1*IF(M$12=0,1,M$12)) -> 0 | N23: 0 | O23: =IF(O$1=0,0,INDIRECT("'"&O$1&"'!V64")*O10*$C$1*IF(O$12=0,1,O$12)) -> 0 | P23: 0 | Q23: =IF(Q$1=0,0,INDIRECT("'"&Q$1&"'!V64")*Q10*$C$1*IF(Q$12=0,1,Q$12)) -> 0 | R23: 0 | S23: =IF(S$1=0,0,INDIRECT("'"&S$1&"'!V64")*S10*$C$1*IF(S$12=0,1,S$12)) -> 0 | T23: 0
A24: Scrap | B24: =SUMPRODUCT(E24:T24,E$5:T$5,$E$2:$T$2)/C1 -> 4517.424 | C24: 0.01678871024 | E24: =IF(E$1=0,0,(INDIRECT("'"&E$1&"'!O92"))*E10*$C$1*IF(E$12=0,1,E$12)) -> 0.752904 | F24: 0.01678871024 | G24: =IF(G$1=0,0,(INDIRECT("'"&G$1&"'!O92"))*G10*$C$1*IF(G$12=0,1,G$12)) -> 0.80560728 | H24: 0.01678871024 | I24: =IF(I$1=0,0,(INDIRECT("'"&I$1&"'!O92"))*I10*$C$1*IF(I$12=0,1,I$12)) -> 0.752904 | J24: 0.01678871024 | K24: =IF(K$1=0,0,(INDIRECT("'"&K$1&"'!O92"))*K10*$C$1*IF(K$12=0,1,K$12)) -> 0 | L24: 0 | M24: =IF(M$1=0,0,(INDIRECT("'"&M$1&"'!O92"))*M10*$C$1*IF(M$12=0,1,M$12)) -> 0 | N24: 0 | O24: =IF(O$1=0,0,(INDIRECT("'"&O$1&"'!O92"))*O10*$C$1*IF(O$12=0,1,O$12)) -> 0 | P24: 0 | Q24: =IF(Q$1=0,0,(INDIRECT("'"&Q$1&"'!O92"))*Q10*$C$1*IF(Q$12=0,1,Q$12)) -> 0 | R24: 0 | S24: =IF(S$1=0,0,(INDIRECT("'"&S$1&"'!O92"))*S10*$C$1*IF(S$12=0,1,S$12)) -> 0 | T24: 0
A25: Total Manufactured Cost | B25: =SUMPRODUCT(E25:T25,E$5:T$5,$E$2:$T$2)/C1 -> 232073.7225 | C25: 0.8624867803 | E25: =SUM(E14,E24,E18) -> 38.67895375 | F25: 0.8624867803 | G25: =SUM(G14,G24,G18) -> 41.38648051 | H25: 0.8624867803 | I25: =SUM(I14,I24,I18) -> 38.67895375 | J25: 0.8624867803 | K25: =SUM(K14,K24,K18) -> 0 | L25: 0 | M25: =SUM(M14,M24,M18) -> 0 | N25: 0 | O25: =SUM(O14,O24,O18) -> 0 | P25: 0 | Q25: =SUM(Q14,Q24,Q18) -> 0 | R25: 0 | S25: =SUM(S14,S24,S18) -> 0 | T25: 0
A26: Overheads | B26: =SUMPRODUCT(E26:T26,E$5:T$5,$E$2:$T$2)/C1 -> 19405.87605 | C26: 0.07212066654 | E26: =E28+E27 -> 3.234312675 | F26: 0.07212066654 | G26: =G28+G27 -> 3.460714562 | H26: 0.07212066654 | I26: =I28+I27 -> 3.234312675 | J26: 0.07212066654 | K26: =K28+K27 -> 0 | L26: 0 | M26: =M28+M27 -> 0 | N26: 0 | O26: =O28+O27 -> 0 | P26: 0 | Q26: =Q28+Q27 -> 0 | R26: 0 | S26: =S28+S27 -> 0 | T26: 0
A27: SG&A | B27: =SUMPRODUCT(E27:T27,E$5:T$5,$E$2:$T$2)/C1 -> 12443.66439 | C27: 0.04624606319 | E27: =IF(E$1=0,0,INDIRECT("'"&E$1&"'!O97")*E10*$C$1*IF(E$12=0,1,E$12)) -> 2.073944065 | F27: 0.04624606319 | G27: =IF(G$1=0,0,INDIRECT("'"&G$1&"'!O97")*G10*$C$1*IF(G$12=0,1,G$12)) -> 2.21912015 | H27: 0.04624606319 | I27: =IF(I$1=0,0,INDIRECT("'"&I$1&"'!O97")*I10*$C$1*IF(I$12=0,1,I$12)) -> 2.073944065 | J27: 0.04624606319 | K27: =IF(K$1=0,0,INDIRECT("'"&K$1&"'!O97")*K10*$C$1*IF(K$12=0,1,K$12)) -> 0 | L27: 0 | M27: =IF(M$1=0,0,INDIRECT("'"&M$1&"'!O97")*M10*$C$1*IF(M$12=0,1,M$12)) -> 0 | N27: 0 | O27: =IF(O$1=0,0,INDIRECT("'"&O$1&"'!O97")*O10*$C$1*IF(O$12=0,1,O$12)) -> 0 | P27: 0 | Q27: =IF(Q$1=0,0,INDIRECT("'"&Q$1&"'!O97")*Q10*$C$1*IF(Q$12=0,1,Q$12)) -> 0 | R27: 0 | S27: =IF(S$1=0,0,INDIRECT("'"&S$1&"'!O97")*S10*$C$1*IF(S$12=0,1,S$12)) -> 0 | T27: 0
A28: ED&T | B28: =SUMPRODUCT(E28:T28,E$5:T$5,$E$2:$T$2)/C1 -> 6962.211656 | C28: 0.02587460334 | E28: =IF(E$1=0,0,INDIRECT("'"&E$1&"'!O98")*E10*$C$1*IF(E$12=0,1,E$12)) -> 1.160368609 | F28: 0.02587460334 | G28: =IF(G$1=0,0,INDIRECT("'"&G$1&"'!O98")*G10*$C$1*IF(G$12=0,1,G$12)) -> 1.241594412 | H28: 0.02587460334 | I28: =IF(I$1=0,0,INDIRECT("'"&I$1&"'!O98")*I10*$C$1*IF(I$12=0,1,I$12)) -> 1.160368609 | J28: 0.02587460334 | K28: =IF(K$1=0,0,INDIRECT("'"&K$1&"'!O98")*K10*$C$1*IF(K$12=0,1,K$12)) -> 0 | L28: 0 | M28: =IF(M$1=0,0,INDIRECT("'"&M$1&"'!O98")*M10*$C$1*IF(M$12=0,1,M$12)) -> 0 | N28: 0 | O28: =IF(O$1=0,0,INDIRECT("'"&O$1&"'!O98")*O10*$C$1*IF(O$12=0,1,O$12)) -> 0 | P28: 0 | Q28: =IF(Q$1=0,0,INDIRECT("'"&Q$1&"'!O98")*Q10*$C$1*IF(Q$12=0,1,Q$12)) -> 0 | R28: 0 | S28: =IF(S$1=0,0,INDIRECT("'"&S$1&"'!O98")*S10*$C$1*IF(S$12=0,1,S$12)) -> 0 | T28: 0
A29: Special Costs | B29: =SUMPRODUCT(E29:T29,E$5:T$5,$E$2:$T$2)/C1 -> 2777.777778 | C29: 0.01032342906 | E29: =IF(E$1=0,0,(INDIRECT("'"&E$1&"'!O99")+INDIRECT("'"&E$1&"'!O100"))*E10*$C$1*IF(E$12=0,1,E$12)) -> 0.462962963 | F29: 0.01032342906 | G29: =IF(G$1=0,0,(INDIRECT("'"&G$1&"'!O99")+INDIRECT("'"&G$1&"'!O100"))*G10*$C$1*IF(G$12=0,1,G$12)) -> 0.4953703704 | H29: 0.01032342906 | I29: =IF(I$1=0,0,(INDIRECT("'"&I$1&"'!O99")+INDIRECT("'"&I$1&"'!O100"))*I10*$C$1*IF(I$12=0,1,I$12)) -> 0.462962963 | J29: 0.01032342906 | K29: =IF(K$1=0,0,(INDIRECT("'"&K$1&"'!O99")+INDIRECT("'"&K$1&"'!O100"))*K10*$C$1*IF(K$12=0,1,K$12)) -> 0 | L29: 0 | M29: =IF(M$1=0,0,(INDIRECT("'"&M$1&"'!O99")+INDIRECT("'"&M$1&"'!O100"))*M10*$C$1*IF(M$12=0,1,M$12)) -> 0 | N29: 0 | O29: =IF(O$1=0,0,(INDIRECT("'"&O$1&"'!O99")+INDIRECT("'"&O$1&"'!O100"))*O10*$C$1*IF(O$12=0,1,O$12)) -> 0 | P29: 0 | Q29: =IF(Q$1=0,0,(INDIRECT("'"&Q$1&"'!O99")+INDIRECT("'"&Q$1&"'!O100"))*Q10*$C$1*IF(Q$12=0,1,Q$12)) -> 0 | R29: 0 | S29: =IF(S$1=0,0,(INDIRECT("'"&S$1&"'!O99")+INDIRECT("'"&S$1&"'!O100"))*S10*$C$1*IF(S$12=0,1,S$12)) -> 0 | T29: 0
A30: Profit | B30: =SUMPRODUCT(E30:T30,E$5:T$5,$E$2:$T$2)/C1 -> 14817.73044 | C30: 0.05506912406 | E30: =IF(E$1=0,0,(INDIRECT("'"&E$1&"'!O101")+INDIRECT("'"&E$1&"'!O102")+INDIRECT("'"&E$1&"'!O103"))*E10*$C$1*IF(E$12=0,1,E$12)) -> 2.469621739 | F30: 0.05506912406 | G30: =IF(G$1=0,0,(INDIRECT("'"&G$1&"'!O101")+INDIRECT("'"&G$1&"'!O102")+INDIRECT("'"&G$1&"'!O103"))*G10*$C$1*IF(G$12=0,1,G$12)) -> 2.642495261 | H30: 0.05506912406 | I30: =IF(I$1=0,0,(INDIRECT("'"&I$1&"'!O101")+INDIRECT("'"&I$1&"'!O102")+INDIRECT("'"&I$1&"'!O103"))*I10*$C$1*IF(I$12=0,1,I$12)) -> 2.469621739 | J30: 0.05506912406 | K30: =IF(K$1=0,0,(INDIRECT("'"&K$1&"'!O101")+INDIRECT("'"&K$1&"'!O102")+INDIRECT("'"&K$1&"'!O103"))*K10*$C$1*IF(K$12=0,1,K$12)) -> 0 | L30: 0 | M30: =IF(M$1=0,0,(INDIRECT("'"&M$1&"'!O101")+INDIRECT("'"&M$1&"'!O102")+INDIRECT("'"&M$1&"'!O103"))*M10*$C$1*IF(M$12=0,1,M$12)) -> 0 | N30: 0 | O30: =IF(O$1=0,0,(INDIRECT("'"&O$1&"'!O101")+INDIRECT("'"&O$1&"'!O102")+INDIRECT("'"&O$1&"'!O103"))*O10*$C$1*IF(O$12=0,1,O$12)) -> 0 | P30: 0 | Q30: =IF(Q$1=0,0,(INDIRECT("'"&Q$1&"'!O101")+INDIRECT("'"&Q$1&"'!O102")+INDIRECT("'"&Q$1&"'!O103"))*Q10*$C$1*IF(Q$12=0,1,Q$12)) -> 0 | R30: 0 | S30: =IF(S$1=0,0,(INDIRECT("'"&S$1&"'!O101")+INDIRECT("'"&S$1&"'!O102")+INDIRECT("'"&S$1&"'!O103"))*S10*$C$1*IF(S$12=0,1,S$12)) -> 0 | T30: 0
A31: Base Price | B31: =SUMPRODUCT(E31:T31,E$5:T$5,$E$2:$T$2)/C1 -> 269075.1068 | C31: 1 | E31: =SUM(E25,E26,E29:E30) -> 44.84585113 | F31: =IF(E$1=0,"",IF(E11="",E9,E11)&$B$1) -> EUR/100 | G31: =SUM(G25,G26,G29:G30) -> 47.98506071 | H31: =IF(G$1=0,"",IF(G11="",G9,G11)&$B$1) -> USD/100 | I31: =SUM(I25,I26,I29:I30) -> 44.84585113 | J31: =IF(I$1=0,"",IF(I11="",I9,I11)&$B$1) -> EUR/100 | K31: =SUM(K25,K26,K29:K30) -> 0 | L31: =IF(K$1=0,"",IF(K11="",K9,K11)&$B$1) ->  | M31: =SUM(M25,M26,M29:M30) -> 0 | N31: =IF(M$1=0,"",IF(M11="",M9,M11)&$B$1) ->  | O31: =SUM(O25,O26,O29:O30) -> 0 | P31: =IF(O$1=0,"",IF(O11="",O9,O11)&$B$1) ->  | Q31: =SUM(Q25,Q26,Q29:Q30) -> 0 | R31: =IF(Q$1=0,"",IF(Q11="",Q9,Q11)&$B$1) ->  | S31: =SUM(S25,S26,S29:S30) -> 0 | T31: =IF(S$1=0,"",IF(S11="",S9,S11)&$B$1) -> 
A33: DELIVERY Terms | E33: =IF(E$1=0,"",INDIRECT("'"&E$1&"'!C112")&", "&INDIRECT("'"&E$1&"'!$D$112")) -> DAP, FRM Warehouse | G33: =IF(G$1=0,"",INDIRECT("'"&G$1&"'!C112")&", "&INDIRECT("'"&G$1&"'!$D$112")) -> DAP, FRM Warehouse | I33: =IF(I$1=0,"",INDIRECT("'"&I$1&"'!C112")&", "&INDIRECT("'"&I$1&"'!$D$112")) -> DAP, FRM Warehouse | K33: =IF(K$1=0,"",INDIRECT("'"&K$1&"'!C112")&", "&INDIRECT("'"&K$1&"'!$D$112")) ->  | M33: =IF(M$1=0,"",INDIRECT("'"&M$1&"'!C112")&", "&INDIRECT("'"&M$1&"'!$D$112")) ->  | O33: =IF(O$1=0,"",INDIRECT("'"&O$1&"'!C112")&", "&INDIRECT("'"&O$1&"'!$D$112")) ->  | Q33: =IF(Q$1=0,"",INDIRECT("'"&Q$1&"'!C112")&", "&INDIRECT("'"&Q$1&"'!$D$112")) ->  | S33: =IF(S$1=0,"",INDIRECT("'"&S$1&"'!C112")&", "&INDIRECT("'"&S$1&"'!$D$112")) -> 
A34: Packaging Type | E34: =IF(E$1=0,"",INDIRECT("'"&E$1&"'!K112")) -> 0 | G34: =IF(G$1=0,"",INDIRECT("'"&G$1&"'!K112")) -> 0 | I34: =IF(I$1=0,"",INDIRECT("'"&I$1&"'!K112")) -> 0 | K34: =IF(K$1=0,"",INDIRECT("'"&K$1&"'!K112")) ->  | M34: =IF(M$1=0,"",INDIRECT("'"&M$1&"'!K112")) ->  | O34: =IF(O$1=0,"",INDIRECT("'"&O$1&"'!K112")) ->  | Q34: =IF(Q$1=0,"",INDIRECT("'"&Q$1&"'!K112")) ->  | S34: =IF(S$1=0,"",INDIRECT("'"&S$1&"'!K112")) -> 
A35: Parts per Box / Pallet | E35: =IF(E$1=0,0,INDIRECT("'"&E$1&"'!T110")&" / "&INDIRECT("'"&E$1&"'!S110")) -> 100 / 3200 | G35: =IF(G$1=0,0,INDIRECT("'"&G$1&"'!T110")&" / "&INDIRECT("'"&G$1&"'!S110")) -> 100 / 3200 | I35: =IF(I$1=0,0,INDIRECT("'"&I$1&"'!T110")&" / "&INDIRECT("'"&I$1&"'!S110")) -> 100 / 3200 | K35: =IF(K$1=0,0,INDIRECT("'"&K$1&"'!T110")&" / "&INDIRECT("'"&K$1&"'!S110")) -> 0 | M35: =IF(M$1=0,0,INDIRECT("'"&M$1&"'!T110")&" / "&INDIRECT("'"&M$1&"'!S110")) -> 0 | O35: =IF(O$1=0,0,INDIRECT("'"&O$1&"'!T110")&" / "&INDIRECT("'"&O$1&"'!S110")) -> 0 | Q35: =IF(Q$1=0,0,INDIRECT("'"&Q$1&"'!T110")&" / "&INDIRECT("'"&Q$1&"'!S110")) -> 0 | S35: =IF(S$1=0,0,INDIRECT("'"&S$1&"'!T110")&" / "&INDIRECT("'"&S$1&"'!S110")) -> 0
A36: Packaging Cost | B36: =SUMPRODUCT(E36:T36,E$5:T$5,$E$2:$T$2)/C1 -> 4818.75 | E36: =IF(E$1=0,0,INDIRECT("'"&E$1&"'!L172")*$C$1*IF(E$12=0,1,E$12)) -> 0.803125 | G36: =IF(G$1=0,0,INDIRECT("'"&G$1&"'!L172")*$C$1*IF(G$12=0,1,G$12)) -> 0.85934375 | I36: =IF(I$1=0,0,INDIRECT("'"&I$1&"'!L172")*$C$1*IF(I$12=0,1,I$12)) -> 0.803125 | K36: =IF(K$1=0,0,INDIRECT("'"&K$1&"'!L172")*$C$1*IF(K$12=0,1,K$12)) -> 0 | M36: =IF(M$1=0,0,INDIRECT("'"&M$1&"'!L172")*$C$1*IF(M$12=0,1,M$12)) -> 0 | O36: =IF(O$1=0,0,INDIRECT("'"&O$1&"'!L172")*$C$1*IF(O$12=0,1,O$12)) -> 0 | Q36: =IF(Q$1=0,0,INDIRECT("'"&Q$1&"'!L172")*$C$1*IF(Q$12=0,1,Q$12)) -> 0 | S36: =IF(S$1=0,0,INDIRECT("'"&S$1&"'!L172")*$C$1*IF(S$12=0,1,S$12)) -> 0
A37: Freight Cost | B37: =SUMPRODUCT(E37:T37,E$5:T$5,$E$2:$T$2)/C1 -> 12975 | E37: =IF(E$1=0,0,INDIRECT("'"&E$1&"'!L173")*$C$1*IF(E$12=0,1,E$12)) -> 2.1625 | G37: =IF(G$1=0,0,INDIRECT("'"&G$1&"'!L173")*$C$1*IF(G$12=0,1,G$12)) -> 2.313875 | I37: =IF(I$1=0,0,INDIRECT("'"&I$1&"'!L173")*$C$1*IF(I$12=0,1,I$12)) -> 2.1625 | K37: =IF(K$1=0,0,INDIRECT("'"&K$1&"'!L173")*$C$1*IF(K$12=0,1,K$12)) -> 0 | M37: =IF(M$1=0,0,INDIRECT("'"&M$1&"'!L173")*$C$1*IF(M$12=0,1,M$12)) -> 0 | O37: =IF(O$1=0,0,INDIRECT("'"&O$1&"'!L173")*$C$1*IF(O$12=0,1,O$12)) -> 0 | Q37: =IF(Q$1=0,0,INDIRECT("'"&Q$1&"'!L173")*$C$1*IF(Q$12=0,1,Q$12)) -> 0 | S37: =IF(S$1=0,0,INDIRECT("'"&S$1&"'!L173")*$C$1*IF(S$12=0,1,S$12)) -> 0
A38: Final Price | B38: =SUMPRODUCT(E38:T38,E$5:T$5,$E$2:$T$2)/C1 -> 286868.8568 | E38: =E31+E36+E37 -> 47.81147613 | F38: =IF(E$1=0,"",IF(E11="",E9,E11)&$B$1) -> EUR/100 | G38: =G31+G36+G37 -> 51.15827946 | H38: =IF(G$1=0,"",IF(G11="",G9,G11)&$B$1) -> USD/100 | I38: =I31+I36+I37 -> 47.81147613 | J38: =IF(I$1=0,"",IF(I11="",I9,I11)&$B$1) -> EUR/100 | K38: =K31+K36+K37 -> 0 | L38: =IF(K$1=0,"",IF(K11="",K9,K11)&$B$1) ->  | M38: =M31+M36+M37 -> 0 | N38: =IF(M$1=0,"",IF(M11="",M9,M11)&$B$1) ->  | O38: =O31+O36+O37 -> 0 | P38: =IF(O$1=0,"",IF(O11="",O9,O11)&$B$1) ->  | Q38: =Q31+Q36+Q37 -> 0 | R38: =IF(Q$1=0,"",IF(Q11="",Q9,Q11)&$B$1) ->  | S38: =S31+S36+S37 -> 0 | T38: =IF(S$1=0,"",IF(S11="",S9,S11)&$B$1) -> 
A39: Tooling Cost | B39: =SUMPRODUCT(E39:T39,$E$2:$T$2) -> 60000 | E39: =IF(E$1=0,0,INDIRECT("'"&E$1&"'!O121")*IF(E$12=0,1,E$12)) -> 60000 | F39: =IF(E11="",E9,E11) -> EUR | G39: =IF(G$1=0,0,INDIRECT("'"&G$1&"'!O121")*IF(G$12=0,1,G$12)) -> 64200 | H39: =IF(G11="",G9,G11) -> USD | I39: =IF(I$1=0,0,INDIRECT("'"&I$1&"'!O121")*IF(I$12=0,1,I$12)) -> 60000 | J39: =IF(I11="",I9,I11) -> EUR | K39: =IF(K$1=0,0,INDIRECT("'"&K$1&"'!O121")*IF(K$12=0,1,K$12)) -> 0 | L39: =IF(K11="",K9,K11) ->  | M39: =IF(M$1=0,0,INDIRECT("'"&M$1&"'!O121")*IF(M$12=0,1,M$12)) -> 0 | N39: =IF(M11="",M9,M11) ->  | O39: =IF(O$1=0,0,INDIRECT("'"&O$1&"'!O121")*IF(O$12=0,1,O$12)) -> 0 | P39: =IF(O11="",O9,O11) ->  | Q39: =IF(Q$1=0,0,INDIRECT("'"&Q$1&"'!O121")*IF(Q$12=0,1,Q$12)) -> 0 | R39: =IF(Q11="",Q9,Q11) ->  | S39: =IF(S$1=0,0,INDIRECT("'"&S$1&"'!O121")*IF(S$12=0,1,S$12)) -> 0 | T39: =IF(S11="",S9,S11) -> 
A41: SUPPLIER INFORMATION
A42: Supplier Quote Ref. | E42: =IF(E$1=0,"",INDIRECT("'"&E$1&"'!$D$116")) -> 0 | G42: =IF(G$1=0,"",INDIRECT("'"&G$1&"'!$D$116")) -> 0 | I42: =IF(I$1=0,"",INDIRECT("'"&I$1&"'!$D$116")) -> 0 | K42: =IF(K$1=0,"",INDIRECT("'"&K$1&"'!$D$116")) ->  | M42: =IF(M$1=0,"",INDIRECT("'"&M$1&"'!$D$116")) ->  | O42: =IF(O$1=0,"",INDIRECT("'"&O$1&"'!$D$116")) ->  | Q42: =IF(Q$1=0,"",INDIRECT("'"&Q$1&"'!$D$116")) ->  | S42: =IF(S$1=0,"",INDIRECT("'"&S$1&"'!$D$116")) -> 
A43: Prepared by: | E43: =IF(E$1=0,"",INDIRECT("'"&E$1&"'!H117")) -> Neville Newman | G43: =IF(G$1=0,"",INDIRECT("'"&G$1&"'!H117")) -> Neville Newman | I43: =IF(I$1=0,"",INDIRECT("'"&I$1&"'!H117")) -> Neville Newman | K43: =IF(K$1=0,"",INDIRECT("'"&K$1&"'!H117")) ->  | M43: =IF(M$1=0,"",INDIRECT("'"&M$1&"'!H117")) ->  | O43: =IF(O$1=0,"",INDIRECT("'"&O$1&"'!H117")) ->  | Q43: =IF(Q$1=0,"",INDIRECT("'"&Q$1&"'!H117")) ->  | S43: =IF(S$1=0,"",INDIRECT("'"&S$1&"'!H117")) -> 
A44: Date | E44: =IF(E$1=0,"",INDIRECT("'"&E$1&"'!H116")) -> 2016-11-30 | G44: =IF(G$1=0,"",INDIRECT("'"&G$1&"'!H116")) -> 2016-11-30 | I44: =IF(I$1=0,"",INDIRECT("'"&I$1&"'!H116")) -> 2016-11-30 | K44: =IF(K$1=0,"",INDIRECT("'"&K$1&"'!H116")) ->  | M44: =IF(M$1=0,"",INDIRECT("'"&M$1&"'!H116")) ->  | O44: =IF(O$1=0,"",INDIRECT("'"&O$1&"'!H116")) ->  | Q44: =IF(Q$1=0,"",INDIRECT("'"&Q$1&"'!H116")) ->  | S44: =IF(S$1=0,"",INDIRECT("'"&S$1&"'!H116")) -> 
A45: Supplier Comments | E45: =IF(E$1=0,"",INDIRECT("'"&E$1&"'!$A$118")) -> 0 | G45: =IF(G$1=0,"",INDIRECT("'"&G$1&"'!$A$118")) -> 0 | I45: =IF(I$1=0,"",INDIRECT("'"&I$1&"'!$A$118")) -> 0 | K45: =IF(K$1=0,"",INDIRECT("'"&K$1&"'!$A$118")) ->  | M45: =IF(M$1=0,"",INDIRECT("'"&M$1&"'!$A$118")) ->  | O45: =IF(O$1=0,"",INDIRECT("'"&O$1&"'!$A$118")) ->  | Q45: =IF(Q$1=0,"",INDIRECT("'"&Q$1&"'!$A$118")) ->  | S45: =IF(S$1=0,"",INDIRECT("'"&S$1&"'!$A$118")) -> 
A46: COMMERCIAL INFORMATION
A47: Pricing Summary (Primary Option)
A48: Base Price (incl packaging) | E48: =IF(E$1=0,0,INDIRECT("'"&E$1&"'!K140")*E10*$C$1*IF(E$12=0,1,E$12)) -> 45.64897602 | F48: =IF(E$1=0,"",IF(E11="",E9,E11)&$B$1) -> EUR/100 | G48: =IF(G$1=0,0,INDIRECT("'"&G$1&"'!K140")*G10*$C$1*IF(G$12=0,1,G$12)) -> 48.84440435 | H48: =IF(G$1=0,"",IF(G11="",G9,G11)&$B$1) -> USD/100 | I48: =IF(I$1=0,0,INDIRECT("'"&I$1&"'!K140")*I10*$C$1*IF(I$12=0,1,I$12)) -> 45.64897602 | J48: =IF(I$1=0,"",IF(I11="",I9,I11)&$B$1) -> EUR/100 | K48: =IF(K$1=0,0,INDIRECT("'"&K$1&"'!K140")*K10*$C$1*IF(K$12=0,1,K$12)) -> 0 | L48: =IF(K$1=0,"",IF(K11="",K9,K11)&$B$1) ->  | M48: =IF(M$1=0,0,INDIRECT("'"&M$1&"'!K140")*M10*$C$1*IF(M$12=0,1,M$12)) -> 0 | N48: =IF(M$1=0,"",IF(M11="",M9,M11)&$B$1) ->  | O48: =IF(O$1=0,0,INDIRECT("'"&O$1&"'!K140")*O10*$C$1*IF(O$12=0,1,O$12)) -> 0 | P48: =IF(O$1=0,"",IF(O11="",O9,O11)&$B$1) ->  | Q48: =IF(Q$1=0,0,INDIRECT("'"&Q$1&"'!K140")*Q10*$C$1*IF(Q$12=0,1,Q$12)) -> 0 | R48: =IF(Q$1=0,"",IF(Q11="",Q9,Q11)&$B$1) ->  | S48: =IF(S$1=0,0,INDIRECT("'"&S$1&"'!K140")*S10*$C$1*IF(S$12=0,1,S$12)) -> 0 | T48: =IF(S$1=0,"",IF(S11="",S9,S11)&$B$1) -> 
A49: Packaging | E49: =E34 -> 0 | G49: =G34 -> 0 | I49: =I34 -> 0 | K49: =K34 ->  | M49: =M34 ->  | O49: =O34 ->  | Q49: =Q34 ->  | S49: =S34 -> 
A50: Annual Reductions | E50: =IF(E$1=0,"",TEXT(INDIRECT("'"&E$1&"'!I141"),"0,0%")&"; "&TEXT(INDIRECT("'"&E$1&"'!I142"),"0,0%")&"; "&TEXT(INDIRECT("'"&E$1&"'!I143"),"0,0%")&"; "&TEXT(INDIRECT("'"&E$1&"'!I144"),"0,0%")) -> 0,4%; 0,4%; 0,4%; 0,0% | G50: =IF(G$1=0,"",TEXT(INDIRECT("'"&G$1&"'!I141"),"0,0%")&"; "&TEXT(INDIRECT("'"&G$1&"'!I142"),"0,0%")&"; "&TEXT(INDIRECT("'"&G$1&"'!I143"),"0,0%")&"; "&TEXT(INDIRECT("'"&G$1&"'!I144"),"0,0%")) -> 0,4%; 0,4%; 0,4%; 0,0% | I50: =IF(I$1=0,"",TEXT(INDIRECT("'"&I$1&"'!I141"),"0,0%")&"; "&TEXT(INDIRECT("'"&I$1&"'!I142"),"0,0%")&"; "&TEXT(INDIRECT("'"&I$1&"'!I143"),"0,0%")&"; "&TEXT(INDIRECT("'"&I$1&"'!I144"),"0,0%")) -> 0,4%; 0,4%; 0,4%; 0,0% | K50: =IF(K$1=0,"",TEXT(INDIRECT("'"&K$1&"'!I141"),"0,0%")&"; "&TEXT(INDIRECT("'"&K$1&"'!I142"),"0,0%")&"; "&TEXT(INDIRECT("'"&K$1&"'!I143"),"0,0%")&"; "&TEXT(INDIRECT("'"&K$1&"'!I144"),"0,0%")) ->  | M50: =IF(M$1=0,"",TEXT(INDIRECT("'"&M$1&"'!I141"),"0,0%")&"; "&TEXT(INDIRECT("'"&M$1&"'!I142"),"0,0%")&"; "&TEXT(INDIRECT("'"&M$1&"'!I143"),"0,0%")&"; "&TEXT(INDIRECT("'"&M$1&"'!I144"),"0,0%")) ->  | O50: =IF(O$1=0,"",TEXT(INDIRECT("'"&O$1&"'!I141"),"0,0%")&"; "&TEXT(INDIRECT("'"&O$1&"'!I142"),"0,0%")&"; "&TEXT(INDIRECT("'"&O$1&"'!I143"),"0,0%")&"; "&TEXT(INDIRECT("'"&O$1&"'!I144"),"0,0%")) ->  | Q50: =IF(Q$1=0,"",TEXT(INDIRECT("'"&Q$1&"'!I141"),"0,0%")&"; "&TEXT(INDIRECT("'"&Q$1&"'!I142"),"0,0%")&"; "&TEXT(INDIRECT("'"&Q$1&"'!I143"),"0,0%")&"; "&TEXT(INDIRECT("'"&Q$1&"'!I144"),"0,0%")) ->  | S50: =IF(S$1=0,"",TEXT(INDIRECT("'"&S$1&"'!I141"),"0,0%")&"; "&TEXT(INDIRECT("'"&S$1&"'!I142"),"0,0%")&"; "&TEXT(INDIRECT("'"&S$1&"'!I143"),"0,0%")&"; "&TEXT(INDIRECT("'"&S$1&"'!I144"),"0,0%")) -> 
A51: Effective Date of first productivity | E51: =IF(E$1=0,"",INDIRECT("'"&E$1&"'!G141")) -> 1901-10-01 | G51: =IF(G$1=0,"",INDIRECT("'"&G$1&"'!G141")) -> 1901-10-01 | I51: =IF(I$1=0,"",INDIRECT("'"&I$1&"'!G141")) -> 1901-10-01 | K51: =IF(K$1=0,"",INDIRECT("'"&K$1&"'!G141")) ->  | M51: =IF(M$1=0,"",INDIRECT("'"&M$1&"'!G141")) ->  | O51: =IF(O$1=0,"",INDIRECT("'"&O$1&"'!G141")) ->  | Q51: =IF(Q$1=0,"",INDIRECT("'"&Q$1&"'!G141")) ->  | S51: =IF(S$1=0,"",INDIRECT("'"&S$1&"'!G141")) -> 
A52: Year 2 | E52: =IF(E$1=0,0,INDIRECT("'"&E$1&"'!K141")*NOT(INDIRECT("'"&E$1&"'!S141")=0)*E10*$C$1*IF(E$12=0,1,E$12)) -> 43.82301698 | F52: =IF(E48*E52=0,0,E52/E48-1) -> -0.04 | G52: =IF(G$1=0,0,INDIRECT("'"&G$1&"'!K141")*NOT(INDIRECT("'"&G$1&"'!S141")=0)*G10*$C$1*IF(G$12=0,1,G$12)) -> 46.89062817 | H52: =IF(G48*G52=0,0,G52/G48-1) -> -0.04 | I52: =IF(I$1=0,0,INDIRECT("'"&I$1&"'!K141")*NOT(INDIRECT("'"&I$1&"'!S141")=0)*I10*$C$1*IF(I$12=0,1,I$12)) -> 43.82301698 | J52: =IF(I48*I52=0,0,I52/I48-1) -> -0.04 | K52: =IF(K$1=0,0,INDIRECT("'"&K$1&"'!K141")*NOT(INDIRECT("'"&K$1&"'!S141")=0)*K10*$C$1*IF(K$12=0,1,K$12)) -> 0 | L52: =IF(K48*K52=0,0,K52/K48-1) -> 0 | M52: =IF(M$1=0,0,INDIRECT("'"&M$1&"'!K141")*NOT(INDIRECT("'"&M$1&"'!S141")=0)*M10*$C$1*IF(M$12=0,1,M$12)) -> 0 | N52: =IF(M48*M52=0,0,M52/M48-1) -> 0 | O52: =IF(O$1=0,0,INDIRECT("'"&O$1&"'!K141")*NOT(INDIRECT("'"&O$1&"'!S141")=0)*O10*$C$1*IF(O$12=0,1,O$12)) -> 0 | P52: =IF(O48*O52=0,0,O52/O48-1) -> 0 | Q52: =IF(Q$1=0,0,INDIRECT("'"&Q$1&"'!K141")*NOT(INDIRECT("'"&Q$1&"'!S141")=0)*Q10*$C$1*IF(Q$12=0,1,Q$12)) -> 0 | R52: =IF(Q48*Q52=0,0,Q52/Q48-1) -> 0 | S52: =IF(S$1=0,0,INDIRECT("'"&S$1&"'!K141")*NOT(INDIRECT("'"&S$1&"'!S141")=0)*S10*$C$1*IF(S$12=0,1,S$12)) -> 0 | T52: =IF(S48*S52=0,0,S52/S48-1) -> 0
A53: Year 3 | E53: =IF(E$1=0,0,INDIRECT("'"&E$1&"'!K142")*NOT(INDIRECT("'"&E$1&"'!S142")=0)*E10*$C$1*IF(E$12=0,1,E$12)) -> 42.0700963 | F53: =IF(E52*E53=0,0,E53/E52-1) -> -0.04 | G53: =IF(G$1=0,0,INDIRECT("'"&G$1&"'!K142")*NOT(INDIRECT("'"&G$1&"'!S142")=0)*G10*$C$1*IF(G$12=0,1,G$12)) -> 45.01500304 | H53: =IF(G52*G53=0,0,G53/G52-1) -> -0.04 | I53: =IF(I$1=0,0,INDIRECT("'"&I$1&"'!K142")*NOT(INDIRECT("'"&I$1&"'!S142")=0)*I10*$C$1*IF(I$12=0,1,I$12)) -> 42.0700963 | J53: =IF(I52*I53=0,0,I53/I52-1) -> -0.04 | K53: =IF(K$1=0,0,INDIRECT("'"&K$1&"'!K142")*NOT(INDIRECT("'"&K$1&"'!S142")=0)*K10*$C$1*IF(K$12=0,1,K$12)) -> 0 | L53: =IF(K52*K53=0,0,K53/K52-1) -> 0 | M53: =IF(M$1=0,0,INDIRECT("'"&M$1&"'!K142")*NOT(INDIRECT("'"&M$1&"'!S142")=0)*M10*$C$1*IF(M$12=0,1,M$12)) -> 0 | N53: =IF(M52*M53=0,0,M53/M52-1) -> 0 | O53: =IF(O$1=0,0,INDIRECT("'"&O$1&"'!K142")*NOT(INDIRECT("'"&O$1&"'!S142")=0)*O10*$C$1*IF(O$12=0,1,O$12)) -> 0 | P53: =IF(O52*O53=0,0,O53/O52-1) -> 0 | Q53: =IF(Q$1=0,0,INDIRECT("'"&Q$1&"'!K142")*NOT(INDIRECT("'"&Q$1&"'!S142")=0)*Q10*$C$1*IF(Q$12=0,1,Q$12)) -> 0 | R53: =IF(Q52*Q53=0,0,Q53/Q52-1) -> 0 | S53: =IF(S$1=0,0,INDIRECT("'"&S$1&"'!K142")*NOT(INDIRECT("'"&S$1&"'!S142")=0)*S10*$C$1*IF(S$12=0,1,S$12)) -> 0 | T53: =IF(S52*S53=0,0,S53/S52-1) -> 0
A54: Year 4 | E54: =IF(E$1=0,0,INDIRECT("'"&E$1&"'!K143")*NOT(INDIRECT("'"&E$1&"'!S143")=0)*E10*$C$1*IF(E$12=0,1,E$12)) -> 40.38729245 | F54: =IF(E53*E54=0,0,E54/E53-1) -> -0.04 | G54: =IF(G$1=0,0,INDIRECT("'"&G$1&"'!K143")*NOT(INDIRECT("'"&G$1&"'!S143")=0)*G10*$C$1*IF(G$12=0,1,G$12)) -> 43.21440292 | H54: =IF(G53*G54=0,0,G54/G53-1) -> -0.04 | I54: =IF(I$1=0,0,INDIRECT("'"&I$1&"'!K143")*NOT(INDIRECT("'"&I$1&"'!S143")=0)*I10*$C$1*IF(I$12=0,1,I$12)) -> 40.38729245 | J54: =IF(I53*I54=0,0,I54/I53-1) -> -0.04 | K54: =IF(K$1=0,0,INDIRECT("'"&K$1&"'!K143")*NOT(INDIRECT("'"&K$1&"'!S143")=0)*K10*$C$1*IF(K$12=0,1,K$12)) -> 0 | L54: =IF(K53*K54=0,0,K54/K53-1) -> 0 | M54: =IF(M$1=0,0,INDIRECT("'"&M$1&"'!K143")*NOT(INDIRECT("'"&M$1&"'!S143")=0)*M10*$C$1*IF(M$12=0,1,M$12)) -> 0 | N54: =IF(M53*M54=0,0,M54/M53-1) -> 0 | O54: =IF(O$1=0,0,INDIRECT("'"&O$1&"'!K143")*NOT(INDIRECT("'"&O$1&"'!S143")=0)*O10*$C$1*IF(O$12=0,1,O$12)) -> 0 | P54: =IF(O53*O54=0,0,O54/O53-1) -> 0 | Q54: =IF(Q$1=0,0,INDIRECT("'"&Q$1&"'!K143")*NOT(INDIRECT("'"&Q$1&"'!S143")=0)*Q10*$C$1*IF(Q$12=0,1,Q$12)) -> 0 | R54: =IF(Q53*Q54=0,0,Q54/Q53-1) -> 0 | S54: =IF(S$1=0,0,INDIRECT("'"&S$1&"'!K143")*NOT(INDIRECT("'"&S$1&"'!S143")=0)*S10*$C$1*IF(S$12=0,1,S$12)) -> 0 | T54: =IF(S53*S54=0,0,S54/S53-1) -> 0
A55: Year 5 | E55: =IF(E$1=0,0,INDIRECT("'"&E$1&"'!K144")*NOT(INDIRECT("'"&E$1&"'!S144")=0)*E10*$C$1*IF(E$12=0,1,E$12)) -> 40.38729245 | F55: =IF(E54*E55=0,0,E55/E54-1) -> 0 | G55: =IF(G$1=0,0,INDIRECT("'"&G$1&"'!K144")*NOT(INDIRECT("'"&G$1&"'!S144")=0)*G10*$C$1*IF(G$12=0,1,G$12)) -> 43.21440292 | H55: =IF(G54*G55=0,0,G55/G54-1) -> 0 | I55: =IF(I$1=0,0,INDIRECT("'"&I$1&"'!K144")*NOT(INDIRECT("'"&I$1&"'!S144")=0)*I10*$C$1*IF(I$12=0,1,I$12)) -> 40.38729245 | J55: =IF(I54*I55=0,0,I55/I54-1) -> 0 | K55: =IF(K$1=0,0,INDIRECT("'"&K$1&"'!K144")*NOT(INDIRECT("'"&K$1&"'!S144")=0)*K10*$C$1*IF(K$12=0,1,K$12)) -> 0 | L55: =IF(K54*K55=0,0,K55/K54-1) -> 0 | M55: =IF(M$1=0,0,INDIRECT("'"&M$1&"'!K144")*NOT(INDIRECT("'"&M$1&"'!S144")=0)*M10*$C$1*IF(M$12=0,1,M$12)) -> 0 | N55: =IF(M54*M55=0,0,M55/M54-1) -> 0 | O55: =IF(O$1=0,0,INDIRECT("'"&O$1&"'!K144")*NOT(INDIRECT("'"&O$1&"'!S144")=0)*O10*$C$1*IF(O$12=0,1,O$12)) -> 0 | P55: =IF(O54*O55=0,0,O55/O54-1) -> 0 | Q55: =IF(Q$1=0,0,INDIRECT("'"&Q$1&"'!K144")*NOT(INDIRECT("'"&Q$1&"'!S144")=0)*Q10*$C$1*IF(Q$12=0,1,Q$12)) -> 0 | R55: =IF(Q54*Q55=0,0,Q55/Q54-1) -> 0 | S55: =IF(S$1=0,0,INDIRECT("'"&S$1&"'!K144")*NOT(INDIRECT("'"&S$1&"'!S144")=0)*S10*$C$1*IF(S$12=0,1,S$12)) -> 0 | T55: =IF(S54*S55=0,0,S55/S54-1) -> 0
A56: Additional benefit | E56: =IF(E$1=0,0,INDIRECT("'"&E$1&"'!J149")*IF(E$12=0,1,E$12)) -> 3000 | F56: =IF(E11="",E9,E11) -> EUR | G56: =IF(G$1=0,0,INDIRECT("'"&G$1&"'!J149")*IF(G$12=0,1,G$12)) -> 3210 | H56: =IF(G11="",G9,G11) -> USD | I56: =IF(I$1=0,0,INDIRECT("'"&I$1&"'!J149")*IF(I$12=0,1,I$12)) -> 3000 | J56: =IF(I11="",I9,I11) -> EUR | K56: =IF(K$1=0,0,INDIRECT("'"&K$1&"'!J149")*IF(K$12=0,1,K$12)) -> 0 | L56: =IF(K11="",K9,K11) ->  | M56: =IF(M$1=0,0,INDIRECT("'"&M$1&"'!J149")*IF(M$12=0,1,M$12)) -> 0 | N56: =IF(M11="",M9,M11) ->  | O56: =IF(O$1=0,0,INDIRECT("'"&O$1&"'!J149")*IF(O$12=0,1,O$12)) -> 0 | P56: =IF(O11="",O9,O11) ->  | Q56: =IF(Q$1=0,0,INDIRECT("'"&Q$1&"'!J149")*IF(Q$12=0,1,Q$12)) -> 0 | R56: =IF(Q11="",Q9,Q11) ->  | S56: =IF(S$1=0,0,INDIRECT("'"&S$1&"'!J149")*IF(S$12=0,1,S$12)) -> 0 | T56: =IF(S11="",S9,S11) -> 
A57: Tooling
A58: Negotiated Price | E58: =IF(E$1=0,0,INDIRECT("'"&E$1&"'!J148")*IF(E$12=0,1,E$12)) -> 57000 | F58: =IF(E11="",E9,E11) -> EUR | G58: =IF(G$1=0,0,INDIRECT("'"&G$1&"'!J148")*IF(G$12=0,1,G$12)) -> 60990 | H58: =IF(G11="",G9,G11) -> USD | I58: =IF(I$1=0,0,INDIRECT("'"&I$1&"'!J148")*IF(I$12=0,1,I$12)) -> 57000 | J58: =IF(I11="",I9,I11) -> EUR | K58: =IF(K$1=0,0,INDIRECT("'"&K$1&"'!J148")*IF(K$12=0,1,K$12)) -> 0 | L58: =IF(K11="",K9,K11) ->  | M58: =IF(M$1=0,0,INDIRECT("'"&M$1&"'!J148")*IF(M$12=0,1,M$12)) -> 0 | N58: =IF(M11="",M9,M11) ->  | O58: =IF(O$1=0,0,INDIRECT("'"&O$1&"'!J148")*IF(O$12=0,1,O$12)) -> 0 | P58: =IF(O11="",O9,O11) ->  | Q58: =IF(Q$1=0,0,INDIRECT("'"&Q$1&"'!J148")*IF(Q$12=0,1,Q$12)) -> 0 | R58: =IF(Q11="",Q9,Q11) ->  | S58: =IF(S$1=0,0,INDIRECT("'"&S$1&"'!J148")*IF(S$12=0,1,S$12)) -> 0 | T58: =IF(S11="",S9,S11) -> 
A59: Tooling description | E59: =IF(E$1=0,0,INDIRECT("'"&E$1&"'!B123")) -> Injection tool | G59: =IF(G$1=0,0,INDIRECT("'"&G$1&"'!B123")) -> Injection tool | I59: =IF(I$1=0,0,INDIRECT("'"&I$1&"'!B123")) -> Injection tool | K59: =IF(K$1=0,0,INDIRECT("'"&K$1&"'!B123")) -> 0 | M59: =IF(M$1=0,0,INDIRECT("'"&M$1&"'!B123")) -> 0 | O59: =IF(O$1=0,0,INDIRECT("'"&O$1&"'!B123")) -> 0 | Q59: =IF(Q$1=0,0,INDIRECT("'"&Q$1&"'!B123")) -> 0 | S59: =IF(S$1=0,0,INDIRECT("'"&S$1&"'!B123")) -> 0
A60: Tool Warranty (pcs) / Cavities | E60: =IF(E$1=0,0,INDIRECT("'"&E$1&"'!J123")) -> 8000000 | F60: =IF(E$1=0,0,INDIRECT("'"&E$1&"'!G123")) -> 4 | G60: =IF(G$1=0,0,INDIRECT("'"&G$1&"'!J123")) -> 8000000 | H60: =IF(G$1=0,0,INDIRECT("'"&G$1&"'!G123")) -> 4 | I60: =IF(I$1=0,0,INDIRECT("'"&I$1&"'!J123")) -> 8000000 | J60: =IF(I$1=0,0,INDIRECT("'"&I$1&"'!G123")) -> 4 | K60: =IF(K$1=0,0,INDIRECT("'"&K$1&"'!J123")) -> 0 | L60: =IF(K$1=0,0,INDIRECT("'"&K$1&"'!G123")) -> 0 | M60: =IF(M$1=0,0,INDIRECT("'"&M$1&"'!J123")) -> 0 | N60: =IF(M$1=0,0,INDIRECT("'"&M$1&"'!G123")) -> 0 | O60: =IF(O$1=0,0,INDIRECT("'"&O$1&"'!J123")) -> 0 | P60: =IF(O$1=0,0,INDIRECT("'"&O$1&"'!G123")) -> 0 | Q60: =IF(Q$1=0,0,INDIRECT("'"&Q$1&"'!J123")) -> 0 | R60: =IF(Q$1=0,0,INDIRECT("'"&Q$1&"'!G123")) -> 0 | S60: =IF(S$1=0,0,INDIRECT("'"&S$1&"'!J123")) -> 0 | T60: =IF(S$1=0,0,INDIRECT("'"&S$1&"'!G123")) -> 0
A62: Lifetime Cost | E62: =IF(E$1=0,0,INDIRECT("'"&E$1&"'!K151")*IF(E$12=0,1,E$12)) -> 1206738.168 | F62: =IF(E11="",E9,E11) -> EUR | G62: =IF(G$1=0,0,INDIRECT("'"&G$1&"'!K151")*IF(G$12=0,1,G$12)) -> 1291209.84 | H62: =IF(G11="",G9,G11) -> USD | I62: =IF(I$1=0,0,INDIRECT("'"&I$1&"'!K151")*IF(I$12=0,1,I$12)) -> 1206738.168 | J62: =IF(I11="",I9,I11) -> EUR | K62: =IF(K$1=0,0,INDIRECT("'"&K$1&"'!K151")*IF(K$12=0,1,K$12)) -> 0 | L62: =IF(K11="",K9,K11) ->  | M62: =IF(M$1=0,0,INDIRECT("'"&M$1&"'!K151")*IF(M$12=0,1,M$12)) -> 0 | N62: =IF(M11="",M9,M11) ->  | O62: =IF(O$1=0,0,INDIRECT("'"&O$1&"'!K151")*IF(O$12=0,1,O$12)) -> 0 | P62: =IF(O11="",O9,O11) ->  | Q62: =IF(Q$1=0,0,INDIRECT("'"&Q$1&"'!K151")*IF(Q$12=0,1,Q$12)) -> 0 | R62: =IF(Q11="",Q9,Q11) ->  | S62: =IF(S$1=0,0,INDIRECT("'"&S$1&"'!K151")*IF(S$12=0,1,S$12)) -> 0 | T62: =IF(S11="",S9,S11) -> 
A64: Payment terms | E64: =IF(E$1=0,"",INDIRECT("'"&E$1&"'!G133")) -> 0 | G64: =IF(G$1=0,"",INDIRECT("'"&G$1&"'!G133")) -> 0 | I64: =IF(I$1=0,"",INDIRECT("'"&I$1&"'!G133")) -> 0 | K64: =IF(K$1=0,"",INDIRECT("'"&K$1&"'!G133")) ->  | M64: =IF(M$1=0,"",INDIRECT("'"&M$1&"'!G133")) ->  | O64: =IF(O$1=0,"",INDIRECT("'"&O$1&"'!G133")) ->  | Q64: =IF(Q$1=0,"",INDIRECT("'"&Q$1&"'!G133")) ->  | S64: =IF(S$1=0,"",INDIRECT("'"&S$1&"'!G133")) -> 
A65: Tool Payment terms | E65: =IF(E$1=0,"",INDIRECT("'"&E$1&"'!G134")) -> 0 | G65: =IF(G$1=0,"",INDIRECT("'"&G$1&"'!G134")) -> 0 | I65: =IF(I$1=0,"",INDIRECT("'"&I$1&"'!G134")) -> 0 | K65: =IF(K$1=0,"",INDIRECT("'"&K$1&"'!G134")) ->  | M65: =IF(M$1=0,"",INDIRECT("'"&M$1&"'!G134")) ->  | O65: =IF(O$1=0,"",INDIRECT("'"&O$1&"'!G134")) ->  | Q65: =IF(Q$1=0,"",INDIRECT("'"&Q$1&"'!G134")) ->  | S65: =IF(S$1=0,"",INDIRECT("'"&S$1&"'!G134")) -> 
A66: Spare Part Pricing after EoP | E66: =IF(E$1=0,"",INDIRECT("'"&E$1&"'!G135")) -> 0 | F66: =IF(E66="",0,IF(E66=1,"year","years")) -> years | G66: =IF(G$1=0,"",INDIRECT("'"&G$1&"'!G135")) -> 0 | H66: =IF(G66="",0,IF(G66=1,"year","years")) -> years | I66: =IF(I$1=0,"",INDIRECT("'"&I$1&"'!G135")) -> 0 | J66: =IF(I66="",0,IF(I66=1,"year","years")) -> years | K66: =IF(K$1=0,"",INDIRECT("'"&K$1&"'!G135")) ->  | L66: =IF(K66="",0,IF(K66=1,"year","years")) -> 0 | M66: =IF(M$1=0,"",INDIRECT("'"&M$1&"'!G135")) ->  | N66: =IF(M66="",0,IF(M66=1,"year","years")) -> 0 | O66: =IF(O$1=0,"",INDIRECT("'"&O$1&"'!G135")) ->  | P66: =IF(O66="",0,IF(O66=1,"year","years")) -> 0 | Q66: =IF(Q$1=0,"",INDIRECT("'"&Q$1&"'!G135")) ->  | R66: =IF(Q66="",0,IF(Q66=1,"year","years")) -> 0 | S66: =IF(S$1=0,"",INDIRECT("'"&S$1&"'!G135")) ->  | T66: =IF(S66="",0,IF(S66=1,"year","years")) -> 0
A68: Additional Supplier Comments/Benefit | E68: =IF(E$1=0,"",INDIRECT("'"&E$1&"'!G152")) -> Additional reduction of 1% on all products more than 8 years in production. | G68: =IF(G$1=0,"",INDIRECT("'"&G$1&"'!G152")) -> Additional reduction of 1% on all products more than 8 years in production. | I68: =IF(I$1=0,"",INDIRECT("'"&I$1&"'!G152")) -> Additional reduction of 1% on all products more than 8 years in production. | K68: =IF(K$1=0,"",INDIRECT("'"&K$1&"'!G152")) ->  | M68: =IF(M$1=0,"",INDIRECT("'"&M$1&"'!G152")) ->  | O68: =IF(O$1=0,"",INDIRECT("'"&O$1&"'!G152")) ->  | Q68: =IF(Q$1=0,"",INDIRECT("'"&Q$1&"'!G152")) ->  | S68: =IF(S$1=0,"",INDIRECT("'"&S$1&"'!G152")) -> 

Sheet Explanations
B1: Cost Categories
A3: 2.1 | B3: Direct Material | C3: DM | G3: Material Overhead
A4: 2.2 | B4: Purchased Components | C4: PC | G4: Purchasing Department | I4: Material Testing
G5: Material Administration | I5: Capital Investment
A6: 2.3 | B6: Material Overhead | C6: MOH | D6: % of (DM + PC) | G6: Incoming Goods Control | I6: Warehousing
G7: Material Handling | I7: Material Handling
A8: 2.4 | B8: Production
B9: Cycle Time | D9: Nominal cycle time, excl efficiencies
B10: Cavities | D10: Number of parts produced per cycle
B11: Direct Labour | C11: DL | G11: Machine Cost (Machine Hourly Rate)
B12: Machine Cost | C12: MC | G12: Amortisation | I12: Investment over useful lifetime
B13: Setup Cost | C13: SC | D13: Setup cost per batch / batch size | G13: Interest | I13: Financing Cost
B14: Tool Maintenance | C14: TM | D14: Setup cost per part, not dependent on cavities | G14: Energy | I14: Energy to run the machine
G15: Floor Space | I15: Building cost, incl. access routes
A16: 2.5 | B16: Production Overhead | C16: POH | D16: Direct Labour: % of DL | G16: Other / Consumables | I16: Other running costs
D17: Value Added: % of (DL + MC + SC)
G18: Production Overhead
A19: 2.6 | B19: Scrap | C19: WS | D19: % of individual DM, PC, DL, MC items | G19: Maintenance (Machine only, not tooling)
G20: Insurance | I20: Production Planning
B21: Total Manufactured Cost | C21: TMC | D21: Sum of all above | G21: Intermediate Storage | I21: Quality Department
G22: Operations Planning | I22: Production Management
G23: Process Engineering | I23: Disposal/ Cleaning etc.
A24: 2.7 | B24: General Overhead/ SG&A | C24: OH | D24: Value Added: % of MC+DL+Setup+POH | G24: Indirect Labor Costs
D25: Manufactured Cost: % of TMC
G26: General Overhead
A27: 2.7 | B27: Engineering / Design & Development | C27: EDD | D27: Manufactured Cost: % of TMC | G27: General Management | I27: General Administration
D28: Value Added: % of MC+DL+Setup+POH | G28: Central Planning | I28: Marketing / Advertising
A29: 2.7 | B29: Tool Amortisation | C29: TA | D29: Amount / Quantity | G29: Plant Management | I29: Market Research / Analysis
A30: 2.7 | B30: Other Amortisation | C30: OA | D30: Amount / Quantity | G30: Human resources | I30: Sales organisation/ Field reps
G31: Finance/Accounting | I31: Sales Planning
A32: 2.7 | B32: Profit | C32: PR | D32: % of (TMC + OH + EDD) | G32: Legal Department
B34: Sales Price (Base) | C34: BP | D34: Sum of above
A36: 3 | B36: Freight (Outbound) | C36: FR
A38: 3 | B38: Packaging | C38: PA
B40: Sales Price (Final) | C40: SP | D40: Sum of above (BP + FR + PA)

Sheet HourlyRate
A1: Hourly Rate Calculation (incl OEE) | F1: ID: | G1: 100t
F2: Name:
A3: Inputs: | B3: Example | G3: 1 | H3: 2 | I3: 3 | J3: 4 | K3: 5 | L3: 6 | M3: 7 | N3: 8 | O3: 9 | P3: 10 | Q3: 11 | R3: 12 | S3: 13 | T3: 14 | U3: 15 | V3: 16 | W3: 17 | X3: 18 | Y3: 19 | Z3: 20 | AA3: 21 | AB3: 22 | AC3: 23 | AD3: 24
A4: Investment Cost | B4: 100000 | D4: Total Machine Investment | G4: 103000
A5: Installation Cost | B5: 5000 | D5: ~10-15% for std machinery, 0 if incl. in Invest | G5: 15500
A6: Lifetime [yrs] | B6: 8 | D6: Useful Lifetime, not Depreciation time | G6: 8
A7: "Lifetime" exceeded? | B7: no | D7: Machine age exceeds "Lifetime" | G7: no | H7: no | I7: no | J7: no | K7: no | L7: no | M7: no | N7: no | O7: no | P7: no | Q7: no | R7: no | S7: no | T7: no | U7: no | V7: no | W7: no | X7: no | Y7: no | Z7: no | AA7: no | AB7: no | AC7: no | AD7: no
A8: Residual Value [%] | B8: 0.1 | D8: ~10% for std machinery, 0 for special machines | G8: 0.1
A9: Interest rate [% /yr] | B9: 0.05 | D9: Normally 5-7% -> RoC equivalent | G9: 0.05
A10: Floor Space [m²] | B10: 25 | D10: Space used by machine | E10: 100 | F10: /m²/yr | G10: 22
A11: Energy Rating [kW] | B11: 30 | D11: Energy rating of Machine | E11: 0.15 | F11: /kWh | G11: 27
A12: Duty Cycle [%] | B12: 0.65 | D12: Actual consumption as % of Rated Value | G12: 0.66
A13: Air [m³/hr] | B13: 1 | D13: Usage during production | E13: 0.5 | F13: /m³
A14: Water [m³/hr] | B14: 0.3 | D14: Usage during production | E14: 0.2 | F14: /m³
A15: Gas [m³/hr] | D15: Usage during production | F15: /m³
A16: Other [/hr] | D16: Other operating costs, Consumables | G16: 0.7
A17: Maintenance Cost [%] | B17: 0.03 | D17: % of Investment Value | G17: 0.03
A18: Insurance Cost [%] | B18: 0.005 | D18: % of Investment Value | G18: 0.005
A19: Weeks/year | B19: 48 | D19: Real production weeks | G19: 48
A20: Shifts/week | B20: 15 | G20: 15
A21: Shift Hrs | B21: 8 | D21: Working hours of the machine | G21: 8
A22: Utilization | B22: 0.87 | D22: Average operating level of the Machine | G22: 0.85
A23: Annual Productive Hours | B23: =+B19*B20*B21*B22 -> 5011.2 | G23: =G19*G20*G21*G22 -> 4896 | H23: =H19*H20*H21*H22 -> 0 | I23: 0 | J23: 0 | K23: 0 | L23: 0 | M23: =M19*M20*M21*M22 -> 0 | N23: 0 | O23: 0 | P23: 0 | Q23: 0 | R23: 0 | S23: 0 | T23: 0 | U23: =U19*U20*U21*U22 -> 0 | V23: 0 | W23: =W19*W20*W21*W22 -> 0 | X23: 0 | Y23: 0 | Z23: 0 | AA23: 0 | AB23: 0 | AC23: 0 | AD23: 0
A25: Hourly rate: | D25: TOTAL /Year | F25: No.
A26: Depreciation | B26: =IF(OR(B23=0,B7="yes"),0,(B4*(1-B8)+B5)/B$6/B$23) -> 2.36969189 | D26: =SUMPRODUCT(G$23:AD$23,G$25:AD$25,G26:AD26) -> 0 | E26: =IF(D$34=0,0,D26/$D$34) -> 0 | G26: =IF(OR(G23=0,G7="yes"),0,(G4*(1-G8)+G5)/G$6/G$23) -> 2.76245915 | H26: =IF(OR(H23=0,H7="yes"),0,(H4*(1-H8)+H5)/H$6/H$23) -> 0 | I26: 0 | J26: 0 | K26: 0 | L26: 0 | M26: =IF(OR(M23=0,M7="yes"),0,(M4*(1-M8)+M5)/M$6/M$23) -> 0 | N26: 0 | O26: 0 | P26: 0 | Q26: 0 | R26: 0 | S26: 0 | T26: 0 | U26: =IF(OR(U23=0,U7="yes"),0,(U4*(1-U8)+U5)/U$6/U$23) -> 0 | V26: 0 | W26: =IF(OR(W23=0,W7="yes"),0,(W4*(1-W8)+W5)/W$6/W$23) -> 0 | X26: 0 | Y26: 0 | Z26: 0 | AA26: 0 | AB26: 0 | AC26: 0 | AD26: 0
A27: Interest | B27: =IF(OR(B23=0,B7="yes"),0,(B$4+B$5)/2*B$9/B$19/B$20/B$21/B$22)*IF(B7="yes",0,1) -> 0.5238266284 | D27: 0 | E27: =IF(D$34=0,0,D27/$D$34) -> 0 | G27: =IF(OR(G23=0,G7="yes"),0,(G$4+G$5)/2*G$9/G$19/G$20/G$21/G$22) -> 0.6050857843 | H27: =IF(OR(H23=0,H7="yes"),0,(H$4+H$5)/2*H$9/H$19/H$20/H$21/H$22) -> 0 | I27: 0 | J27: 0 | K27: 0 | L27: 0 | M27: 0 | N27: 0 | O27: 0 | P27: 0 | Q27: 0 | R27: 0 | S27: 0 | T27: 0 | U27: 0 | V27: 0 | W27: 0 | X27: 0 | Y27: 0 | Z27: 0 | AA27: 0 | AB27: 0 | AC27: 0 | AD27: 0
A28: Energy (Electricity) | B28: =+B11*B12*$E$11 -> 2.925 | D28: 0 | E28: 0 | G28: =G11*G12*$E$11 -> 2.673 | H28: =H11*H12*$E$11 -> 0 | I28: 0 | J28: 0 | K28: 0 | L28: 0 | M28: 0 | N28: 0 | O28: 0 | P28: 0 | Q28: 0 | R28: 0 | S28: 0 | T28: 0 | U28: 0 | V28: 0 | W28: 0 | X28: 0 | Y28: 0 | Z28: 0 | AA28: 0 | AB28: 0 | AC28: 0 | AD28: 0
A29: Air/Water/Gas | B29: =SUMPRODUCT(B13:B15,$E$13:$E$15) -> 0.56 | D29: 0 | E29: 0 | G29: =SUMPRODUCT(G13:G15,$E$13:$E$15) -> 0 | H29: =SUMPRODUCT(H13:H15,$E$13:$E$15) -> 0 | I29: 0 | J29: 0 | K29: 0 | L29: 0 | M29: =SUMPRODUCT(M13:M15,$E$13:$E$15) -> 0 | N29: 0 | O29: 0 | P29: 0 | Q29: 0 | R29: 0 | S29: 0 | T29: 0 | U29: =SUMPRODUCT(U13:U15,$E$13:$E$15) -> 0 | V29: 0 | W29: =SUMPRODUCT(W13:W15,$E$13:$E$15) -> 0 | X29: 0 | Y29: 0 | Z29: 0 | AA29: 0 | AB29: 0 | AC29: 0 | AD29: 0
A30: Floor Space | B30: =IF(B$23=0,0,B10*125%*$E$10/B$23) -> 0.623603129 | D30: 0 | E30: 0 | G30: =IF(G$23=0,0,G10*125%*$E$10/G$23) -> 0.5616830065 | H30: =IF(H$23=0,0,H10*125%*$E$10/H$23) -> 0 | I30: 0 | J30: 0 | K30: 0 | L30: 0 | M30: =IF(M$23=0,0,M10*125%*$E$10/M$23) -> 0 | N30: 0 | O30: 0 | P30: 0 | Q30: 0 | R30: 0 | S30: 0 | T30: 0 | U30: =IF(U$23=0,0,U10*125%*$E$10/U$23) -> 0 | V30: 0 | W30: =IF(W$23=0,0,W10*125%*$E$10/W$23) -> 0 | X30: 0 | Y30: 0 | Z30: 0 | AA30: 0 | AB30: 0 | AC30: 0 | AD30: 0
A31: Maintenance | B31: =IF(B23=0,0,B4*B$17/B$23) -> 0.5986590038 | D31: 0 | E31: 0 | G31: =IF(G23=0,0,G4*G$17/G$23) -> 0.631127451 | H31: =IF(H23=0,0,H4*H$17/H$23) -> 0 | I31: 0 | J31: 0 | K31: 0 | L31: 0 | M31: =IF(M23=0,0,M4*M$17/M$23) -> 0 | N31: 0 | O31: 0 | P31: 0 | Q31: 0 | R31: 0 | S31: 0 | T31: 0 | U31: =IF(U23=0,0,U4*U$17/U$23) -> 0 | V31: 0 | W31: =IF(W23=0,0,W4*W$17/W$23) -> 0 | X31: 0 | Y31: 0 | Z31: 0 | AA31: 0 | AB31: 0 | AC31: 0 | AD31: 0
A32: Insurance | B32: =IF(B$23=0,0,B4*B$18/B$23) -> 0.09977650064 | D32: 0 | E32: 0 | G32: =IF(G$23=0,0,G4*G$18/G$23) -> 0.1051879085 | H32: =IF(H$23=0,0,H4*H$18/H$23) -> 0 | I32: 0 | J32: 0 | K32: 0 | L32: 0 | M32: =IF(M$23=0,0,M4*M$18/M$23) -> 0 | N32: 0 | O32: 0 | P32: 0 | Q32: 0 | R32: 0 | S32: 0 | T32: 0 | U32: =IF(U$23=0,0,U4*U$18/U$23) -> 0 | V32: 0 | W32: =IF(W$23=0,0,W4*W$18/W$23) -> 0 | X32: 0 | Y32: 0 | Z32: 0 | AA32: 0 | AB32: 0 | AC32: 0 | AD32: 0
A33: Other/ Consumables | B33: 0.5 | D33: 0 | E33: 0 | G33: =G16 -> 0.7 | H33: =H16 -> 0 | I33: 0 | J33: 0 | K33: 0 | L33: 0 | M33: =M16 -> 0 | N33: 0 | O33: 0 | P33: 0 | Q33: 0 | R33: 0 | S33: 0 | T33: 0 | U33: =U16 -> 0 | V33: 0 | W33: =W16 -> 0 | X33: 0 | Y33: 0 | Z33: 0 | AA33: 0 | AB33: 0 | AC33: 0 | AD33: 0
A34: Total Hourly rate [/hr] | B34: =SUM(B26:B33) -> 8.200557152 | D34: =SUM(D26:D33) -> 0 | G34: =SUM(G26:G33) -> 8.038543301 | H34: =SUM(H26:H33) -> 0 | I34: 0 | J34: 0 | K34: 0 | L34: 0 | M34: =SUM(M26:M33) -> 0 | N34: 0 | O34: 0 | P34: 0 | Q34: 0 | R34: 0 | S34: 0 | T34: 0 | U34: =SUM(U26:U33) -> 0 | V34: 0 | W34: =SUM(W26:W33) -> 0 | X34: 0 | Y34: 0 | Z34: 0 | AA34: 0 | AB34: 0 | AC34: 0 | AD34: 0
A36: Cylce Time [s] | B36: 25 | D36: nominal cycle time, excl. Efficiencies | G36: 25
A37: Parts /cycle | B37: 1 | G37: 4
B38: =IF(B36=0,0,3600/B36*B37*B23) -> 721612.8 | F38: Annual Capacity | G38: =IF(G36=0,0,3600/G36*G37*G23*IF(G25=0,1,G25)) -> 2820096 | H38: =IF(H36=0,0,3600/H36*H37*H23*IF(H25=0,1,H25)) -> 0 | I38: 0 | J38: 0 | K38: 0 | L38: 0 | M38: =IF(M36=0,0,3600/M36*M37*M23*IF(M25=0,1,M25)) -> 0 | N38: =IF(N36=0,0,3600/N36*N37*N23*IF(N25=0,1,N25)) -> 0 | O38: =IF(O36=0,0,3600/O36*O37*O23*IF(O25=0,1,O25)) -> 0 | P38: =IF(P36=0,0,3600/P36*P37*P23*IF(P25=0,1,P25)) -> 0 | Q38: =IF(Q36=0,0,3600/Q36*Q37*Q23*IF(Q25=0,1,Q25)) -> 0 | R38: =IF(R36=0,0,3600/R36*R37*R23*IF(R25=0,1,R25)) -> 0 | S38: 0 | T38: 0 | U38: =IF(U36=0,0,3600/U36*U37*U23*IF(U25=0,1,U25)) -> 0 | V38: =IF(V36=0,0,3600/V36*V37*V23*IF(V25=0,1,V25)) -> 0 | W38: =IF(W36=0,0,3600/W36*W37*W23*IF(W25=0,1,W25)) -> 0 | X38: =IF(X36=0,0,3600/X36*X37*X23*IF(X25=0,1,X25)) -> 0 | Y38: =IF(Y36=0,0,3600/Y36*Y37*Y23*IF(Y25=0,1,Y25)) -> 0 | Z38: =IF(Z36=0,0,3600/Z36*Z37*Z23*IF(Z25=0,1,Z25)) -> 0 | AA38: 0 | AB38: 0 | AC38: 0 | AD38: 0
